Workbook

Sheet Introduction
B2: Vessel Planning Tool

Sheet Check applicability
B2: Port type | C2: Ports | D2: Abbr. | F2: Origin | G2: Destination | H2: Sailing Time (h) | I2: Average port stay (h) | J2: Sailing + port stay (h)
B3: Home port | C3: Rotterdam | D3: A | F3: =Table8[[#This Row],[Ports]] -> Rotterdam | G3: =C4 -> Hamburg | H3: 18 | I3: 8 | J3: =Table310[[#This Row],[Sailing Time (h)]]+Table310[[#This Row],[Average port stay (h)]] -> 26
B4: Port T | C4: Hamburg | D4: T | F4: =C3 -> Rotterdam | G4: =C5 -> Immingham | H4: 15 | I4: 8 | J4: =Table310[[#This Row],[Sailing Time (h)]]+Table310[[#This Row],[Average port stay (h)]] -> 23
B5: Port Z | C5: Immingham | D5: Z | F5: =C4 -> Hamburg | G5: =C3 -> Rotterdam | H5: 18 | I5: 8 | J5: =Table310[[#This Row],[Sailing Time (h)]]+Table310[[#This Row],[Average port stay (h)]] -> 26
F6: =C4 -> Hamburg | G6: =C5 -> Immingham | H6: 26 | I6: 8 | J6: =Table310[[#This Row],[Sailing Time (h)]]+Table310[[#This Row],[Average port stay (h)]] -> 34
F7: =C5 -> Immingham | G7: =C3 -> Rotterdam | H7: 15 | I7: 8 | J7: =Table310[[#This Row],[Sailing Time (h)]]+Table310[[#This Row],[Average port stay (h)]] -> 23
F8: =C5 -> Immingham | G8: =C4 -> Hamburg | H8: 26 | I8: 8 | J8: =Table310[[#This Row],[Sailing Time (h)]]+Table310[[#This Row],[Average port stay (h)]] -> 34
F12: The tool is | G12: =IF(Calculation!B21=0,"not applicable for these 3 ports since the sailing time exceeds 168 hours",IF(Calculation!A21=1,"applicable for these 3 ports and pre-defined building block set covers all the possibilities of vessel routing","applicable for these 3 ports but pre-defined building block set does not cover all the possibilities of vessel routing")) -> applicable for these 3 ports and pre-defined building block set covers all the possibilities of vessel routing

Sheet Calculation (hidden)
A1: Abbreviation | B1: Port | D1: Origin | E1: Destination | F1: Sailing Time (h) | G1: Average port stay (h) | H1: Sailing + port stay (h)
A2: A | B2: ='Check applicability'!C3 -> Rotterdam | D2: ='[1]Check applicability'!E3 -> Rotterdam | E2: ='[1]Check applicability'!F3 -> Hamburg | F2: ='Check applicability'!H3 -> 18 | G2: ='Check applicability'!I3 -> 8 | H2: ='[1]Check applicability'!I3 -> 26
A3: T | B3: ='Check applicability'!C4 -> Hamburg | D3: ='[1]Check applicability'!E4 -> Rotterdam | E3: ='[1]Check applicability'!F4 -> immingham | F3: ='Check applicability'!H4 -> 15 | G3: ='Check applicability'!I4 -> 8 | H3: ='[1]Check applicability'!I4 -> 23
A4: Z | B4: ='Check applicability'!C5 -> Immingham | D4: ='[1]Check applicability'!E5 -> Hamburg | E4: ='[1]Check applicability'!F5 -> Rotterdam | F4: ='Check applicability'!H5 -> 18 | G4: ='Check applicability'!I5 -> 8 | H4: ='[1]Check applicability'!I5 -> 26
D5: ='[1]Check applicability'!E6 -> Hamburg | E5: ='[1]Check applicability'!F6 -> immingham | F5: ='Check applicability'!H6 -> 26 | G5: ='Check applicability'!I6 -> 8 | H5: ='[1]Check applicability'!I6 -> 34
A6: Abbreviation | B6: Home terminal | D6: ='[1]Check applicability'!E7 -> immingham | E6: ='[1]Check applicability'!F7 -> Rotterdam | F6: ='Check applicability'!H7 -> 15 | G6: ='Check applicability'!I7 -> 8 | H6: ='[1]Check applicability'!I7 -> 23
A7: A | B7: =B2 -> Rotterdam | D7: ='[1]Check applicability'!E8 -> immingham | E7: ='[1]Check applicability'!F8 -> Hamburg | F7: ='Check applicability'!H8 -> 26 | G7: ='Check applicability'!I8 -> 8 | H7: ='[1]Check applicability'!I8 -> 34
A10: Check tool applicability
A11: Start terminal (home) | B11: 1ST Visit | C11: 2ND Visit | D11: 3RD Visit | E11: 4TH Visit | F11: Total time (Sailing + port stay) (h) | G11: Max nr. of repeatation | H11: Max nr of repeation for non-home terminal legs | I11: Check whether applicable | J11: Check whether sailing + port stay too large | L11: Base repeatation nr. in current building block set | M11: Base repeatation nr. of non-home terminal legs in current building block set
A12: =Table4[Home terminal] -> Rotterdam | B12: =B3 -> Hamburg | C12: =Table4[Home terminal] -> Rotterdam | F12: =F2+G2+F4+G4 -> 52 | G12: =ROUNDDOWN(168/F12,0) -> 3 | H12: 0 | I12: =IF(Table5[[#This Row],[Max nr. of repeatation]]>L12,0,IF(Table5[[#This Row],[Max nr of repeation for non-home terminal legs]]>M12,0,1)) -> 1 | J12: =IF(Table5[[#This Row],[Total time (Sailing + port stay) (h)]]>=168,0,1) -> 1 | L12: 4 | M12: 0
A13: =Table4[Home terminal] -> Rotterdam | B13: =B4 -> Immingham | C13: =Table4[Home terminal] -> Rotterdam | F13: =F3+G3+F6+G6 -> 46 | G13: =ROUNDDOWN(168/F13,0) -> 3 | H13: 0 | I13: =IF(Table5[[#This Row],[Max nr. of repeatation]]>L13,0,IF(Table5[[#This Row],[Max nr of repeation for non-home terminal legs]]>M13,0,1)) -> 1 | J13: =IF(Table5[[#This Row],[Total time (Sailing + port stay) (h)]]>=168,0,1) -> 1 | L13: 4 | M13: 0
A14: =Table4[Home terminal] -> Rotterdam | B14: =B3 -> Hamburg | C14: =B4 -> Immingham | D14: =Table4[Home terminal] -> Rotterdam | F14: =F2+G2+F6+G6+F5+G5 -> 83 | G14: 2 | H14: =ROUNDDOWN((168-F14)/($H$5),0) -> 2 | I14: =IF(Table5[[#This Row],[Max nr. of repeatation]]>L14,0,IF(Table5[[#This Row],[Max nr of repeation for non-home terminal legs]]>M14,0,1)) -> 1 | J14: =IF(Table5[[#This Row],[Total time (Sailing + port stay) (h)]]>=168,0,1) -> 1 | L14: 3 | M14: 6
A15: =Table4[Home terminal] -> Rotterdam | B15: =B4 -> Immingham | C15: =B3 -> Hamburg | D15: =Table4[Home terminal] -> Rotterdam | F15: =F3+G3+F7+G7+F4+G4 -> 83 | G15: =ROUNDDOWN(168/F15,0) -> 2 | H15: =ROUNDDOWN((168-F15)/($H$5),0) -> 2 | I15: =IF(Table5[[#This Row],[Max nr. of repeatation]]>L15,0,IF(Table5[[#This Row],[Max nr of repeation for non-home terminal legs]]>M15,0,1)) -> 1 | J15: =IF(Table5[[#This Row],[Total time (Sailing + port stay) (h)]]>=168,0,1) -> 1 | L15: 3 | M15: 6
A16: =Table4[Home terminal] -> Rotterdam | B16: =B3 -> Hamburg | C16: =B4 -> Immingham | D16: =B3 -> Hamburg | E16: =Table4[Home terminal] -> Rotterdam | F16: =F2+G2+F5+G5+F7+G7+F4+G4 -> 120 | G16: 1 | H16: =ROUNDDOWN((168-F16)/($H$5),0) -> 1 | I16: =IF(Table5[[#This Row],[Max nr. of repeatation]]>L16,0,IF(Table5[[#This Row],[Max nr of repeation for non-home terminal legs]]>M16,0,1)) -> 1 | J16: =IF(Table5[[#This Row],[Total time (Sailing + port stay) (h)]]>=168,0,1) -> 1 | L16: 2 | M16: 5
A17: =Table4[Home terminal] -> Rotterdam | B17: =B4 -> Immingham | C17: =B3 -> Hamburg | D17: =B4 -> Immingham | E17: =Table4[Home terminal] -> Rotterdam | F17: =F3+G3+F7+G7+F5+G5+F6+G6 -> 114 | G17: 1 | H17: =ROUNDDOWN((168-F17)/($H$5),0) -> 1 | I17: =IF(Table5[[#This Row],[Max nr. of repeatation]]>L17,0,IF(Table5[[#This Row],[Max nr of repeation for non-home terminal legs]]>M17,0,1)) -> 1 | J17: =IF(Table5[[#This Row],[Total time (Sailing + port stay) (h)]]>=168,0,1) -> 1 | L17: 2 | M17: 5
A20: Applicable if equals to 1 | B20: Not usable | C20: Column1
A21: =IF(SUM(Table5[Check whether applicable])=6,1,0) -> 1 | B21: =IF(SUM(Table5[Check whether sailing + port stay too large])=6,1,0) -> 1
A22: Note: If it is 0, it means the vessel routes created by the tool do not include all the possibility
A23: 1 | B23: 1 | C23: The tool is applicable and pre-defined building block set is suitable
A24: 0 | B24: 1 | C24: The tool is applicable but pre-defined building block set does not include all the possibility of vessel routing
A25: 1 | B25: 0 | C25: The tool is not applicable since sailing time exceeds 168 hours
A26: 0 | B26: 0 | C26: The tool is not applicable since sailing time exceeds 168 hours

Sheet Start_Page
D7: Vessel Planning Tool

Sheet Input_FleetSize
B9: Total vessel operation time (h/week) | C9: 160 | O9: Building blocks for routing | P9: Cost (fuel cost + port fee) (€) | Q9: Sailing time (h) | S9: # | T9: Customers | U9: Origin | V9: Destination | W9: Weekly demand volume (containers) | X9: TEU factors (/container) | Y9: Average weight (ton/container) | Z9: Unit outsourcing cost (€/container) | AA9: Unit handling cost (€/container) | AB9: Unit price of own sailing (€/container) | AC9: Unit price of outsourcing (€/container)
B10: Average terminal handling speed (container/h) | C10: 16 | O10: 1_A1->T1->A2 | P10: 10000 | Q10: 36 | S10: 1 | T10: Full customer 1 | U10: T | V10: A | W10: 510 | X10: 2 | Y10: 35 | Z10: 300 | AA10: 50 | AB10: 300 | AC10: 300
O11: 2_A1->T1->A2 | P11: 10000 | Q11: 36 | S11: 2 | T11: Full customer 2 | U11: A | V11: T | W11: 85 | X11: 1 | Y11: 30 | Z11: 150 | AA11: 60 | AB11: 150 | AC11: 150
B12: Vessel Rent (€/week/vessel) | C12: 40000 | O12: 3_A1->T1->A2 | P12: 10000 | Q12: 36 | S12: 3 | T12: Full customer 3 | U12: A | V12: T | W12: 4 | X12: 2 | Y12: 30 | Z12: 150 | AA12: 60 | AB12: 150 | AC12: 150
B13: Discount rate on vessel rent from 2nd vessel | C13: 0.05 | O13: 4_A1->T1->A2 | P13: 10000 | Q13: 36 | S13: 4 | T13: Full customer 4 | U13: Z | V13: T | W13: 100 | X13: 1 | Y13: 30 | Z13: 150 | AA13: 60 | AB13: 150 | AC13: 150
O14: 5_A1->Z1->A2 | P14: 9000 | Q14: 30 | S14: 5 | T14: Full customer 5 | U14: A | V14: T | W14: 30 | X14: 2 | Y14: 30 | Z14: 150 | AA14: 60 | AB14: 150 | AC14: 150
O15: 6_A1->Z1->A2 | P15: 9000 | Q15: 30 | S15: 6 | T15: Full customer 6 | U15: A | V15: Z | W15: 24 | X15: 1 | Y15: 35 | Z15: 150 | AA15: 60 | AB15: 150 | AC15: 150
B16: Vessel volume capacity (TEU) | C16: A1 | D16: A2 | E16: T1 | F16: T2 | G16: T3 | H16: T4 | I16: Z1 | J16: Z2 | K16: Z3 | L16: Z4 | M16: Z5 | O16: 7_A1->Z1->A2 | P16: 9000 | Q16: 30 | S16: 7 | T16: Full customer 7 | U16: A | V16: T | W16: 2 | X16: 2 | Y16: 30 | Z16: 150 | AA16: 60 | AB16: 150 | AC16: 150
B17: A1 | C17: 0 | D17: 0 | E17: 400 | F17: 400 | G17: 400 | H17: 400 | I17: 400 | J17: 400 | K17: 400 | L17: 400 | M17: 400 | O17: 8_A1->Z1->A2 | P17: 9000 | Q17: 30 | S17: 8 | T17: Full customer 8 | U17: A | V17: T | W17: 14 | X17: 1 | Y17: 30 | Z17: 150 | AA17: 60 | AB17: 150 | AC17: 150
B18: A2 | C18: 0 | D18: 0 | E18: 400 | F18: 400 | G18: 400 | H18: 400 | I18: 400 | J18: 400 | K18: 400 | L18: 400 | M18: 400 | O18: 9_A1->T1->Z1->A2 | P18: 11000 | Q18: 59 | S18: 9 | T18: Full customer 9 | U18: A | V18: T | W18: 39 | X18: 2 | Y18: 28 | Z18: 150 | AA18: 60 | AB18: 150 | AC18: 150
B19: T1 | C19: 400 | D19: 400 | E19: 0 | F19: 0 | G19: 0 | H19: 0 | I19: 400 | J19: 400 | K19: 400 | L19: 400 | M19: 400 | O19: 10_A1->T1->Z1->A2 | P19: 11000 | Q19: 59 | S19: 10 | T19: Full customer 10 | U19: A | V19: T | W19: 15 | X19: 1 | Y19: 30 | Z19: 150 | AA19: 60 | AB19: 150 | AC19: 150
B20: T2 | C20: 400 | D20: 400 | E20: 0 | F20: 0 | G20: 0 | H20: 0 | I20: 400 | J20: 400 | K20: 400 | L20: 400 | M20: 400 | O20: 11_A1->T1->Z1->A2 | P20: 11000 | Q20: 59 | S20: 11 | T20: Full customer 11 | U20: A | V20: T | W20: 30 | X20: 2 | Y20: 30 | Z20: 150 | AA20: 60 | AB20: 150 | AC20: 150
B21: T3 | C21: 400 | D21: 400 | E21: 0 | F21: 0 | G21: 0 | H21: 0 | I21: 400 | J21: 400 | K21: 400 | L21: 400 | M21: 400 | O21: 12_A1->T1->Z1->T2->Z2->A2 | P21: 16000 | Q21: 111 | S21: 12 | T21: Full customer 12 | U21: Z | V21: T | W21: 2 | X21: 1 | Y21: 20 | Z21: 150 | AA21: 60 | AB21: 150 | AC21: 150
B22: T4 | C22: 400 | D22: 400 | E22: 0 | F22: 0 | G22: 0 | H22: 0 | I22: 400 | J22: 400 | K22: 400 | L22: 400 | M22: 400 | O22: 13_A1->T1->Z1->T2->Z2->A2 | P22: 16000 | Q22: 111 | S22: 13 | T22: Full customer 13 | U22: A | V22: T | W22: 1 | X22: 2 | Y22: 30 | Z22: 150 | AA22: 60 | AB22: 150 | AC22: 150
B23: Z1 | C23: 400 | D23: 400 | E23: 400 | F23: 400 | G23: 400 | H23: 400 | I23: 0 | J23: 0 | K23: 0 | L23: 0 | M23: 0 | O23: 14_A1->T1->Z1->T2->Z2->T3->Z3->A2 | P23: 23000 | Q23: 163 | S23: 14 | T23: Full customer 14 | U23: A | V23: T | W23: 1 | X23: 1 | Y23: 30 | Z23: 150 | AA23: 60 | AB23: 150 | AC23: 150
B24: Z2 | C24: 400 | D24: 400 | E24: 400 | F24: 400 | G24: 400 | H24: 400 | I24: 0 | J24: 0 | K24: 0 | L24: 0 | M24: 0 | O24: 15_A1->T1->Z1->T2->Z2->T3->Z3->T4->Z4->A2 | P24: 28000 | Q24: 215 | S24: 15 | T24: Full customer 15 | U24: A | V24: Z | W24: 27 | X24: 2 | Y24: 30 | Z24: 150 | AA24: 60 | AB24: 150 | AC24: 150
B25: Z3 | C25: 400 | D25: 400 | E25: 400 | F25: 400 | G25: 400 | H25: 400 | I25: 0 | J25: 0 | K25: 0 | L25: 0 | M25: 0 | O25: 16_A1->Z1->T1->A2 | P25: 11000 | Q25: 59 | S25: 16 | T25: Full customer 16 | U25: A | V25: T | W25: 5 | X25: 1 | Y25: 25 | Z25: 150 | AA25: 60 | AB25: 150 | AC25: 150
B26: Z4 | C26: 400 | D26: 400 | E26: 400 | F26: 400 | G26: 400 | H26: 400 | I26: 0 | J26: 0 | K26: 0 | L26: 0 | M26: 0 | O26: 17_A1->Z1->T1->A2 | P26: 11000 | Q26: 59 | S26: 17 | T26: Full customer 17 | U26: A | V26: Z | W26: 7 | X26: 2 | Y26: 30 | Z26: 150 | AA26: 60 | AB26: 150 | AC26: 150
B27: Z5 | C27: 400 | D27: 400 | E27: 400 | F27: 400 | G27: 400 | H27: 400 | I27: 0 | J27: 0 | K27: 0 | L27: 0 | M27: 0 | O27: 18_A1->Z1->T1->A2 | P27: 11000 | Q27: 59 | S27: 18 | T27: Full customer 18 | U27: Z | V27: T | W27: 14 | X27: 1 | Y27: 30 | Z27: 180 | AA27: 80 | AB27: 180 | AC27: 180
O28: 19_A1->Z1->T1->Z2->T2->A2 | P28: 16000 | Q28: 111 | S28: 19 | T28: Full customer 19 | U28: Z | V28: T | W28: 30 | X28: 2 | Y28: 30 | Z28: 180 | AA28: 80 | AB28: 180 | AC28: 180
B29: Vessel weight capacity (ton) | C29: A1 | D29: A2 | E29: T1 | F29: T2 | G29: T3 | H29: T4 | I29: Z1 | J29: Z2 | K29: Z3 | L29: Z4 | M29: Z5 | O29: 20_A1->Z1->T1->Z2->T2->A2 | P29: 16000 | Q29: 111 | S29: 20 | T29: Full customer 20 | U29: Z | V29: T | W29: 4 | X29: 1 | Y29: 30 | Z29: 180 | AA29: 80 | AB29: 180 | AC29: 180
B30: A1 | C30: 0 | D30: 0 | E30: 3500 | F30: 3500 | G30: 3500 | H30: 3500 | I30: 3500 | J30: 3500 | K30: 3500 | L30: 3500 | M30: 3500 | O30: 21_A1->Z1->T1->Z2->T2->Z3->T3->A2 | P30: 24000 | Q30: 163 | S30: 21 | T30: Full customer 21 | U30: Z | V30: T | W30: 1 | X30: 2 | Y30: 30 | Z30: 180 | AA30: 80 | AB30: 180 | AC30: 180
B31: A2 | C31: 0 | D31: 0 | E31: 3500 | F31: 3500 | G31: 3500 | H31: 3500 | I31: 3500 | J31: 3500 | K31: 3500 | L31: 3500 | M31: 3500 | O31: 22_A1->Z1->T1->Z2->T2->Z3->T3->Z4->T4->A2 | P31: 28000 | Q31: 215 | S31: 22 | T31: Full customer 22 | U31: Z | V31: T | W31: 3 | X31: 1 | Y31: 30 | Z31: 180 | AA31: 80 | AB31: 180 | AC31: 180
B32: T1 | C32: 3500 | D32: 3500 | E32: 0 | F32: 0 | G32: 0 | H32: 0 | I32: 3500 | J32: 3500 | K32: 3500 | L32: 3500 | M32: 3500 | O32: 23_A1->T1->Z1->T2->A2 | P32: 15000 | Q32: 88 | S32: 23 | T32: Full customer 23 | U32: Z | V32: T | W32: 5 | X32: 2 | Y32: 30 | Z32: 180 | AA32: 80 | AB32: 180 | AC32: 180
B33: T2 | C33: 3500 | D33: 3500 | E33: 0 | F33: 0 | G33: 0 | H33: 0 | I33: 3500 | J33: 3500 | K33: 3500 | L33: 3500 | M33: 3500 | O33: 24_A1->T1->Z1->T2->A2 | P33: 15000 | Q33: 88 | S33: 24 | T33: Full customer 24 | U33: A | V33: T | W33: 4 | X33: 2.25 | Y33: 30 | Z33: 300 | AA33: 60 | AB33: 300 | AC33: 300
B34: T3 | C34: 3500 | D34: 3500 | E34: 0 | F34: 0 | G34: 0 | H34: 0 | I34: 3500 | J34: 3500 | K34: 3500 | L34: 3500 | M34: 3500 | O34: 25_A1->T1->Z1->T2->Z2->T3->A2 | P34: 21000 | Q34: 140 | S34: 25 | T34: Full customer 25 | U34: A | V34: T | W34: 5 | X34: 2.25 | Y34: 30 | Z34: 300 | AA34: 60 | AB34: 300 | AC34: 300
B35: T4 | C35: 3500 | D35: 3500 | E35: 0 | F35: 0 | G35: 0 | H35: 0 | I35: 3500 | J35: 3500 | K35: 3500 | L35: 3500 | M35: 3500 | O35: 26_A1->T1->Z1->T2->Z2->T3->Z3->T4->A2 | P35: 28000 | Q35: 192 | S35: 26 | T35: Full customer 26 | U35: Z | V35: T | W35: 11 | X35: 2.25 | Y35: 30 | Z35: 300 | AA35: 80 | AB35: 300 | AC35: 300
B36: Z1 | C36: 3500 | D36: 3500 | E36: 3500 | F36: 3500 | G36: 3500 | H36: 3500 | I36: 0 | J36: 0 | K36: 0 | L36: 0 | M36: 0 | O36: 27_A1->Z1->T1->Z2->A2 | P36: 13000 | Q36: 82 | S36: 27 | T36: Full customer 27 | U36: Z | V36: T | W36: 14 | X36: 2 | Y36: 30 | Z36: 160 | AA36: 35 | AB36: 160 | AC36: 160
B37: Z2 | C37: 3500 | D37: 3500 | E37: 3500 | F37: 3500 | G37: 3500 | H37: 3500 | I37: 0 | J37: 0 | K37: 0 | L37: 0 | M37: 0 | O37: 28_A1->Z1->T1->Z2->A2 | P37: 13000 | Q37: 82 | S37: 28 | T37: Full customer 28 | U37: Z | V37: A | W37: 20 | X37: 1 | Y37: 30 | Z37: 120 | AA37: 51 | AB37: 120 | AC37: 120
B38: Z3 | C38: 3500 | D38: 3500 | E38: 3500 | F38: 3500 | G38: 3500 | H38: 3500 | I38: 0 | J38: 0 | K38: 0 | L38: 0 | M38: 0 | O38: 29_A1->Z1->T1->Z2->A2 | P38: 13000 | Q38: 82 | S38: 29 | T38: Empty customer 1 | U38: A | V38: T | W38: 147 | X38: 2 | Y38: 6 | Z38: 300 | AA38: 50 | AB38: 300 | AC38: 300
B39: Z4 | C39: 3500 | D39: 3500 | E39: 3500 | F39: 3500 | G39: 3500 | H39: 3500 | I39: 0 | J39: 0 | K39: 0 | L39: 0 | M39: 0 | O39: 30_A1->Z1->T1->Z2->T2->Z3->A2 | P39: 18000 | Q39: 134 | S39: 30 | T39: Empty customer 2 | U39: T | V39: A | W39: 4 | X39: 1 | Y39: 4 | Z39: 150 | AA39: 60 | AB39: 150 | AC39: 150
B40: Z5 | C40: 3500 | D40: 3500 | E40: 3500 | F40: 3500 | G40: 3500 | H40: 3500 | I40: 0 | J40: 0 | K40: 0 | L40: 0 | M40: 0 | O40: 31_A1->Z1->T1->Z2->T2->Z3->A2 | P40: 18000 | Q40: 134 | S40: 31 | T40: Empty customer 3 | U40: T | V40: A | W40: 38 | X40: 2 | Y40: 3 | Z40: 150 | AA40: 60 | AB40: 150 | AC40: 150
O41: 32_A1->Z1->T1->Z2->T2->Z3->T3->Z4->A2 | P41: 25000 | Q41: 186 | S41: 32 | T41: Empty customer 4 | U41: T | V41: Z | W41: 40 | X41: 1 | Y41: 4 | Z41: 150 | AA41: 80 | AB41: 150 | AC41: 150
O42: 33_A1->Z1->T1->Z2->T2->Z3->T3->Z4->T4->Z5->A2 | P42: 32000 | Q42: 238 | S42: 33 | T42: Empty customer 5 | U42: T | V42: Z | W42: 23 | X42: 2 | Y42: 4 | Z42: 150 | AA42: 80 | AB42: 150 | AC42: 150
S43: 34 | T43: Empty customer 6 | U43: T | V43: A | W43: 13 | X43: 2.25 | Y43: 2 | Z43: 300 | AA43: 60 | AB43: 300 | AC43: 300
S44: 35 | T44: Empty customer 7 | U44: T | V44: A | W44: 5 | X44: 2.25 | Y44: 4 | Z44: 300 | AA44: 60 | AB44: 300 | AC44: 300
S45: 36 | T45: Empty customer 8 | U45: T | V45: Z | W45: 4 | X45: 2.25 | Y45: 4.5 | Z45: 280 | AA45: 80 | AB45: 280 | AC45: 280
S46: 37 | T46: Empty customer 9 | U46: T | V46: Z | W46: 6 | X46: 2 | Y46: 4 | Z46: 160 | AA46: 35 | AB46: 160 | AC46: 160
S47: 38 | T47: Empty customer 10 | U47: A | V47: Z | W47: 2 | X47: 1 | Y47: 4 | Z47: 120 | AA47: 51 | AB47: 120 | AC47: 120
S48: 39
S49: 40
S50: 41
S51: 42
S52: 43
S53: 44
S54: 45
S55: 46
S56: 47
S57: 48
S58: 49
S59: 50
S60: 51
S61: 52
S62: 53
S63: 54
S64: 55
S65: 56
S66: 57
S67: 58
S68: 59
S69: 60
S70: 61
S71: 62
S72: 63
S73: 64
S74: 65
S75: 66
S76: 67
S77: 68
S78: 69
S79: 70
S80: 71
S81: 72
S82: 73
S83: 74
S84: 75
S85: 76
S86: 77
S87: 78
S88: 79
S89: 80
S90: 81
S91: 82
S92: 83
S93: 84
S94: 85
S95: 86
S96: 87
S97: 88
S98: 89
S99: 90
S100: 91
S101: 92
S102: 93
S103: 94
S104: 95
S105: 96
S106: 97
S107: 98
S108: 99
S109: 100

Sheet FleetSizeOptimization
H2: Revenue of own sailing | I2: 249720 | J2: €
H3: Revenue of outsourcing | I3: 49650 | J3: €
H4: Vessel rent cost | I4: -78000 | J4: €
H5: Route cost | I5: -41000 | J5: €
H6: Outsourcing cost | I6: -49650 | J6: €
H7: Handling Cost | I7: -72772 | J7: €
H8: Total profit | I8: 57948 | J8: €

Sheet Output_FleetSize
G2: Profit per customer | P2: Vessel Route Container combination
G3: Customers | H3: Revenue of own sailing (€) | I3: Revenue of outsourcing (€) | J3: Share of vessel rent (€) | K3: Share of sailing cost (€) | L3: Outsoucing cost (€) | M3: Handling cost (€) | N3: Profit (€) | P3: Vessel selection | S3: Routes of each vessel | W3: Vessel operation time | AB3: Volume of own sailing within a building block | AI3: Volume of own sailing between successive building blocks | AO3: Volume of outsourcing
G4: Full customer 1 | H4: 115800 | I4: 37200 | J4: -27929.49907 | K4: -15609.82135 | L4: -37200 | M4: -25500 | N4: 46760.67958 | P4: Vessel 1 | Q4: 1 | S4: Vessel # | T4: Buidling blocks | U4: Whether selected | W4: Vessel # | X4: Total operation time | Y4: Total sailing time | Z4: Total handling time | AB4: Customer | AC4: Vessel # | AD4: Building blocks | AE4: O | AF4: D | AG4: Container volume | AI4: Customer | AJ4: Vessel # | AK4: Building blocks | AL4: Successive building block | AM4: Container volume | AO4: Customer | AP4: Container volume
G5: Full customer 2 | H5: 12750 | J5: -6150.278293 | K5: -2534.898477 | M5: -5100 | N5: -1035.17677 | P5: Vessel 2 | S5: Vessel_1 | T5: 2_A1->T1->A2 | U5: 1 | W5: Vessel_1 | X5: 147.5 | Y5: 72 | Z5: 75.5 | AB5: Full customer 1 | AC5: Vessel_1 | AD5: 2_A1->T1->A2 | AE5: T1 | AF5: A2 | AG5: 100 | AI5: Empty customer 4 | AJ5: Vessel_3 | AK5: 4_A1->T1->A2 | AL5: 16_A1->Z1->T1->A2 | AM5: 40 | AO5: Full customer 1 | AP5: 124
G6: Full customer 3 | H6: 600 | J6: -289.4248609 | K6: -104.1666667 | M6: -240 | N6: -33.59152752 | P6: Vessel 3 | Q6: 1 | S6: Vessel_1 | T6: 4_A1->T1->A2 | U6: 1 | W6: Vessel_3 | X6: 154.25 | Y6: 95 | Z6: 59.25 | AB6: Full customer 1 | AC6: Vessel_1 | AD6: 4_A1->T1->A2 | AE6: T1 | AF6: A2 | AG6: 95 | AI6: Empty customer 5 | AJ6: Vessel_3 | AK6: 4_A1->T1->A2 | AL6: 16_A1->Z1->T1->A2 | AM6: 23 | AO6: Full customer 4 | AP6: 67
G7: Full customer 4 | H7: 4950 | I7: 10050 | J7: -2387.755102 | K7: -1310.469314 | L7: -10050 | M7: -6000 | N7: -4748.224416 | S7: Vessel_3 | T7: 4_A1->T1->A2 | U7: 1 | AB7: Full customer 1 | AC7: Vessel_3 | AD7: 4_A1->T1->A2 | AE7: T1 | AF7: A2 | AG7: 91 | AI7: Empty customer 8 | AJ7: Vessel_3 | AK7: 4_A1->T1->A2 | AL7: 16_A1->Z1->T1->A2 | AM7: 4 | AO7: Full customer 28 | AP7: 20
G8: Full customer 5 | H8: 4500 | J8: -2170.686456 | K8: -1363.636364 | M8: -1800 | N8: -834.32282 | S8: Vessel_3 | T8: 16_A1->Z1->T1->A2 | U8: 1 | AB8: Full customer 1 | AC8: Vessel_3 | AD8: 16_A1->Z1->T1->A2 | AE8: T1 | AF8: A2 | AG8: 100 | AI8: Empty customer 9 | AJ8: Vessel_3 | AK8: 4_A1->T1->A2 | AL8: 16_A1->Z1->T1->A2 | AM8: 6
G9: Full customer 6 | H9: 3600 | J9: -1736.549165 | K9: -953.0685921 | M9: -1440 | N9: -529.6177572 | AB9: Full customer 2 | AC9: Vessel_1 | AD9: 4_A1->T1->A2 | AE9: A1 | AF9: T1 | AG9: 72
G10: Full customer 7 | H10: 300 | J10: -144.7124304 | K10: -71.49621212 | M10: -120 | N10: -36.20864255 | AB10: Full customer 2 | AC10: Vessel_3 | AD10: 4_A1->T1->A2 | AE10: A1 | AF10: T1 | AG10: 13
G11: Full customer 8 | H11: 2100 | J11: -1012.987013 | K11: -636.3636364 | M11: -840 | N11: -389.3506494 | AB11: Full customer 3 | AC11: Vessel_1 | AD11: 4_A1->T1->A2 | AE11: A1 | AF11: T1 | AG11: 4
G12: Full customer 9 | H12: 5850 | J12: -2821.892393 | K12: -1772.727273 | M12: -2340 | N12: -1084.619666 | AB12: Full customer 4 | AC12: Vessel_3 | AD12: 16_A1->Z1->T1->A2 | AE12: Z1 | AF12: T1 | AG12: 33
G13: Full customer 10 | H13: 2250 | J13: -1085.343228 | K13: -761.4213198 | M13: -900 | N13: -496.764548 | AB13: Full customer 5 | AC13: Vessel_1 | AD13: 2_A1->T1->A2 | AE13: A1 | AF13: T1 | AG13: 30
G14: Full customer 11 | H14: 4500 | J14: -2170.686456 | K14: -1363.636364 | M14: -1800 | N14: -834.32282 | AB14: Full customer 6 | AC14: Vessel_3 | AD14: 16_A1->Z1->T1->A2 | AE14: A1 | AF14: Z1 | AG14: 24
G15: Full customer 12 | H15: 300 | J15: -144.7124304 | K15: -79.42238267 | M15: -120 | N15: -44.1348131 | AB15: Full customer 7 | AC15: Vessel_1 | AD15: 2_A1->T1->A2 | AE15: A1 | AF15: T1 | AG15: 1
G16: Full customer 13 | H16: 150 | J16: -72.35621521 | K16: -26.04166667 | M16: -60 | N16: -8.39788188 | AB16: Full customer 7 | AC16: Vessel_1 | AD16: 4_A1->T1->A2 | AE16: A1 | AF16: T1 | AG16: 1
G17: Full customer 14 | H17: 150 | J17: -72.35621521 | K17: -45.45454545 | M17: -60 | N17: -27.81076067 | AB17: Full customer 8 | AC17: Vessel_1 | AD17: 2_A1->T1->A2 | AE17: A1 | AF17: T1 | AG17: 14
G18: Full customer 15 | H18: 4050 | J18: -1953.617811 | K18: -1072.202166 | M18: -1620 | N18: -595.8199768 | AB18: Full customer 9 | AC18: Vessel_1 | AD18: 2_A1->T1->A2 | AE18: A1 | AF18: T1 | AG18: 39
G19: Full customer 16 | H19: 750 | J19: -361.7810761 | K19: -227.2727273 | M19: -300 | N19: -139.0538033 | AB19: Full customer 10 | AC19: Vessel_3 | AD19: 4_A1->T1->A2 | AE19: A1 | AF19: T1 | AG19: 15
G20: Full customer 17 | H20: 1050 | J20: -506.4935065 | K20: -277.9783394 | M20: -420 | N20: -154.4718458 | AB20: Full customer 11 | AC20: Vessel_1 | AD20: 2_A1->T1->A2 | AE20: A1 | AF20: T1 | AG20: 30
G21: Full customer 18 | H21: 2520 | J21: -1012.987013 | K21: -555.9566787 | M21: -1120 | N21: -168.9436917 | AB21: Full customer 12 | AC21: Vessel_3 | AD21: 16_A1->Z1->T1->A2 | AE21: Z1 | AF21: T1 | AG21: 2
G22: Full customer 19 | H22: 5400 | J22: -2170.686456 | K22: -1191.33574 | M22: -2400 | N22: -362.0221965 | AB22: Full customer 13 | AC22: Vessel_1 | AD22: 4_A1->T1->A2 | AE22: A1 | AF22: T1 | AG22: 1
G23: Full customer 20 | H23: 720 | J23: -289.4248609 | K23: -158.8447653 | M23: -320 | N23: -48.2696262 | AB23: Full customer 14 | AC23: Vessel_1 | AD23: 2_A1->T1->A2 | AE23: A1 | AF23: T1 | AG23: 1
G24: Full customer 21 | H24: 180 | J24: -72.35621521 | K24: -39.71119134 | M24: -80 | N24: -12.06740655 | AB24: Full customer 15 | AC24: Vessel_3 | AD24: 16_A1->Z1->T1->A2 | AE24: A1 | AF24: Z1 | AG24: 27
G25: Full customer 22 | H25: 540 | J25: -217.0686456 | K25: -119.133574 | M25: -240 | N25: -36.20221965 | AB25: Full customer 16 | AC25: Vessel_1 | AD25: 2_A1->T1->A2 | AE25: A1 | AF25: T1 | AG25: 5
G26: Full customer 23 | H26: 900 | J26: -361.7810761 | K26: -198.5559567 | M26: -400 | N26: -60.33703275 | AB26: Full customer 17 | AC26: Vessel_3 | AD26: 16_A1->Z1->T1->A2 | AE26: A1 | AF26: Z1 | AG26: 7
G27: Full customer 24 | H27: 1200 | J27: -289.4248609 | K27: -104.1666667 | M27: -240 | N27: 566.4084725 | AB27: Full customer 18 | AC27: Vessel_3 | AD27: 16_A1->Z1->T1->A2 | AE27: Z1 | AF27: T1 | AG27: 14
G28: Full customer 25 | H28: 1500 | J28: -361.7810761 | K28: -130.2083333 | M28: -300 | N28: 708.0105906 | AB28: Full customer 19 | AC28: Vessel_3 | AD28: 16_A1->Z1->T1->A2 | AE28: Z1 | AF28: T1 | AG28: 30
G29: Full customer 26 | H29: 3300 | J29: -795.9183673 | K29: -436.8231047 | M29: -880 | N29: 1187.258528 | AB29: Full customer 20 | AC29: Vessel_3 | AD29: 16_A1->Z1->T1->A2 | AE29: Z1 | AF29: T1 | AG29: 4
G30: Full customer 27 | H30: 2240 | J30: -1012.987013 | K30: -555.9566787 | M30: -490 | N30: 181.0563083 | AB30: Full customer 21 | AC30: Vessel_3 | AD30: 16_A1->Z1->T1->A2 | AE30: Z1 | AF30: T1 | AG30: 1
G31: Full customer 28 | I31: 2400 | L31: -2400 | M31: -1020 | N31: -1020 | AB31: Full customer 22 | AC31: Vessel_3 | AD31: 16_A1->Z1->T1->A2 | AE31: Z1 | AF31: T1 | AG31: 3
G32: Empty customer 1 | H32: 44100 | J32: -10636.36364 | K32: -3828.125 | M32: -7350 | N32: 22285.51136 | AB32: Full customer 23 | AC32: Vessel_3 | AD32: 16_A1->Z1->T1->A2 | AE32: Z1 | AF32: T1 | AG32: 5
G33: Empty customer 2 | H33: 600 | J33: -289.4248609 | K33: -203.0456853 | M33: -240 | N33: -132.4705461 | AB33: Full customer 24 | AC33: Vessel_1 | AD33: 4_A1->T1->A2 | AE33: A1 | AF33: T1 | AG33: 4
G34: Empty customer 3 | H34: 5700 | J34: -2749.536178 | K34: -989.5833333 | M34: -2280 | N34: -319.1195114 | AB34: Full customer 25 | AC34: Vessel_1 | AD34: 4_A1->T1->A2 | AE34: A1 | AF34: T1 | AG34: 5
G35: Empty customer 4 | H35: 6000 | J35: -2894.248609 | K35: -2030.456853 | M35: -3200 | N35: -2124.705461 | AB35: Full customer 26 | AC35: Vessel_3 | AD35: 16_A1->Z1->T1->A2 | AE35: Z1 | AF35: T1 | AG35: 11
G36: Empty customer 5 | H36: 3450 | J36: -1664.19295 | K36: -1167.51269 | M36: -1840 | N36: -1221.70564 | AB36: Full customer 27 | AC36: Vessel_3 | AD36: 16_A1->Z1->T1->A2 | AE36: Z1 | AF36: T1 | AG36: 14
G37: Empty customer 6 | H37: 3900 | J37: -940.6307978 | K37: -338.5416667 | M37: -780 | N37: 1840.827536 | AB37: Empty customer 1 | AC37: Vessel_1 | AD37: 4_A1->T1->A2 | AE37: A1 | AF37: T1 | AG37: 147
G38: Empty customer 7 | H38: 1500 | J38: -361.7810761 | K38: -154.928088 | M38: -300 | N38: 683.2908359 | AB38: Empty customer 2 | AC38: Vessel_3 | AD38: 4_A1->T1->A2 | AE38: T1 | AF38: A2 | AG38: 4
G39: Empty customer 8 | H39: 1120 | J39: -289.4248609 | K39: -203.0456853 | M39: -320 | N39: 307.5294539 | AB39: Empty customer 3 | AC39: Vessel_1 | AD39: 4_A1->T1->A2 | AE39: T1 | AF39: A2 | AG39: 38
G40: Empty customer 9 | H40: 960 | J40: -434.1372913 | K40: -304.5685279 | M40: -210 | N40: 11.2941808 | AB40: Empty customer 6 | AC40: Vessel_1 | AD40: 4_A1->T1->A2 | AE40: T1 | AF40: A2 | AG40: 13
G41: Empty customer 10 | H41: 240 | J41: -144.7124304 | K41: -79.42238267 | M41: -102 | N41: -86.1348131 | AB41: Empty customer 7 | AC41: Vessel_1 | AD41: 4_A1->T1->A2 | AE41: T1 | AF41: A2 | AG41: 4
AB42: Empty customer 7 | AC42: Vessel_3 | AD42: 4_A1->T1->A2 | AE42: T1 | AF42: A2 | AG42: 1
G43: Total | H43: =SUM(H4:H41) -> 249720 | I43: =SUM(I4:I41) -> 49650 | J43: -78000 | K43: -41000 | L43: -49650 | M43: -72772 | N43: 57948 | AB43: Empty customer 10 | AC43: Vessel_3 | AD43: 16_A1->Z1->T1->A2 | AE43: A1 | AF43: Z1 | AG43: 2

Sheet OrderScenario_PortStayTime
C9: Orders | D9: Origin | E9: Destination | F9: Scenario 1 (Base) | L9: Scenario 2 (90%) | R9: Scenario 3 (80%) | X9: Scenario 4 (110%) | AD9: Scenario 5 (120%) | AR9: Due time
F10: Demand volume total | G10: Demand volume Vessel 1 | H10: Demand volume Vessel 2 | I10: Demand volume Vessel 3 | J10: Available time at origin terminal | K10: Due time at destination terminal | L10: Demand volume total | M10: Demand volume Vessel 1 | N10: Demand volume Vessel 2 | O10: Demand volume Vessel 3 | P10: Available time at origin terminal | Q10: Due time at destination terminal | R10: Demand volume total | S10: Demand volume Vessel 1 | T10: Demand volume Vessel 2 | U10: Demand volume Vessel 3 | V10: Available time at origin terminal | W10: Due time at destination terminal | X10: Demand volume total | Y10: Demand volume Vessel 1 | Z10: Demand volume Vessel 2 | AA10: Demand volume Vessel 3 | AB10: Available time at origin terminal | AC10: Due time at destination terminal | AD10: Demand volume total | AE10: Demand volume Vessel 1 | AF10: Demand volume Vessel 2 | AG10: Demand volume Vessel 3 | AH10: Available time at origin terminal | AI10: Due time at destination terminal | AK10: TEU factor (/container) | AL10: Average weight (ton/container) | AM10: Unit outsourcing cost (€/container) | AN10: Unit handling cost (€/container) | AO10: Unit price of own sailing (€/container) | AP10: Unit price of outsourcing (€/container) | AQ10: Order delay penalty (€/h) | AR10: Due date (days/ working days) | AS10: Number of days/ working days
B11: Full | C11: Full customer 1 | D11: T | E11: A | F11: 400 | G11: 98 | H11: 172 | I11: 130 | J11: 76 | K11: 168 | L11: 360 | M11: 194 | N11: 82 | O11: 84 | P11: 76 | Q11: 168 | R11: 320 | S11: 91 | T11: 99 | U11: 130 | V11: 42 | W11: 144 | X11: 440 | Y11: 165 | Z11: 81 | AA11: 194 | AB11: 0 | AC11: 120 | AD11: 480 | AE11: 197 | AF11: 80 | AG11: 203 | AH11: 76 | AI11: 168 | AK11: 2 | AL11: 35 | AM11: 450 | AN11: 50 | AO11: 300 | AP11: 300 | AQ11: 2 | AR11: Days | AS11: 5
C12: Full customer 2 | D12: A | E12: T | F12: 85 | G12: 0 | H12: 0 | I12: 85 | J12: 44 | K12: 96 | L12: 77 | M12: 0 | N12: 77 | O12: 0 | P12: 1 | Q12: 96 | R12: 68 | S12: 64 | T12: 0 | U12: 4 | V12: 6 | W12: 96 | X12: 94 | Y12: 64 | Z12: 0 | AA12: 30 | AB12: 42 | AC12: 96 | AD12: 102 | AE12: 0 | AF12: 0 | AG12: 102 | AH12: 5 | AI12: 96 | AK12: 1 | AL12: 30 | AM12: 450 | AN12: 60 | AO12: 150 | AP12: 150 | AQ12: 2 | AR12: Working days | AS12: 3
C13: Full customer 3 | D13: A | E13: T | F13: 4 | G13: 0 | H13: 0 | I13: 4 | J13: 9 | K13: 96 | L13: 4 | M13: 0 | N13: 4 | O13: 0 | P13: 69 | Q13: 264 | R13: 3 | S13: 0 | T13: 3 | U13: 0 | V13: 31 | W13: 96 | X13: 4 | Y13: 0 | Z13: 0 | AA13: 4 | AB13: 64 | AC13: 264 | AD13: 5 | AE13: 5 | AF13: 0 | AG13: 0 | AH13: 45 | AI13: 96 | AK13: 2 | AL13: 30 | AM13: 450 | AN13: 60 | AO13: 150 | AP13: 150 | AQ13: 2 | AR13: Working days | AS13: 3
C14: Full customer 4 | D14: A | E14: T | F14: 100 | G14: 43 | H14: 49 | I14: 8 | J14: 10 | K14: 96 | L14: 90 | M14: 4 | N14: 0 | O14: 86 | P14: 25 | Q14: 96 | R14: 80 | S14: 0 | T14: 80 | U14: 0 | V14: 3 | W14: 96 | X14: 110 | Y14: 1 | Z14: 73 | AA14: 36 | AB14: 51 | AC14: 264 | AD14: 120 | AE14: 27 | AF14: 18 | AG14: 75 | AH14: 28 | AI14: 96 | AK14: 1 | AL14: 30 | AM14: 450 | AN14: 60 | AO14: 150 | AP14: 150 | AQ14: 2 | AR14: Working days | AS14: 3
C15: Full customer 5 | D15: A | E15: T | F15: 30 | G15: 0 | H15: 30 | I15: 0 | J15: 88 | K15: 120 | L15: 27 | M15: 27 | N15: 0 | O15: 0 | P15: 87 | Q15: 120 | R15: 24 | S15: 23 | T15: 0 | U15: 1 | V15: 34 | W15: 96 | X15: 33 | Y15: 25 | Z15: 0 | AA15: 8 | AB15: 41 | AC15: 96 | AD15: 36 | AE15: 36 | AF15: 0 | AG15: 0 | AH15: 11 | AI15: 96 | AK15: 2 | AL15: 30 | AM15: 450 | AN15: 60 | AO15: 150 | AP15: 150 | AQ15: 2 | AR15: Working days | AS15: 3
C16: Full customer 6 | D16: A | E16: T | F16: 24 | G16: 0 | H16: 0 | I16: 24 | J16: 71 | K16: 264 | L16: 22 | M16: 0 | N16: 22 | O16: 0 | P16: 15 | Q16: 96 | R16: 19 | S16: 0 | T16: 0 | U16: 19 | V16: 19 | W16: 96 | X16: 26 | Y16: 0 | Z16: 0 | AA16: 26 | AB16: 52 | AC16: 264 | AD16: 29 | AE16: 0 | AF16: 29 | AG16: 0 | AH16: 52 | AI16: 264 | AK16: 1 | AL16: 35 | AM16: 450 | AN16: 60 | AO16: 150 | AP16: 150 | AQ16: 2 | AR16: Working days | AS16: 3
C17: Full customer 7 | D17: A | E17: T | F17: 2 | G17: 0 | H17: 2 | I17: 0 | J17: 74 | K17: 120 | L17: 2 | M17: 2 | N17: 0 | O17: 0 | P17: 68 | Q17: 264 | R17: 2 | S17: 0 | T17: 0 | U17: 2 | V17: 8 | W17: 96 | X17: 2 | Y17: 0 | Z17: 2 | AA17: 0 | AB17: 51 | AC17: 264 | AD17: 2 | AE17: 0 | AF17: 0 | AG17: 2 | AH17: 48 | AI17: 264 | AK17: 2 | AL17: 30 | AM17: 450 | AN17: 60 | AO17: 150 | AP17: 150 | AQ17: 2 | AR17: Working days | AS17: 3
C18: Full customer 8 | D18: A | E18: T | F18: 14 | G18: 0 | H18: 0 | I18: 14 | J18: 55 | K18: 264 | L18: 13 | M18: 13 | N18: 0 | O18: 0 | P18: 25 | Q18: 96 | R18: 11 | S18: 0 | T18: 0 | U18: 11 | V18: 15 | W18: 96 | X18: 15 | Y18: 0 | Z18: 0 | AA18: 15 | AB18: 1 | AC18: 96 | AD18: 17 | AE18: 17 | AF18: 0 | AG18: 0 | AH18: 76 | AI18: 120 | AK18: 1 | AL18: 30 | AM18: 450 | AN18: 60 | AO18: 150 | AP18: 150 | AQ18: 2 | AR18: Working days | AS18: 3
C19: Full customer 9 | D19: A | E19: T | F19: 39 | G19: 39 | H19: 0 | I19: 0 | J19: 92 | K19: 120 | L19: 35 | M19: 35 | N19: 0 | O19: 0 | P19: 31 | Q19: 96 | R19: 31 | S19: 31 | T19: 0 | U19: 0 | V19: 57 | W19: 264 | X19: 43 | Y19: 0 | Z19: 0 | AA19: 43 | AB19: 69 | AC19: 264 | AD19: 47 | AE19: 47 | AF19: 0 | AG19: 0 | AH19: 66 | AI19: 264 | AK19: 2 | AL19: 28 | AM19: 450 | AN19: 60 | AO19: 150 | AP19: 150 | AQ19: 2 | AR19: Working days | AS19: 3
C20: Full customer 10 | D20: A | E20: T | F20: 15 | G20: 0 | H20: 0 | I20: 15 | J20: 64 | K20: 264 | L20: 14 | M20: 10 | N20: 4 | O20: 0 | P20: 36 | Q20: 96 | R20: 12 | S20: 0 | T20: 0 | U20: 12 | V20: 57 | W20: 264 | X20: 17 | Y20: 17 | Z20: 0 | AA20: 0 | AB20: 95 | AC20: 120 | AD20: 18 | AE20: 18 | AF20: 0 | AG20: 0 | AH20: 43 | AI20: 96 | AK20: 1 | AL20: 30 | AM20: 450 | AN20: 60 | AO20: 150 | AP20: 150 | AQ20: 2 | AR20: Working days | AS20: 3
C21: Full customer 11 | D21: A | E21: T | F21: 30 | G21: 0 | H21: 30 | I21: 0 | J21: 13 | K21: 96 | L21: 27 | M21: 27 | N21: 0 | O21: 0 | P21: 68 | Q21: 264 | R21: 24 | S21: 0 | T21: 0 | U21: 24 | V21: 2 | W21: 96 | X21: 33 | Y21: 0 | Z21: 33 | AA21: 0 | AB21: 32 | AC21: 96 | AD21: 36 | AE21: 0 | AF21: 0 | AG21: 36 | AH21: 69 | AI21: 264 | AK21: 2 | AL21: 30 | AM21: 450 | AN21: 60 | AO21: 150 | AP21: 150 | AQ21: 2 | AR21: Working days | AS21: 3
C22: Full customer 12 | D22: A | E22: T | F22: 2 | G22: 2 | H22: 0 | I22: 0 | J22: 10 | K22: 96 | L22: 2 | M22: 2 | N22: 0 | O22: 0 | P22: 61 | Q22: 264 | R22: 2 | S22: 0 | T22: 0 | U22: 2 | V22: 24 | W22: 96 | X22: 2 | Y22: 0 | Z22: 0 | AA22: 2 | AB22: 62 | AC22: 264 | AD22: 2 | AE22: 2 | AF22: 0 | AG22: 0 | AH22: 65 | AI22: 264 | AK22: 1 | AL22: 20 | AM22: 450 | AN22: 60 | AO22: 150 | AP22: 150 | AQ22: 2 | AR22: Working days | AS22: 3
C23: Full customer 13 | D23: A | E23: T | F23: 1 | G23: 0 | H23: 0 | I23: 1 | J23: 52 | K23: 264 | L23: 1 | M23: 0 | N23: 1 | O23: 0 | P23: 77 | Q23: 120 | R23: 1 | S23: 0 | T23: 0 | U23: 1 | V23: 3 | W23: 96 | X23: 1 | Y23: 0 | Z23: 0 | AA23: 1 | AB23: 34 | AC23: 96 | AD23: 1 | AE23: 0 | AF23: 0 | AG23: 1 | AH23: 44 | AI23: 96 | AK23: 2 | AL23: 30 | AM23: 450 | AN23: 60 | AO23: 150 | AP23: 150 | AQ23: 2 | AR23: Working days | AS23: 3
C24: Full customer 14 | D24: A | E24: T | F24: 1 | G24: 0 | H24: 0 | I24: 1 | J24: 6 | K24: 96 | L24: 1 | M24: 0 | N24: 1 | O24: 0 | P24: 89 | Q24: 120 | R24: 1 | S24: 0 | T24: 1 | U24: 0 | V24: 27 | W24: 96 | X24: 1 | Y24: 0 | Z24: 0 | AA24: 1 | AB24: 40 | AC24: 96 | AD24: 1 | AE24: 1 | AF24: 0 | AG24: 0 | AH24: 19 | AI24: 96 | AK24: 1 | AL24: 30 | AM24: 450 | AN24: 60 | AO24: 150 | AP24: 150 | AQ24: 2 | AR24: Working days | AS24: 3
C25: Full customer 15 | D25: A | E25: T | F25: 27 | G25: 27 | H25: 0 | I25: 0 | J25: 93 | K25: 120 | L25: 24 | M25: 24 | N25: 0 | O25: 0 | P25: 71 | Q25: 264 | R25: 22 | S25: 0 | T25: 22 | U25: 0 | V25: 39 | W25: 96 | X25: 30 | Y25: 0 | Z25: 0 | AA25: 30 | AB25: 67 | AC25: 264 | AD25: 32 | AE25: 32 | AF25: 0 | AG25: 0 | AH25: 80 | AI25: 120 | AK25: 2 | AL25: 30 | AM25: 450 | AN25: 60 | AO25: 150 | AP25: 150 | AQ25: 2 | AR25: Working days | AS25: 3
C26: Full customer 16 | D26: A | E26: T | F26: 5 | G26: 5 | H26: 0 | I26: 0 | J26: 42 | K26: 96 | L26: 5 | M26: 0 | N26: 0 | O26: 5 | P26: 90 | Q26: 120 | R26: 4 | S26: 0 | T26: 0 | U26: 4 | V26: 93 | W26: 120 | X26: 6 | Y26: 6 | Z26: 0 | AA26: 0 | AB26: 18 | AC26: 96 | AD26: 6 | AE26: 6 | AF26: 0 | AG26: 0 | AH26: 91 | AI26: 120 | AK26: 1 | AL26: 25 | AM26: 450 | AN26: 60 | AO26: 150 | AP26: 150 | AQ26: 2 | AR26: Working days | AS26: 3
C27: Full customer 17 | D27: A | E27: T | F27: 7 | G27: 0 | H27: 0 | I27: 7 | J27: 48 | K27: 264 | L27: 6 | M27: 6 | N27: 0 | O27: 0 | P27: 20 | Q27: 96 | R27: 6 | S27: 0 | T27: 0 | U27: 6 | V27: 30 | W27: 96 | X27: 8 | Y27: 0 | Z27: 8 | AA27: 0 | AB27: 10 | AC27: 96 | AD27: 8 | AE27: 8 | AF27: 0 | AG27: 0 | AH27: 54 | AI27: 264 | AK27: 2 | AL27: 30 | AM27: 450 | AN27: 60 | AO27: 150 | AP27: 150 | AQ27: 2 | AR27: Working days | AS27: 3
C28: Full customer 18 | D28: Z | E28: T | F28: 14 | G28: 0 | H28: 14 | I28: 0 | J28: 38 | K28: 96 | L28: 13 | M28: 13 | N28: 0 | O28: 0 | P28: 18 | Q28: 96 | R28: 11 | S28: 0 | T28: 0 | U28: 11 | V28: 70 | W28: 264 | X28: 15 | Y28: 15 | Z28: 0 | AA28: 0 | AB28: 3 | AC28: 96 | AD28: 17 | AE28: 0 | AF28: 17 | AG28: 0 | AH28: 10 | AI28: 96 | AK28: 1 | AL28: 30 | AM28: 450 | AN28: 80 | AO28: 180 | AP28: 180 | AQ28: 2 | AR28: Working days | AS28: 3
C29: Full customer 19 | D29: Z | E29: T | F29: 30 | G29: 0 | H29: 30 | I29: 0 | J29: 35 | K29: 96 | L29: 27 | M29: 27 | N29: 0 | O29: 0 | P29: 51 | Q29: 264 | R29: 24 | S29: 0 | T29: 0 | U29: 24 | V29: 74 | W29: 120 | X29: 33 | Y29: 33 | Z29: 0 | AA29: 0 | AB29: 26 | AC29: 96 | AD29: 36 | AE29: 0 | AF29: 36 | AG29: 0 | AH29: 32 | AI29: 96 | AK29: 2 | AL29: 30 | AM29: 450 | AN29: 80 | AO29: 180 | AP29: 180 | AQ29: 2 | AR29: Working days | AS29: 3
C30: Full customer 20 | D30: Z | E30: T | F30: 4 | G30: 0 | H30: 4 | I30: 0 | J30: 5 | K30: 96 | L30: 4 | M30: 4 | N30: 0 | O30: 0 | P30: 35 | Q30: 96 | R30: 3 | S30: 0 | T30: 0 | U30: 3 | V30: 79 | W30: 120 | X30: 4 | Y30: 4 | Z30: 0 | AA30: 0 | AB30: 30 | AC30: 96 | AD30: 5 | AE30: 0 | AF30: 5 | AG30: 0 | AH30: 76 | AI30: 120 | AK30: 1 | AL30: 30 | AM30: 450 | AN30: 80 | AO30: 180 | AP30: 180 | AQ30: 2 | AR30: Working days | AS30: 3
C31: Full customer 21 | D31: Z | E31: T | F31: 1 | G31: 0 | H31: 1 | I31: 0 | J31: 26 | K31: 96 | L31: 1 | M31: 1 | N31: 0 | O31: 0 | P31: 4 | Q31: 96 | R31: 1 | S31: 0 | T31: 0 | U31: 1 | V31: 44 | W31: 96 | X31: 1 | Y31: 1 | Z31: 0 | AA31: 0 | AB31: 41 | AC31: 96 | AD31: 1 | AE31: 0 | AF31: 1 | AG31: 0 | AH31: 47 | AI31: 96 | AK31: 2 | AL31: 30 | AM31: 450 | AN31: 80 | AO31: 180 | AP31: 180 | AQ31: 2 | AR31: Working days | AS31: 3
C32: Full customer 22 | D32: Z | E32: T | F32: 3 | G32: 0 | H32: 3 | I32: 0 | J32: 39 | K32: 96 | L32: 3 | M32: 3 | N32: 0 | O32: 0 | P32: 51 | Q32: 264 | R32: 2 | S32: 0 | T32: 0 | U32: 2 | V32: 76 | W32: 120 | X32: 3 | Y32: 3 | Z32: 0 | AA32: 0 | AB32: 48 | AC32: 264 | AD32: 4 | AE32: 0 | AF32: 4 | AG32: 0 | AH32: 51 | AI32: 264 | AK32: 1 | AL32: 30 | AM32: 450 | AN32: 80 | AO32: 180 | AP32: 180 | AQ32: 2 | AR32: Working days | AS32: 3
C33: Full customer 23 | D33: Z | E33: T | F33: 5 | G33: 0 | H33: 5 | I33: 0 | J33: 33 | K33: 96 | L33: 5 | M33: 5 | N33: 0 | O33: 0 | P33: 21 | Q33: 96 | R33: 4 | S33: 0 | T33: 0 | U33: 4 | V33: 85 | W33: 120 | X33: 6 | Y33: 6 | Z33: 0 | AA33: 0 | AB33: 40 | AC33: 96 | AD33: 6 | AE33: 0 | AF33: 6 | AG33: 0 | AH33: 65 | AI33: 264 | AK33: 2 | AL33: 30 | AM33: 450 | AN33: 80 | AO33: 180 | AP33: 180 | AQ33: 2 | AR33: Working days | AS33: 3
C34: Full customer 24 | D34: A | E34: T | F34: 4 | G34: 4 | H34: 0 | I34: 0 | J34: 30 | K34: 48 | L34: 4 | M34: 4 | N34: 0 | O34: 0 | P34: 26 | Q34: 48 | R34: 3 | S34: 0 | T34: 0 | U34: 3 | V34: 6 | W34: 24 | X34: 4 | Y34: 4 | Z34: 0 | AA34: 0 | AB34: 64 | AC34: 168 | AD34: 5 | AE34: 4 | AF34: 1 | AG34: 0 | AH34: 63 | AI34: 168 | AK34: 2.25 | AL34: 30 | AM34: 450 | AN34: 60 | AO34: 300 | AP34: 300 | AQ34: 2 | AR34: Days | AS34: 1
C35: Full customer 25 | D35: A | E35: T | F35: 5 | G35: 0 | H35: 5 | I35: 0 | J35: 31 | K35: 96 | L35: 5 | M35: 5 | N35: 0 | O35: 0 | P35: 62 | Q35: 264 | R35: 4 | S35: 0 | T35: 0 | U35: 4 | V35: 25 | W35: 96 | X35: 6 | Y35: 6 | Z35: 0 | AA35: 0 | AB35: 58 | AC35: 264 | AD35: 6 | AE35: 0 | AF35: 6 | AG35: 0 | AH35: 48 | AI35: 264 | AK35: 2.25 | AL35: 30 | AM35: 450 | AN35: 60 | AO35: 300 | AP35: 300 | AQ35: 2 | AR35: Working days | AS35: 3
C36: Full customer 26 | D36: Z | E36: T | F36: 11 | G36: 0 | H36: 11 | I36: 0 | J36: 24 | K36: 96 | L36: 10 | M36: 10 | N36: 0 | O36: 0 | P36: 27 | Q36: 96 | R36: 9 | S36: 0 | T36: 0 | U36: 9 | V36: 33 | W36: 96 | X36: 12 | Y36: 12 | Z36: 0 | AA36: 0 | AB36: 44 | AC36: 96 | AD36: 13 | AE36: 0 | AF36: 13 | AG36: 0 | AH36: 53 | AI36: 264 | AK36: 2.25 | AL36: 30 | AM36: 450 | AN36: 80 | AO36: 300 | AP36: 300 | AQ36: 2 | AR36: Working days | AS36: 3
C37: Full customer 27 | D37: Z | E37: T | F37: 14 | G37: 0 | H37: 14 | I37: 0 | J37: 15 | K37: 96 | L37: 13 | M37: 13 | N37: 0 | O37: 0 | P37: 49 | Q37: 264 | R37: 11 | S37: 0 | T37: 0 | U37: 11 | V37: 23 | W37: 96 | X37: 15 | Y37: 15 | Z37: 0 | AA37: 0 | AB37: 96 | AC37: 264 | AD37: 17 | AE37: 0 | AF37: 17 | AG37: 0 | AH37: 34 | AI37: 96 | AK37: 2 | AL37: 30 | AM37: 450 | AN37: 35 | AO37: 160 | AP37: 160 | AQ37: 2 | AR37: Working days | AS37: 3
C38: Full customer 28 | D38: Z | E38: A | F38: 20 | G38: 0 | H38: 20 | I38: 0 | J38: 2 | K38: 96 | L38: 18 | M38: 0 | N38: 0 | O38: 18 | P38: 76 | Q38: 120 | R38: 16 | S38: 0 | T38: 0 | U38: 16 | V38: 4 | W38: 96 | X38: 22 | Y38: 0 | Z38: 22 | AA38: 0 | AB38: 31 | AC38: 96 | AD38: 24 | AE38: 0 | AF38: 24 | AG38: 0 | AH38: 48 | AI38: 264 | AK38: 1 | AL38: 30 | AM38: 450 | AN38: 51 | AO38: 120 | AP38: 120 | AQ38: 2 | AR38: Working days | AS38: 3
B39: Empty | C39: Empty customer 1 | D39: A | E39: T | F39: 147 | G39: 0 | H39: 0 | I39: 147 | J39: 76 | K39: 168 | L39: 132 | M39: 0 | N39: 0 | O39: 132 | P39: 76 | Q39: 168 | R39: 118 | S39: 0 | T39: 0 | U39: 118 | V39: 76 | W39: 168 | X39: 162 | Y39: 3 | Z39: 0 | AA39: 159 | AB39: 76 | AC39: 168 | AD39: 176 | AE39: 138 | AF39: 0 | AG39: 38 | AH39: 76 | AI39: 168 | AK39: 2 | AL39: 6 | AM39: 450 | AN39: 50 | AO39: 300 | AP39: 300 | AQ39: 2 | AR39: Days | AS39: 5
C40: Empty customer 2 | D40: T | E40: A | F40: 4 | G40: 4 | H40: 0 | I40: 0 | J40: 69 | K40: 360 | L40: 4 | M40: 4 | N40: 0 | O40: 0 | P40: 20 | Q40: 192 | R40: 3 | S40: 0 | T40: 0 | U40: 3 | V40: 83 | W40: 216 | X40: 4 | Y40: 0 | Z40: 0 | AA40: 4 | AB40: 4 | AC40: 192 | AD40: 5 | AE40: 0 | AF40: 5 | AG40: 0 | AH40: 62 | AI40: 360 | AK40: 1 | AL40: 4 | AM40: 450 | AN40: 60 | AO40: 150 | AP40: 150 | AQ40: 2 | AR40: Working days | AS40: 5
C41: Empty customer 3 | D41: T | E41: A | F41: 38 | G41: 0 | H41: 0 | I41: 38 | J41: 24 | K41: 192 | L41: 34 | M41: 34 | N41: 0 | O41: 0 | P41: 43 | Q41: 192 | R41: 30 | S41: 30 | T41: 0 | U41: 0 | V41: 54 | W41: 360 | X41: 42 | Y41: 0 | Z41: 0 | AA41: 42 | AB41: 77 | AC41: 216 | AD41: 46 | AE41: 46 | AF41: 0 | AG41: 0 | AH41: 12 | AI41: 192 | AK41: 2 | AL41: 3 | AM41: 450 | AN41: 60 | AO41: 150 | AP41: 150 | AQ41: 2 | AR41: Working days | AS41: 5
C42: Empty customer 4 | D42: T | E42: Z | F42: 40 | G42: 0 | H42: 40 | I42: 0 | J42: 34 | K42: 192 | L42: 36 | M42: 0 | N42: 0 | O42: 36 | P42: 90 | Q42: 216 | R42: 32 | S42: 0 | T42: 0 | U42: 32 | V42: 27 | W42: 192 | X42: 44 | Y42: 0 | Z42: 44 | AA42: 0 | AB42: 66 | AC42: 360 | AD42: 48 | AE42: 0 | AF42: 48 | AG42: 0 | AH42: 53 | AI42: 360 | AK42: 1 | AL42: 4 | AM42: 450 | AN42: 80 | AO42: 150 | AP42: 150 | AQ42: 2 | AR42: Working days | AS42: 5
C43: Empty customer 5 | D43: T | E43: Z | F43: 23 | G43: 0 | H43: 23 | I43: 0 | J43: 91 | K43: 216 | L43: 21 | M43: 0 | N43: 0 | O43: 21 | P43: 34 | Q43: 192 | R43: 18 | S43: 0 | T43: 0 | U43: 18 | V43: 53 | W43: 360 | X43: 25 | Y43: 0 | Z43: 25 | AA43: 0 | AB43: 65 | AC43: 360 | AD43: 28 | AE43: 0 | AF43: 28 | AG43: 0 | AH43: 72 | AI43: 216 | AK43: 2 | AL43: 4 | AM43: 450 | AN43: 80 | AO43: 150 | AP43: 150 | AQ43: 2 | AR43: Working days | AS43: 5
C44: Empty customer 6 | D44: T | E44: A | F44: 13 | G44: 0 | H44: 13 | I44: 0 | J44: 63 | K44: 240 | L44: 12 | M44: 12 | N44: 0 | O44: 0 | P44: 96 | Q44: 240 | R44: 10 | S44: 0 | T44: 10 | U44: 0 | V44: 8 | W44: 96 | X44: 14 | Y44: 0 | Z44: 0 | AA44: 14 | AB44: 66 | AC44: 240 | AD44: 16 | AE44: 16 | AF44: 0 | AG44: 0 | AH44: 84 | AI44: 144 | AK44: 2.25 | AL44: 2 | AM44: 450 | AN44: 60 | AO44: 300 | AP44: 300 | AQ44: 2 | AR44: Days | AS44: 4
C45: Empty customer 7 | D45: T | E45: A | F45: 5 | G45: 5 | H45: 0 | I45: 0 | J45: 70 | K45: 360 | L45: 5 | M45: 5 | N45: 0 | O45: 0 | P45: 3 | Q45: 192 | R45: 4 | S45: 4 | T45: 0 | U45: 0 | V45: 92 | W45: 216 | X45: 6 | Y45: 0 | Z45: 0 | AA45: 6 | AB45: 57 | AC45: 360 | AD45: 6 | AE45: 1 | AF45: 5 | AG45: 0 | AH45: 65 | AI45: 360 | AK45: 2.25 | AL45: 4 | AM45: 450 | AN45: 60 | AO45: 300 | AP45: 300 | AQ45: 2 | AR45: Working days | AS45: 5
C46: Empty customer 8 | D46: T | E46: Z | F46: 4 | G46: 0 | H46: 4 | I46: 0 | J46: 19 | K46: 192 | L46: 4 | M46: 4 | N46: 0 | O46: 0 | P46: 56 | Q46: 360 | R46: 3 | S46: 0 | T46: 0 | U46: 3 | V46: 8 | W46: 192 | X46: 4 | Y46: 0 | Z46: 4 | AA46: 0 | AB46: 35 | AC46: 192 | AD46: 5 | AE46: 0 | AF46: 5 | AG46: 0 | AH46: 1 | AI46: 192 | AK46: 2.25 | AL46: 4.5 | AM46: 450 | AN46: 80 | AO46: 280 | AP46: 280 | AQ46: 2 | AR46: Working days | AS46: 5
C47: Empty customer 9 | D47: T | E47: Z | F47: 6 | G47: 0 | H47: 6 | I47: 0 | J47: 47 | K47: 192 | L47: 5 | M47: 0 | N47: 0 | O47: 5 | P47: 3 | Q47: 192 | R47: 5 | S47: 0 | T47: 0 | U47: 5 | V47: 35 | W47: 192 | X47: 7 | Y47: 0 | Z47: 7 | AA47: 0 | AB47: 5 | AC47: 192 | AD47: 7 | AE47: 0 | AF47: 7 | AG47: 0 | AH47: 67 | AI47: 360 | AK47: 2 | AL47: 4 | AM47: 450 | AN47: 35 | AO47: 160 | AP47: 160 | AQ47: 2 | AR47: Working days | AS47: 5
C48: Empty customer 10 | D48: A | E48: Z | F48: 2 | G48: 0 | H48: 2 | I48: 0 | J48: 3 | K48: 192 | L48: 2 | M48: 2 | N48: 0 | O48: 0 | P48: 72 | Q48: 216 | R48: 2 | S48: 0 | T48: 0 | U48: 2 | V48: 58 | W48: 360 | X48: 2 | Y48: 2 | Z48: 0 | AA48: 0 | AB48: 10 | AC48: 192 | AD48: 2 | AE48: 0 | AF48: 2 | AG48: 0 | AH48: 42 | AI48: 192 | AK48: 1 | AL48: 4 | AM48: 450 | AN48: 51 | AO48: 120 | AP48: 120 | AQ48: 2 | AR48: Working days | AS48: 5
L49: 0.9 | R49: 0.8 | X49: 1.1 | AD49: 1.2

Sheet Input_PortStayTime
B8: Inputs for Routing
B10: Total vessel operation time (h/week) | C10: 160 | E10: Available vessel | O10: Building blocks for routing | P10: Cost (fuel cost + port fee) (€) | Q10: Sailing time (h)
B11: Average terminal handling speed (container/h) | C11: 16 | E11: Vessel_1 | F11: 1 | O11: 1_A1->T1->A2 | P11: 10000 | Q11: 36
E12: Vessel_2 | F12: 1 | O12: 2_A1->T1->A2 | P12: 10000 | Q12: 36
B13: Vessel Rent (€/week) | C13: 40000 | E13: Vessel_3 | F13: 1 | O13: 3_A1->T1->A2 | P13: 10000 | Q13: 36
B14: Discount rate on vessel rent from 2nd vessel | C14: 0.05 | O14: 4_A1->T1->A2 | P14: 10000 | Q14: 36
O15: 5_A1->Z1->A2 | P15: 9000 | Q15: 30
B16: Vessel volume capacity (TEUs) | C16: A1 | D16: A2 | E16: T1 | F16: T2 | G16: T3 | H16: T4 | I16: Z1 | J16: Z2 | K16: Z3 | L16: Z4 | M16: Z5 | O16: 6_A1->Z1->A2 | P16: 9000 | Q16: 30
B17: A1 | C17: 0 | D17: 0 | E17: 400 | F17: 400 | G17: 400 | H17: 400 | I17: 400 | J17: 400 | K17: 400 | L17: 400 | M17: 400 | O17: 7_A1->Z1->A2 | P17: 9000 | Q17: 30
B18: A2 | C18: 0 | D18: 0 | E18: 400 | F18: 400 | G18: 400 | H18: 400 | I18: 400 | J18: 400 | K18: 400 | L18: 400 | M18: 400 | O18: 8_A1->Z1->A2 | P18: 9000 | Q18: 30
B19: T1 | C19: 400 | D19: 400 | E19: 0 | F19: 0 | G19: 0 | H19: 0 | I19: 400 | J19: 400 | K19: 400 | L19: 400 | M19: 400 | O19: 9_A1->T1->Z1->A2 | P19: 11000 | Q19: 59
B20: T2 | C20: 400 | D20: 400 | E20: 0 | F20: 0 | G20: 0 | H20: 0 | I20: 400 | J20: 400 | K20: 400 | L20: 400 | M20: 400 | O20: 10_A1->T1->Z1->A2 | P20: 11000 | Q20: 59
B21: T3 | C21: 400 | D21: 400 | E21: 0 | F21: 0 | G21: 0 | H21: 0 | I21: 400 | J21: 400 | K21: 400 | L21: 400 | M21: 400 | O21: 11_A1->T1->Z1->A2 | P21: 11000 | Q21: 59
B22: T4 | C22: 400 | D22: 400 | E22: 0 | F22: 0 | G22: 0 | H22: 0 | I22: 400 | J22: 400 | K22: 400 | L22: 400 | M22: 400 | O22: 12_A1->T1->Z1->T2->Z2->A2 | P22: 16000 | Q22: 111
B23: Z1 | C23: 400 | D23: 400 | E23: 400 | F23: 400 | G23: 400 | H23: 400 | I23: 0 | J23: 0 | K23: 0 | L23: 0 | M23: 0 | O23: 13_A1->T1->Z1->T2->Z2->A2 | P23: 16000 | Q23: 111
B24: Z2 | C24: 400 | D24: 400 | E24: 400 | F24: 400 | G24: 400 | H24: 400 | I24: 0 | J24: 0 | K24: 0 | L24: 0 | M24: 0 | O24: 14_A1->T1->Z1->T2->Z2->T3->Z3->A2 | P24: 23000 | Q24: 163
B25: Z3 | C25: 400 | D25: 400 | E25: 400 | F25: 400 | G25: 400 | H25: 400 | I25: 0 | J25: 0 | K25: 0 | L25: 0 | M25: 0 | O25: 15_A1->T1->Z1->T2->Z2->T3->Z3->T4->Z4->A2 | P25: 28000 | Q25: 215
B26: Z4 | C26: 400 | D26: 400 | E26: 400 | F26: 400 | G26: 400 | H26: 400 | I26: 0 | J26: 0 | K26: 0 | L26: 0 | M26: 0 | O26: 16_A1->Z1->T1->A2 | P26: 11000 | Q26: 59
B27: Z5 | C27: 400 | D27: 400 | E27: 400 | F27: 400 | G27: 400 | H27: 400 | I27: 0 | J27: 0 | K27: 0 | L27: 0 | M27: 0 | O27: 17_A1->Z1->T1->A2 | P27: 11000 | Q27: 59
O28: 18_A1->Z1->T1->A2 | P28: 11000 | Q28: 59
B29: Vessel weight capacity (ton) | C29: A1 | D29: A2 | E29: T1 | F29: T2 | G29: T3 | H29: T4 | I29: Z1 | J29: Z2 | K29: Z3 | L29: Z4 | M29: Z5 | O29: 19_A1->Z1->T1->Z2->T2->A2 | P29: 16000 | Q29: 111
B30: A1 | C30: 0 | D30: 0 | E30: 3500 | F30: 3500 | G30: 3500 | H30: 3500 | I30: 3500 | J30: 3500 | K30: 3500 | L30: 3500 | M30: 3500 | O30: 20_A1->Z1->T1->Z2->T2->A2 | P30: 16000 | Q30: 111
B31: A2 | C31: 0 | D31: 0 | E31: 3500 | F31: 3500 | G31: 3500 | H31: 3500 | I31: 3500 | J31: 3500 | K31: 3500 | L31: 3500 | M31: 3500 | O31: 21_A1->Z1->T1->Z2->T2->Z3->T3->A2 | P31: 24000 | Q31: 163
B32: T1 | C32: 3500 | D32: 3500 | E32: 0 | F32: 0 | G32: 0 | H32: 0 | I32: 3500 | J32: 3500 | K32: 3500 | L32: 3500 | M32: 3500 | O32: 22_A1->Z1->T1->Z2->T2->Z3->T3->Z4->T4->A2 | P32: 28000 | Q32: 215
B33: T2 | C33: 3500 | D33: 3500 | E33: 0 | F33: 0 | G33: 0 | H33: 0 | I33: 3500 | J33: 3500 | K33: 3500 | L33: 3500 | M33: 3500 | O33: 23_A1->T1->Z1->T2->A2 | P33: 15000 | Q33: 88
B34: T3 | C34: 3500 | D34: 3500 | E34: 0 | F34: 0 | G34: 0 | H34: 0 | I34: 3500 | J34: 3500 | K34: 3500 | L34: 3500 | M34: 3500 | O34: 24_A1->T1->Z1->T2->A2 | P34: 15000 | Q34: 88
B35: T4 | C35: 3500 | D35: 3500 | E35: 0 | F35: 0 | G35: 0 | H35: 0 | I35: 3500 | J35: 3500 | K35: 3500 | L35: 3500 | M35: 3500 | O35: 25_A1->T1->Z1->T2->Z2->T3->A2 | P35: 21000 | Q35: 140
B36: Z1 | C36: 3500 | D36: 3500 | E36: 3500 | F36: 3500 | G36: 3500 | H36: 3500 | I36: 0 | J36: 0 | K36: 0 | L36: 0 | M36: 0 | O36: 26_A1->T1->Z1->T2->Z2->T3->Z3->T4->A2 | P36: 28000 | Q36: 192
B37: Z2 | C37: 3500 | D37: 3500 | E37: 3500 | F37: 3500 | G37: 3500 | H37: 3500 | I37: 0 | J37: 0 | K37: 0 | L37: 0 | M37: 0 | O37: 27_A1->Z1->T1->Z2->A2 | P37: 13000 | Q37: 82
B38: Z3 | C38: 3500 | D38: 3500 | E38: 3500 | F38: 3500 | G38: 3500 | H38: 3500 | I38: 0 | J38: 0 | K38: 0 | L38: 0 | M38: 0 | O38: 28_A1->Z1->T1->Z2->A2 | P38: 13000 | Q38: 82
B39: Z4 | C39: 3500 | D39: 3500 | E39: 3500 | F39: 3500 | G39: 3500 | H39: 3500 | I39: 0 | J39: 0 | K39: 0 | L39: 0 | M39: 0 | O39: 29_A1->Z1->T1->Z2->A2 | P39: 13000 | Q39: 82
B40: Z5 | C40: 3500 | D40: 3500 | E40: 3500 | F40: 3500 | G40: 3500 | H40: 3500 | I40: 0 | J40: 0 | K40: 0 | L40: 0 | M40: 0 | O40: 30_A1->Z1->T1->Z2->T2->Z3->A2 | P40: 18000 | Q40: 134
O41: 31_A1->Z1->T1->Z2->T2->Z3->A2 | P41: 18000 | Q41: 134
O42: 32_A1->Z1->T1->Z2->T2->Z3->T3->Z4->A2 | P42: 25000 | Q42: 186
O43: 33_A1->Z1->T1->Z2->T2->Z3->T3->Z4->T4->Z5->A2 | P43: 32000 | Q43: 238
B44: Terminals | C44: Unit extra labor cost during weekends (Euro/h) | D44: Average loading time at each terminal (h) | E44: Average unloading time at each terminal (h) | F44: Service early departure penalty (Euro/h) | G44: Service late departure penalty (Euro/h) | H44: Service early arrival penalty (Euro/h) | I44: Service late arrival penalty (Euro/h)
B45: A1 | C45: 30 | D45: 4 | E45: 4 | F45: 150 | G45: 150 | H45: 150 | I45: 150
B46: A2 | C46: 30 | D46: 4 | E46: 4 | F46: 150 | G46: 150 | H46: 150 | I46: 150
B47: T1 | C47: 20 | D47: 4 | E47: 4 | F47: 200 | G47: 200 | H47: 200 | I47: 200
B48: T2 | C48: 20 | D48: 4 | E48: 4 | F48: 200 | G48: 200 | H48: 200 | I48: 200
B49: T3 | C49: 20 | D49: 4 | E49: 4 | F49: 200 | G49: 200 | H49: 200 | I49: 200
B50: T4 | C50: 20 | D50: 4 | E50: 4 | F50: 200 | G50: 200 | H50: 200 | I50: 200
B51: Z1 | C51: 15 | D51: 4 | E51: 4 | F51: 100 | G51: 100 | H51: 100 | I51: 100
B52: Z2 | C52: 15 | D52: 4 | E52: 4 | F52: 100 | G52: 100 | H52: 100 | I52: 100
B53: Z3 | C53: 15 | D53: 4 | E53: 4 | F53: 100 | G53: 100 | H53: 100 | I53: 100
B54: Z4 | C54: 15 | D54: 4 | E54: 4 | F54: 100 | G54: 100 | H54: 100 | I54: 100
B55: Z5 | C55: 15 | D55: 4 | E55: 4 | F55: 100 | G55: 100 | H55: 100 | I55: 100
B58: Input for Scheduling
B59: Vessel 1
B60: Total vessel operation time (h) | C60: 168
B61: Terminal handling speed (container/h) | C61: 16
B63: Sailing Time (h) | C63: A1 | D63: A2 | E63: T1 | F63: T2 | G63: T3 | H63: T4 | I63: Z1 | J63: Z2 | K63: Z3 | L63: Z4 | M63: Z5
B64: A1 | C64: 0 | D64: 0 | E64: 18 | F64: 18 | G64: 18 | H64: 18 | I64: 15 | J64: 15 | K64: 15 | L64: 15 | M64: 15
B65: A2 | C65: 0 | D65: 0 | E65: 18 | F65: 18 | G65: 18 | H65: 18 | I65: 15 | J65: 15 | K65: 15 | L65: 15 | M65: 15
B66: T1 | C66: 18 | D66: 18 | E66: 0 | F66: 0 | G66: 0 | H66: 0 | I66: 26 | J66: 26 | K66: 26 | L66: 26 | M66: 26
B67: T2 | C67: 18 | D67: 18 | E67: 0 | F67: 0 | G67: 0 | H67: 0 | I67: 26 | J67: 26 | K67: 26 | L67: 26 | M67: 26
B68: T3 | C68: 18 | D68: 18 | E68: 0 | F68: 0 | G68: 0 | H68: 0 | I68: 26 | J68: 26 | K68: 26 | L68: 26 | M68: 26
B69: T4 | C69: 18 | D69: 18 | E69: 0 | F69: 0 | G69: 0 | H69: 0 | I69: 26 | J69: 26 | K69: 26 | L69: 26 | M69: 26
B70: Z1 | C70: 15 | D70: 15 | E70: 26 | F70: 26 | G70: 26 | H70: 26 | I70: 0 | J70: 0 | K70: 0 | L70: 0 | M70: 0
B71: Z2 | C71: 15 | D71: 15 | E71: 26 | F71: 26 | G71: 26 | H71: 26 | I71: 0 | J71: 0 | K71: 0 | L71: 0 | M71: 0
B72: Z3 | C72: 15 | D72: 15 | E72: 26 | F72: 26 | G72: 26 | H72: 26 | I72: 0 | J72: 0 | K72: 0 | L72: 0 | M72: 0
B73: Z4 | C73: 15 | D73: 15 | E73: 26 | F73: 26 | G73: 26 | H73: 26 | I73: 0 | J73: 0 | K73: 0 | L73: 0 | M73: 0
B74: Z5 | C74: 15 | D74: 15 | E74: 26 | F74: 26 | G74: 26 | H74: 26 | I74: 0 | J74: 0 | K74: 0 | L74: 0 | M74: 0
B76: Define Time slot (Separate a week to several time slots. There is a time window in each slot that the vessel can visit the terminal) | F76: Preferred port stay time window at each terminal
F77: Begin port stay | Q77: End port stay
C78: Begin slot time | D78: End slot time | F78: A1 | G78: A2 | H78: T1 | I78: T2 | J78: T3 | K78: T4 | L78: Z1 | M78: Z2 | N78: Z3 | O78: Z4 | P78: Z5 | Q78: A1 | R78: A2 | S78: T1 | T78: T2 | U78: T3 | V78: T4 | W78: Z1 | X78: Z2 | Y78: Z3 | Z78: Z4 | AA78: Z5
B79: Slot 1 | C79: 0 | D79: 24 | F79: 9 | G79: 9 | H79: 8 | I79: 8 | J79: 8 | K79: 8 | L79: 9 | M79: 9 | N79: 9 | O79: 9 | P79: 9 | Q79: 14 | R79: 14 | S79: 13 | T79: 13 | U79: 13 | V79: 13 | W79: 14 | X79: 14 | Y79: 14 | Z79: 14 | AA79: 14
B80: Slot 2 | C80: 24 | D80: 48 | F80: 31 | G80: 31 | H80: 31 | I80: 30 | J80: 30 | K80: 30 | L80: 31 | M80: 31 | N80: 31 | O80: 31 | P80: 31 | Q80: 43 | R80: 43 | S80: 42 | T80: 42 | U80: 42 | V80: 42 | W80: 43 | X80: 43 | Y80: 43 | Z80: 43 | AA80: 43
B81: Slot 3 | C81: 48 | D81: 72 | F81: 55 | G81: 55 | H81: 55 | I81: 54 | J81: 54 | K81: 54 | L81: 55 | M81: 55 | N81: 55 | O81: 55 | P81: 55 | Q81: 67 | R81: 67 | S81: 66 | T81: 66 | U81: 66 | V81: 66 | W81: 67 | X81: 67 | Y81: 67 | Z81: 67 | AA81: 67
B82: Slot 4 | C82: 72 | D82: 96 | F82: 79 | G82: 79 | H82: 79 | I82: 78 | J82: 78 | K82: 78 | L82: 79 | M82: 79 | N82: 79 | O82: 79 | P82: 79 | Q82: 91 | R82: 91 | S82: 90 | T82: 90 | U82: 90 | V82: 90 | W82: 91 | X82: 91 | Y82: 91 | Z82: 91 | AA82: 91
B83: Slot 5 | C83: 96 | D83: 120 | F83: 103 | G83: 103 | H83: 103 | I83: 102 | J83: 102 | K83: 102 | L83: 103 | M83: 103 | N83: 103 | O83: 103 | P83: 103 | Q83: 115 | R83: 115 | S83: 114 | T83: 114 | U83: 114 | V83: 114 | W83: 115 | X83: 115 | Y83: 115 | Z83: 115 | AA83: 115
B84: Slot 6 | C84: 120 | D84: 144 | F84: 127 | G84: 127 | H84: 127 | I84: 126 | J84: 126 | K84: 126 | L84: 127 | M84: 127 | N84: 127 | O84: 127 | P84: 127 | Q84: 139 | R84: 139 | S84: 138 | T84: 138 | U84: 138 | V84: 138 | W84: 139 | X84: 139 | Y84: 139 | Z84: 139 | AA84: 139
B85: Slot 7 | C85: 144 | D85: 168 | F85: 153 | G85: 153 | H85: 153 | I85: 152 | J85: 152 | K85: 152 | L85: 153 | M85: 153 | N85: 153 | O85: 153 | P85: 153 | Q85: 158 | R85: 158 | S85: 157 | T85: 157 | U85: 157 | V85: 157 | W85: 158 | X85: 158 | Y85: 158 | Z85: 158 | AA85: 158
B87: Volume capacity (TEUs) | C87: A1 | D87: A2 | E87: T1 | F87: T2 | G87: T3 | H87: T4 | I87: Z1 | J87: Z2 | K87: Z3 | L87: Z4 | M87: Z5
B88: A1 | C88: 0 | D88: 0 | E88: 400 | F88: 400 | G88: 400 | H88: 400 | I88: 400 | J88: 400 | K88: 400 | L88: 400 | M88: 400
B89: A2 | C89: 0 | D89: 0 | E89: 400 | F89: 400 | G89: 400 | H89: 400 | I89: 400 | J89: 400 | K89: 400 | L89: 400 | M89: 400
B90: T1 | C90: 400 | D90: 400 | E90: 0 | F90: 0 | G90: 0 | H90: 0 | I90: 400 | J90: 400 | K90: 400 | L90: 400 | M90: 400
B91: T2 | C91: 400 | D91: 400 | E91: 0 | F91: 0 | G91: 0 | H91: 0 | I91: 400 | J91: 400 | K91: 400 | L91: 400 | M91: 400
B92: T3 | C92: 400 | D92: 400 | E92: 0 | F92: 0 | G92: 0 | H92: 0 | I92: 400 | J92: 400 | K92: 400 | L92: 400 | M92: 400
B93: T4 | C93: 400 | D93: 400 | E93: 0 | F93: 0 | G93: 0 | H93: 0 | I93: 400 | J93: 400 | K93: 400 | L93: 400 | M93: 400
B94: Z1 | C94: 400 | D94: 400 | E94: 400 | F94: 400 | G94: 400 | H94: 400 | I94: 0 | J94: 0 | K94: 0 | L94: 0 | M94: 0
B95: Z2 | C95: 400 | D95: 400 | E95: 400 | F95: 400 | G95: 400 | H95: 400 | I95: 0 | J95: 0 | K95: 0 | L95: 0 | M95: 0
B96: Z3 | C96: 400 | D96: 400 | E96: 400 | F96: 400 | G96: 400 | H96: 400 | I96: 0 | J96: 0 | K96: 0 | L96: 0 | M96: 0
B97: Z4 | C97: 400 | D97: 400 | E97: 400 | F97: 400 | G97: 400 | H97: 400 | I97: 0 | J97: 0 | K97: 0 | L97: 0 | M97: 0
B98: Z5 | C98: 400 | D98: 400 | E98: 400 | F98: 400 | G98: 400 | H98: 400 | I98: 0 | J98: 0 | K98: 0 | L98: 0 | M98: 0
B100: Weight capacity (ton) | C100: A1 | D100: A2 | E100: T1 | F100: T2 | G100: T3 | H100: T4 | I100: Z1 | J100: Z2 | K100: Z3 | L100: Z4 | M100: Z5
B101: A1 | C101: 0 | D101: 0 | E101: 3500 | F101: 3500 | G101: 3500 | H101: 3500 | I101: 3500 | J101: 3500 | K101: 3500 | L101: 3500 | M101: 3500
B102: A2 | C102: 0 | D102: 0 | E102: 3500 | F102: 3500 | G102: 3500 | H102: 3500 | I102: 3500 | J102: 3500 | K102: 3500 | L102: 3500 | M102: 3500
B103: T1 | C103: 3500 | D103: 3500 | E103: 0 | F103: 0 | G103: 0 | H103: 0 | I103: 3500 | J103: 3500 | K103: 3500 | L103: 3500 | M103: 3500
B104: T2 | C104: 3500 | D104: 3500 | E104: 0 | F104: 0 | G104: 0 | H104: 0 | I104: 3500 | J104: 3500 | K104: 3500 | L104: 3500 | M104: 3500
B105: T3 | C105: 3500 | D105: 3500 | E105: 0 | F105: 0 | G105: 0 | H105: 0 | I105: 3500 | J105: 3500 | K105: 3500 | L105: 3500 | M105: 3500
B106: T4 | C106: 3500 | D106: 3500 | E106: 0 | F106: 0 | G106: 0 | H106: 0 | I106: 3500 | J106: 3500 | K106: 3500 | L106: 3500 | M106: 3500
B107: Z1 | C107: 3500 | D107: 3500 | E107: 3500 | F107: 3500 | G107: 3500 | H107: 3500 | I107: 0 | J107: 0 | K107: 0 | L107: 0 | M107: 0
B108: Z2 | C108: 3500 | D108: 3500 | E108: 3500 | F108: 3500 | G108: 3500 | H108: 3500 | I108: 0 | J108: 0 | K108: 0 | L108: 0 | M108: 0
B109: Z3 | C109: 3500 | D109: 3500 | E109: 3500 | F109: 3500 | G109: 3500 | H109: 3500 | I109: 0 | J109: 0 | K109: 0 | L109: 0 | M109: 0
B110: Z4 | C110: 3500 | D110: 3500 | E110: 3500 | F110: 3500 | G110: 3500 | H110: 3500 | I110: 0 | J110: 0 | K110: 0 | L110: 0 | M110: 0
B111: Z5 | C111: 3500 | D111: 3500 | E111: 3500 | F111: 3500 | G111: 3500 | H111: 3500 | I111: 0 | J111: 0 | K111: 0 | L111: 0 | M111: 0
B114: Vessel 2
B115: Total vessel operation time (h) | C115: 168
B116: Terminal handling speed (container/h) | C116: 16
B118: Sailing Time (h) | C118: A1 | D118: A2 | E118: T1 | F118: T2 | G118: T3 | H118: T4 | I118: Z1 | J118: Z2 | K118: Z3 | L118: Z4 | M118: Z5
B119: A1 | C119: 0 | D119: 0 | E119: 18 | F119: 18 | G119: 18 | H119: 18 | I119: 15 | J119: 15 | K119: 15 | L119: 15 | M119: 15
B120: A2 | C120: 0 | D120: 0 | E120: 18 | F120: 18 | G120: 18 | H120: 18 | I120: 15 | J120: 15 | K120: 15 | L120: 15 | M120: 15
B121: T1 | C121: 18 | D121: 18 | E121: 0 | F121: 0 | G121: 0 | H121: 0 | I121: 26 | J121: 26 | K121: 26 | L121: 26 | M121: 26
B122: T2 | C122: 18 | D122: 18 | E122: 0 | F122: 0 | G122: 0 | H122: 0 | I122: 26 | J122: 26 | K122: 26 | L122: 26 | M122: 26
B123: T3 | C123: 18 | D123: 18 | E123: 0 | F123: 0 | G123: 0 | H123: 0 | I123: 26 | J123: 26 | K123: 26 | L123: 26 | M123: 26
B124: T4 | C124: 18 | D124: 18 | E124: 0 | F124: 0 | G124: 0 | H124: 0 | I124: 26 | J124: 26 | K124: 26 | L124: 26 | M124: 26
B125: Z1 | C125: 15 | D125: 15 | E125: 26 | F125: 26 | G125: 26 | H125: 26 | I125: 0 | J125: 0 | K125: 0 | L125: 0 | M125: 0
B126: Z2 | C126: 15 | D126: 15 | E126: 26 | F126: 26 | G126: 26 | H126: 26 | I126: 0 | J126: 0 | K126: 0 | L126: 0 | M126: 0
B127: Z3 | C127: 15 | D127: 15 | E127: 26 | F127: 26 | G127: 26 | H127: 26 | I127: 0 | J127: 0 | K127: 0 | L127: 0 | M127: 0
B128: Z4 | C128: 15 | D128: 15 | E128: 26 | F128: 26 | G128: 26 | H128: 26 | I128: 0 | J128: 0 | K128: 0 | L128: 0 | M128: 0
B129: Z5 | C129: 15 | D129: 15 | E129: 26 | F129: 26 | G129: 26 | H129: 26 | I129: 0 | J129: 0 | K129: 0 | L129: 0 | M129: 0
B131: Define Time slot (Separate a week to several time slots. There is a time window in each slot that the vessel can visit the terminal) | F131: Preferred port stay time window at each terminal
F132: Begin port stay | Q132: End port stay
C133: Begin slot time | D133: End slot time | F133: A1 | G133: A2 | H133: T1 | I133: T2 | J133: T3 | K133: T4 | L133: Z1 | M133: Z2 | N133: Z3 | O133: Z4 | P133: Z5 | Q133: A1 | R133: A2 | S133: T1 | T133: T2 | U133: T3 | V133: T4 | W133: Z1 | X133: Z2 | Y133: Z3 | Z133: Z4 | AA133: Z5
B134: Slot 1 | C134: 0 | D134: 24 | F134: 9 | G134: 9 | H134: 8 | I134: 8 | J134: 8 | K134: 8 | L134: 9 | M134: 9 | N134: 9 | O134: 9 | P134: 9 | Q134: 14 | R134: 14 | S134: 13 | T134: 13 | U134: 13 | V134: 13 | W134: 14 | X134: 14 | Y134: 14 | Z134: 14 | AA134: 14
B135: Slot 2 | C135: 24 | D135: 48 | F135: 31 | G135: 31 | H135: 31 | I135: 30 | J135: 30 | K135: 30 | L135: 31 | M135: 31 | N135: 31 | O135: 31 | P135: 31 | Q135: 43 | R135: 43 | S135: 42 | T135: 42 | U135: 42 | V135: 42 | W135: 43 | X135: 43 | Y135: 43 | Z135: 43 | AA135: 43
B136: Slot 3 | C136: 48 | D136: 72 | F136: 55 | G136: 55 | H136: 55 | I136: 54 | J136: 54 | K136: 54 | L136: 55 | M136: 55 | N136: 55 | O136: 55 | P136: 55 | Q136: 67 | R136: 67 | S136: 66 | T136: 66 | U136: 66 | V136: 66 | W136: 67 | X136: 67 | Y136: 67 | Z136: 67 | AA136: 67
B137: Slot 4 | C137: 72 | D137: 96 | F137: 79 | G137: 79 | H137: 79 | I137: 78 | J137: 78 | K137: 78 | L137: 79 | M137: 79 | N137: 79 | O137: 79 | P137: 79 | Q137: 91 | R137: 91 | S137: 90 | T137: 90 | U137: 90 | V137: 90 | W137: 91 | X137: 91 | Y137: 91 | Z137: 91 | AA137: 91
B138: Slot 5 | C138: 96 | D138: 120 | F138: 103 | G138: 103 | H138: 103 | I138: 102 | J138: 102 | K138: 102 | L138: 103 | M138: 103 | N138: 103 | O138: 103 | P138: 103 | Q138: 115 | R138: 115 | S138: 114 | T138: 114 | U138: 114 | V138: 114 | W138: 115 | X138: 115 | Y138: 115 | Z138: 115 | AA138: 115
B139: Slot 6 | C139: 120 | D139: 144 | F139: 127 | G139: 127 | H139: 127 | I139: 126 | J139: 126 | K139: 126 | L139: 127 | M139: 127 | N139: 127 | O139: 127 | P139: 127 | Q139: 139 | R139: 139 | S139: 138 | T139: 138 | U139: 138 | V139: 138 | W139: 139 | X139: 139 | Y139: 139 | Z139: 139 | AA139: 139
B140: Slot 7 | C140: 144 | D140: 168 | F140: 153 | G140: 153 | H140: 153 | I140: 152 | J140: 152 | K140: 152 | L140: 153 | M140: 153 | N140: 153 | O140: 153 | P140: 153 | Q140: 158 | R140: 158 | S140: 157 | T140: 157 | U140: 157 | V140: 157 | W140: 158 | X140: 158 | Y140: 158 | Z140: 158 | AA140: 158
B142: Volume capacity (TEUs) | C142: A1 | D142: A2 | E142: T1 | F142: T2 | G142: T3 | H142: T4 | I142: Z1 | J142: Z2 | K142: Z3 | L142: Z4 | M142: Z5
B143: A1 | C143: 0 | D143: 0 | E143: 400 | F143: 400 | G143: 400 | H143: 400 | I143: 400 | J143: 400 | K143: 400 | L143: 400 | M143: 400
B144: A2 | C144: 0 | D144: 0 | E144: 400 | F144: 400 | G144: 400 | H144: 400 | I144: 400 | J144: 400 | K144: 400 | L144: 400 | M144: 400
B145: T1 | C145: 400 | D145: 400 | E145: 0 | F145: 0 | G145: 0 | H145: 0 | I145: 400 | J145: 400 | K145: 400 | L145: 400 | M145: 400
B146: T2 | C146: 400 | D146: 400 | E146: 0 | F146: 0 | G146: 0 | H146: 0 | I146: 400 | J146: 400 | K146: 400 | L146: 400 | M146: 400
B147: T3 | C147: 400 | D147: 400 | E147: 0 | F147: 0 | G147: 0 | H147: 0 | I147: 400 | J147: 400 | K147: 400 | L147: 400 | M147: 400
B148: T4 | C148: 400 | D148: 400 | E148: 0 | F148: 0 | G148: 0 | H148: 0 | I148: 400 | J148: 400 | K148: 400 | L148: 400 | M148: 400
B149: Z1 | C149: 400 | D149: 400 | E149: 400 | F149: 400 | G149: 400 | H149: 400 | I149: 0 | J149: 0 | K149: 0 | L149: 0 | M149: 0
B150: Z2 | C150: 400 | D150: 400 | E150: 400 | F150: 400 | G150: 400 | H150: 400 | I150: 0 | J150: 0 | K150: 0 | L150: 0 | M150: 0
B151: Z3 | C151: 400 | D151: 400 | E151: 400 | F151: 400 | G151: 400 | H151: 400 | I151: 0 | J151: 0 | K151: 0 | L151: 0 | M151: 0
B152: Z4 | C152: 400 | D152: 400 | E152: 400 | F152: 400 | G152: 400 | H152: 400 | I152: 0 | J152: 0 | K152: 0 | L152: 0 | M152: 0
B153: Z5 | C153: 400 | D153: 400 | E153: 400 | F153: 400 | G153: 400 | H153: 400 | I153: 0 | J153: 0 | K153: 0 | L153: 0 | M153: 0
B155: Weight capacity (ton) | C155: A1 | D155: A2 | E155: T1 | F155: T2 | G155: T3 | H155: T4 | I155: Z1 | J155: Z2 | K155: Z3 | L155: Z4 | M155: Z5
B156: A1 | C156: 0 | D156: 0 | E156: 3500 | F156: 3500 | G156: 3500 | H156: 3500 | I156: 3500 | J156: 3500 | K156: 3500 | L156: 3500 | M156: 3500
B157: A2 | C157: 0 | D157: 0 | E157: 3500 | F157: 3500 | G157: 3500 | H157: 3500 | I157: 3500 | J157: 3500 | K157: 3500 | L157: 3500 | M157: 3500
B158: T1 | C158: 3500 | D158: 3500 | E158: 0 | F158: 0 | G158: 0 | H158: 0 | I158: 3500 | J158: 3500 | K158: 3500 | L158: 3500 | M158: 3500
B159: T2 | C159: 3500 | D159: 3500 | E159: 0 | F159: 0 | G159: 0 | H159: 0 | I159: 3500 | J159: 3500 | K159: 3500 | L159: 3500 | M159: 3500
B160: T3 | C160: 3500 | D160: 3500 | E160: 0 | F160: 0 | G160: 0 | H160: 0 | I160: 3500 | J160: 3500 | K160: 3500 | L160: 3500 | M160: 3500
B161: T4 | C161: 3500 | D161: 3500 | E161: 0 | F161: 0 | G161: 0 | H161: 0 | I161: 3500 | J161: 3500 | K161: 3500 | L161: 3500 | M161: 3500
B162: Z1 | C162: 3500 | D162: 3500 | E162: 3500 | F162: 3500 | G162: 3500 | H162: 3500 | I162: 0 | J162: 0 | K162: 0 | L162: 0 | M162: 0
B163: Z2 | C163: 3500 | D163: 3500 | E163: 3500 | F163: 3500 | G163: 3500 | H163: 3500 | I163: 0 | J163: 0 | K163: 0 | L163: 0 | M163: 0
B164: Z3 | C164: 3500 | D164: 3500 | E164: 3500 | F164: 3500 | G164: 3500 | H164: 3500 | I164: 0 | J164: 0 | K164: 0 | L164: 0 | M164: 0
B165: Z4 | C165: 3500 | D165: 3500 | E165: 3500 | F165: 3500 | G165: 3500 | H165: 3500 | I165: 0 | J165: 0 | K165: 0 | L165: 0 | M165: 0
B166: Z5 | C166: 3500 | D166: 3500 | E166: 3500 | F166: 3500 | G166: 3500 | H166: 3500 | I166: 0 | J166: 0 | K166: 0 | L166: 0 | M166: 0
B169: Vessel 3
B170: Total vessel operation time (h) | C170: 168
B171: Terminal handling speed (container/h) | C171: 16
B173: Sailing Time (h) | C173: A1 | D173: A2 | E173: T1 | F173: T2 | G173: T3 | H173: T4 | I173: Z1 | J173: Z2 | K173: Z3 | L173: Z4 | M173: Z5
B174: A1 | C174: 0 | D174: 0 | E174: 18 | F174: 18 | G174: 18 | H174: 18 | I174: 15 | J174: 15 | K174: 15 | L174: 15 | M174: 15
B175: A2 | C175: 0 | D175: 0 | E175: 18 | F175: 18 | G175: 18 | H175: 18 | I175: 15 | J175: 15 | K175: 15 | L175: 15 | M175: 15
B176: T1 | C176: 18 | D176: 18 | E176: 0 | F176: 0 | G176: 0 | H176: 0 | I176: 26 | J176: 26 | K176: 26 | L176: 26 | M176: 26
B177: T2 | C177: 18 | D177: 18 | E177: 0 | F177: 0 | G177: 0 | H177: 0 | I177: 26 | J177: 26 | K177: 26 | L177: 26 | M177: 26
B178: T3 | C178: 18 | D178: 18 | E178: 0 | F178: 0 | G178: 0 | H178: 0 | I178: 26 | J178: 26 | K178: 26 | L178: 26 | M178: 26
B179: T4 | C179: 18 | D179: 18 | E179: 0 | F179: 0 | G179: 0 | H179: 0 | I179: 26 | J179: 26 | K179: 26 | L179: 26 | M179: 26
B180: Z1 | C180: 15 | D180: 15 | E180: 26 | F180: 26 | G180: 26 | H180: 26 | I180: 0 | J180: 0 | K180: 0 | L180: 0 | M180: 0
B181: Z2 | C181: 15 | D181: 15 | E181: 26 | F181: 26 | G181: 26 | H181: 26 | I181: 0 | J181: 0 | K181: 0 | L181: 0 | M181: 0
B182: Z3 | C182: 15 | D182: 15 | E182: 26 | F182: 26 | G182: 26 | H182: 26 | I182: 0 | J182: 0 | K182: 0 | L182: 0 | M182: 0
B183: Z4 | C183: 15 | D183: 15 | E183: 26 | F183: 26 | G183: 26 | H183: 26 | I183: 0 | J183: 0 | K183: 0 | L183: 0 | M183: 0
B184: Z5 | C184: 15 | D184: 15 | E184: 26 | F184: 26 | G184: 26 | H184: 26 | I184: 0 | J184: 0 | K184: 0 | L184: 0 | M184: 0
B186: Define Time slot (Separate a week to several time slots. There is a time window in each slot that the vessel can visit the terminal) | F186: Preferred port stay time window at each terminal
F187: Begin port stay | Q187: End port stay
C188: Begin slot time | D188: End slot time | F188: A1 | G188: A2 | H188: T1 | I188: T2 | J188: T3 | K188: T4 | L188: Z1 | M188: Z2 | N188: Z3 | O188: Z4 | P188: Z5 | Q188: A1 | R188: A2 | S188: T1 | T188: T2 | U188: T3 | V188: T4 | W188: Z1 | X188: Z2 | Y188: Z3 | Z188: Z4 | AA188: Z5
B189: Slot 1 | C189: 0 | D189: 24 | F189: 9 | G189: 9 | H189: 8 | I189: 8 | J189: 8 | K189: 8 | L189: 9 | M189: 9 | N189: 9 | O189: 9 | P189: 9 | Q189: 14 | R189: 14 | S189: 13 | T189: 13 | U189: 13 | V189: 13 | W189: 14 | X189: 14 | Y189: 14 | Z189: 14 | AA189: 14
B190: Slot 2 | C190: 24 | D190: 48 | F190: 31 | G190: 31 | H190: 31 | I190: 30 | J190: 30 | K190: 30 | L190: 31 | M190: 31 | N190: 31 | O190: 31 | P190: 31 | Q190: 43 | R190: 43 | S190: 42 | T190: 42 | U190: 42 | V190: 42 | W190: 43 | X190: 43 | Y190: 43 | Z190: 43 | AA190: 43
B191: Slot 3 | C191: 48 | D191: 72 | F191: 55 | G191: 55 | H191: 55 | I191: 54 | J191: 54 | K191: 54 | L191: 55 | M191: 55 | N191: 55 | O191: 55 | P191: 55 | Q191: 67 | R191: 67 | S191: 66 | T191: 66 | U191: 66 | V191: 66 | W191: 67 | X191: 67 | Y191: 67 | Z191: 67 | AA191: 67
B192: Slot 4 | C192: 72 | D192: 96 | F192: 79 | G192: 79 | H192: 79 | I192: 78 | J192: 78 | K192: 78 | L192: 79 | M192: 79 | N192: 79 | O192: 79 | P192: 79 | Q192: 91 | R192: 91 | S192: 90 | T192: 90 | U192: 90 | V192: 90 | W192: 91 | X192: 91 | Y192: 91 | Z192: 91 | AA192: 91
B193: Slot 5 | C193: 96 | D193: 120 | F193: 103 | G193: 103 | H193: 103 | I193: 102 | J193: 102 | K193: 102 | L193: 103 | M193: 103 | N193: 103 | O193: 103 | P193: 103 | Q193: 115 | R193: 115 | S193: 114 | T193: 114 | U193: 114 | V193: 114 | W193: 115 | X193: 115 | Y193: 115 | Z193: 115 | AA193: 115
B194: Slot 6 | C194: 120 | D194: 144 | F194: 127 | G194: 127 | H194: 127 | I194: 126 | J194: 126 | K194: 126 | L194: 127 | M194: 127 | N194: 127 | O194: 127 | P194: 127 | Q194: 139 | R194: 139 | S194: 138 | T194: 138 | U194: 138 | V194: 138 | W194: 139 | X194: 139 | Y194: 139 | Z194: 139 | AA194: 139
B195: Slot 7 | C195: 144 | D195: 168 | F195: 153 | G195: 153 | H195: 153 | I195: 152 | J195: 152 | K195: 152 | L195: 153 | M195: 153 | N195: 153 | O195: 153 | P195: 153 | Q195: 158 | R195: 158 | S195: 157 | T195: 157 | U195: 157 | V195: 157 | W195: 158 | X195: 158 | Y195: 158 | Z195: 158 | AA195: 158
B197: Volume capacity (TEUs) | C197: A1 | D197: A2 | E197: T1 | F197: T2 | G197: T3 | H197: T4 | I197: Z1 | J197: Z2 | K197: Z3 | L197: Z4 | M197: Z5
B198: A1 | C198: 0 | D198: 0 | E198: 400 | F198: 400 | G198: 400 | H198: 400 | I198: 400 | J198: 400 | K198: 400 | L198: 400 | M198: 400
B199: A2 | C199: 0 | D199: 0 | E199: 400 | F199: 400 | G199: 400 | H199: 400 | I199: 400 | J199: 400 | K199: 400 | L199: 400 | M199: 400
B200: T1 | C200: 400 | D200: 400 | E200: 0 | F200: 0 | G200: 0 | H200: 0 | I200: 400 | J200: 400 | K200: 400 | L200: 400 | M200: 400
B201: T2 | C201: 400 | D201: 400 | E201: 0 | F201: 0 | G201: 0 | H201: 0 | I201: 400 | J201: 400 | K201: 400 | L201: 400 | M201: 400
B202: T3 | C202: 400 | D202: 400 | E202: 0 | F202: 0 | G202: 0 | H202: 0 | I202: 400 | J202: 400 | K202: 400 | L202: 400 | M202: 400
B203: T4 | C203: 400 | D203: 400 | E203: 0 | F203: 0 | G203: 0 | H203: 0 | I203: 400 | J203: 400 | K203: 400 | L203: 400 | M203: 400
B204: Z1 | C204: 400 | D204: 400 | E204: 400 | F204: 400 | G204: 400 | H204: 400 | I204: 0 | J204: 0 | K204: 0 | L204: 0 | M204: 0
B205: Z2 | C205: 400 | D205: 400 | E205: 400 | F205: 400 | G205: 400 | H205: 400 | I205: 0 | J205: 0 | K205: 0 | L205: 0 | M205: 0
B206: Z3 | C206: 400 | D206: 400 | E206: 400 | F206: 400 | G206: 400 | H206: 400 | I206: 0 | J206: 0 | K206: 0 | L206: 0 | M206: 0
B207: Z4 | C207: 400 | D207: 400 | E207: 400 | F207: 400 | G207: 400 | H207: 400 | I207: 0 | J207: 0 | K207: 0 | L207: 0 | M207: 0
B208: Z5 | C208: 400 | D208: 400 | E208: 400 | F208: 400 | G208: 400 | H208: 400 | I208: 0 | J208: 0 | K208: 0 | L208: 0 | M208: 0
B210: Weight capacity (ton) | C210: A1 | D210: A2 | E210: T1 | F210: T2 | G210: T3 | H210: T4 | I210: Z1 | J210: Z2 | K210: Z3 | L210: Z4 | M210: Z5
B211: A1 | C211: 0 | D211: 0 | E211: 3500 | F211: 3500 | G211: 3500 | H211: 3500 | I211: 3500 | J211: 3500 | K211: 3500 | L211: 3500 | M211: 3500
B212: A2 | C212: 0 | D212: 0 | E212: 3500 | F212: 3500 | G212: 3500 | H212: 3500 | I212: 3500 | J212: 3500 | K212: 3500 | L212: 3500 | M212: 3500
B213: T1 | C213: 3500 | D213: 3500 | E213: 0 | F213: 0 | G213: 0 | H213: 0 | I213: 3500 | J213: 3500 | K213: 3500 | L213: 3500 | M213: 3500
B214: T2 | C214: 3500 | D214: 3500 | E214: 0 | F214: 0 | G214: 0 | H214: 0 | I214: 3500 | J214: 3500 | K214: 3500 | L214: 3500 | M214: 3500
B215: T3 | C215: 3500 | D215: 3500 | E215: 0 | F215: 0 | G215: 0 | H215: 0 | I215: 3500 | J215: 3500 | K215: 3500 | L215: 3500 | M215: 3500
B216: T4 | C216: 3500 | D216: 3500 | E216: 0 | F216: 0 | G216: 0 | H216: 0 | I216: 3500 | J216: 3500 | K216: 3500 | L216: 3500 | M216: 3500
B217: Z1 | C217: 3500 | D217: 3500 | E217: 3500 | F217: 3500 | G217: 3500 | H217: 3500 | I217: 0 | J217: 0 | K217: 0 | L217: 0 | M217: 0
B218: Z2 | C218: 3500 | D218: 3500 | E218: 3500 | F218: 3500 | G218: 3500 | H218: 3500 | I218: 0 | J218: 0 | K218: 0 | L218: 0 | M218: 0
B219: Z3 | C219: 3500 | D219: 3500 | E219: 3500 | F219: 3500 | G219: 3500 | H219: 3500 | I219: 0 | J219: 0 | K219: 0 | L219: 0 | M219: 0
B220: Z4 | C220: 3500 | D220: 3500 | E220: 3500 | F220: 3500 | G220: 3500 | H220: 3500 | I220: 0 | J220: 0 | K220: 0 | L220: 0 | M220: 0
B221: Z5 | C221: 3500 | D221: 3500 | E221: 3500 | F221: 3500 | G221: 3500 | H221: 3500 | I221: 0 | J221: 0 | K221: 0 | L221: 0 | M221: 0

Sheet Output_Routing_PortStayTime
H2: Scenario 1 | I2: Volume of Vessel 1 (container) | J2: Volume of Vessel 2 (container) | K2: Volume of Vessel 3 (container) | L2: Total volume of own sailing (containers) | M2: Oursourcing volume (container) | N2: Total Volume | P2: % of customers demand delivered by each vessel | T2: Routes of each vessel
H3: Customer | P3: Vessel 1 | Q3: Vessel 2 | R3: Vessel 3 | T3: Vessel # | U3: Building blocks | V3: Whether selected
H4: Full customer 1 | I4: 98 | J4: 172 | K4: 130 | L4: =SUM(I4:K4) -> 400 | M4: 0 | N4: =SUM(L4:M4) -> 400 | P4: 0.245 | Q4: 0.43 | R4: 0.325 | T4: Vessel_1 | U4: 4_A1->T1->A2 | V4: 1
H5: Full customer 2 | I5: 0 | J5: 0 | K5: 85 | L5: =SUM(I5:K5) -> 85 | M5: 0 | N5: =SUM(L5:M5) -> 85 | P5: 0 | Q5: 0 | R5: 1 | T5: Vessel_2 | U5: 3_A1->T1->A2 | V5: 1
H6: Full customer 3 | I6: 0 | J6: 0 | K6: 4 | L6: 4 | M6: 0 | N6: 4 | P6: 0 | Q6: 0 | R6: 1 | T6: Vessel_2 | U6: 17_A1->Z1->T1->A2 | V6: 1
H7: Full customer 4 | I7: 43 | J7: 49 | K7: 8 | L7: 100 | M7: 0 | N7: 100 | P7: 0.43 | Q7: 0.49 | R7: 0.08 | T7: Vessel_3 | U7: 1_A1->T1->A2 | V7: 1
H8: Full customer 5 | I8: 0 | J8: 30 | K8: 0 | L8: 30 | M8: 0 | N8: 30 | P8: 0 | Q8: 1 | R8: 0 | T8: Vessel_3 | U8: 4_A1->T1->A2 | V8: 1
H9: Full customer 6 | I9: 0 | J9: 0 | K9: 24 | L9: 24 | M9: 0 | N9: 24 | P9: 0 | Q9: 0 | R9: 1
H10: Full customer 7 | I10: 0 | J10: 2 | K10: 0 | L10: 2 | M10: 0 | N10: 2 | P10: 0 | Q10: 1 | R10: 0
H11: Full customer 8 | I11: 0 | J11: 0 | K11: 14 | L11: 14 | M11: 0 | N11: 14 | P11: 0 | Q11: 0 | R11: 1
H12: Full customer 9 | I12: 39 | J12: 0 | K12: 0 | L12: 39 | M12: 0 | N12: 39 | P12: 1 | Q12: 0 | R12: 0
H13: Full customer 10 | I13: 0 | J13: 0 | K13: 15 | L13: 15 | M13: 0 | N13: 15 | P13: 0 | Q13: 0 | R13: 1
H14: Full customer 11 | I14: 0 | J14: 30 | K14: 0 | L14: 30 | M14: 0 | N14: 30 | P14: 0 | Q14: 1 | R14: 0
H15: Full customer 12 | I15: 2 | J15: 0 | K15: 0 | L15: 2 | M15: 0 | N15: 2 | P15: 1 | Q15: 0 | R15: 0
H16: Full customer 13 | I16: 0 | J16: 0 | K16: 1 | L16: 1 | M16: 0 | N16: 1 | P16: 0 | Q16: 0 | R16: 1
H17: Full customer 14 | I17: 0 | J17: 0 | K17: 1 | L17: 1 | M17: 0 | N17: 1 | P17: 0 | Q17: 0 | R17: 1
H18: Full customer 15 | I18: 27 | J18: 0 | K18: 0 | L18: 27 | M18: 0 | N18: 27 | P18: 1 | Q18: 0 | R18: 0
H19: Full customer 16 | I19: 5 | J19: 0 | K19: 0 | L19: 5 | M19: 0 | N19: 5 | P19: 1 | Q19: 0 | R19: 0
H20: Full customer 17 | I20: 0 | J20: 0 | K20: 7 | L20: 7 | M20: 0 | N20: 7 | P20: 0 | Q20: 0 | R20: 1
H21: Full customer 18 | I21: 0 | J21: 14 | K21: 0 | L21: 14 | M21: 0 | N21: 14 | P21: 0 | Q21: 1 | R21: 0
H22: Full customer 19 | I22: 0 | J22: 30 | K22: 0 | L22: 30 | M22: 0 | N22: 30 | P22: 0 | Q22: 1 | R22: 0
H23: Full customer 20 | I23: 0 | J23: 4 | K23: 0 | L23: 4 | M23: 0 | N23: 4 | P23: 0 | Q23: 1 | R23: 0
H24: Full customer 21 | I24: 0 | J24: 1 | K24: 0 | L24: 1 | M24: 0 | N24: 1 | P24: 0 | Q24: 1 | R24: 0
H25: Full customer 22 | I25: 0 | J25: 3 | K25: 0 | L25: 3 | M25: 0 | N25: 3 | P25: 0 | Q25: 1 | R25: 0
H26: Full customer 23 | I26: 0 | J26: 5 | K26: 0 | L26: 5 | M26: 0 | N26: 5 | P26: 0 | Q26: 1 | R26: 0
H27: Full customer 24 | I27: 4 | J27: 0 | K27: 0 | L27: 4 | M27: 0 | N27: 4 | P27: 1 | Q27: 0 | R27: 0
H28: Full customer 25 | I28: 0 | J28: 5 | K28: 0 | L28: 5 | M28: 0 | N28: 5 | P28: 0 | Q28: 1 | R28: 0
H29: Full customer 26 | I29: 0 | J29: 11 | K29: 0 | L29: 11 | M29: 0 | N29: 11 | P29: 0 | Q29: 1 | R29: 0
H30: Full customer 27 | I30: 0 | J30: 14 | K30: 0 | L30: 14 | M30: 0 | N30: 14 | P30: 0 | Q30: 1 | R30: 0
H31: Full customer 28 | I31: 0 | J31: 20 | K31: 0 | L31: 20 | M31: 0 | N31: 20 | P31: 0 | Q31: 1 | R31: 0
H32: Empty customer 1 | I32: 0 | J32: 0 | K32: 147 | L32: 147 | M32: 0 | N32: 147 | P32: 0 | Q32: 0 | R32: 1
H33: Empty customer 2 | I33: 4 | J33: 0 | K33: 0 | L33: 4 | M33: 0 | N33: 4 | P33: 1 | Q33: 0 | R33: 0
H34: Empty customer 3 | I34: 0 | J34: 0 | K34: 38 | L34: 38 | M34: 0 | N34: 38 | P34: 0 | Q34: 0 | R34: 1
H35: Empty customer 4 | I35: 0 | J35: 40 | K35: 0 | L35: 40 | M35: 0 | N35: 40 | P35: 0 | Q35: 1 | R35: 0
H36: Empty customer 5 | I36: 0 | J36: 23 | K36: 0 | L36: 23 | M36: 0 | N36: 23 | P36: 0 | Q36: 1 | R36: 0
H37: Empty customer 6 | I37: 0 | J37: 13 | K37: 0 | L37: 13 | M37: 0 | N37: 13 | P37: 0 | Q37: 1 | R37: 0
H38: Empty customer 7 | I38: 5 | J38: 0 | K38: 0 | L38: 5 | M38: 0 | N38: 5 | P38: 1 | Q38: 0 | R38: 0
H39: Empty customer 8 | I39: 0 | J39: 4 | K39: 0 | L39: 4 | M39: 0 | N39: 4 | P39: 0 | Q39: 1 | R39: 0
H40: Empty customer 9 | I40: 0 | J40: 6 | K40: 0 | L40: 6 | M40: 0 | N40: 6 | P40: 0 | Q40: 1 | R40: 0
H41: Empty customer 10 | I41: 0 | J41: 2 | K41: 0 | L41: 2 | M41: 0 | N41: 2 | P41: 0 | Q41: 1 | R41: 0
H44: Scenario 2 | I44: Volume of Vessel 1 (container) | J44: Volume of Vessel 2 (container) | K44: Volume of Vessel 3 (container) | L44: Total volume of own sailing (containers) | M44: Oursourcing volume (container) | N44: Total Volume | P44: % of customers demand delivered by each vessel | T44: Routes of each vessel
H45: Customer | P45: Vessel 1 | Q45: Vessel 2 | R45: Vessel 3 | T45: Vessel # | U45: Building blocks | V45: Whether selected
H46: Full customer 1 | I46: 194 | J46: 82 | K46: 84 | L46: =SUM(I46:K46) -> 360 | M46: 0 | N46: =SUM(L46:M46) -> 360 | P46: 0.5388888889 | Q46: 0.2277777778 | R46: 0.2333333333 | T46: Vessel_1 | U46: 1_A1->T1->A2 | V46: 1
H47: Full customer 2 | I47: 0 | J47: 77 | K47: 0 | L47: =SUM(I47:K47) -> 77 | M47: 0 | N47: =SUM(L47:M47) -> 77 | P47: 0 | Q47: 1 | R47: 0 | T47: Vessel_1 | U47: 16_A1->Z1->T1->A2 | V47: 1
H48: Full customer 3 | I48: 0 | J48: 4 | K48: 0 | L48: 4 | M48: 0 | N48: 4 | P48: 0 | Q48: 1 | R48: 0 | T48: Vessel_2 | U48: 10_A1->T1->Z1->A2 | V48: 1
H49: Full customer 4 | I49: 4 | J49: 0 | K49: 86 | L49: 90 | M49: 0 | N49: 90 | P49: 0.04444444444 | Q49: 0 | R49: 0.9555555556 | T49: Vessel_3 | U49: 10_A1->T1->Z1->A2 | V49: 1
H50: Full customer 5 | I50: 27 | J50: 0 | K50: 0 | L50: 27 | M50: 0 | N50: 27 | P50: 1 | Q50: 0 | R50: 0
H51: Full customer 6 | I51: 0 | J51: 22 | K51: 0 | L51: 22 | M51: 0 | N51: 22 | P51: 0 | Q51: 1 | R51: 0
H52: Full customer 7 | I52: 2 | J52: 0 | K52: 0 | L52: 2 | M52: 0 | N52: 2 | P52: 1 | Q52: 0 | R52: 0
H53: Full customer 8 | I53: 13 | J53: 0 | K53: 0 | L53: 13 | M53: 0 | N53: 13 | P53: 1 | Q53: 0 | R53: 0
H54: Full customer 9 | I54: 35 | J54: 0 | K54: 0 | L54: 35 | M54: 0 | N54: 35 | P54: 1 | Q54: 0 | R54: 0
H55: Full customer 10 | I55: 10 | J55: 4 | K55: 0 | L55: 14 | M55: 0 | N55: 14 | P55: 0.7142857143 | Q55: 0.2857142857 | R55: 0
H56: Full customer 11 | I56: 27 | J56: 0 | K56: 0 | L56: 27 | M56: 0 | N56: 27 | P56: 1 | Q56: 0 | R56: 0
H57: Full customer 12 | I57: 2 | J57: 0 | K57: 0 | L57: 2 | M57: 0 | N57: 2 | P57: 1 | Q57: 0 | R57: 0
H58: Full customer 13 | I58: 0 | J58: 1 | K58: 0 | L58: 1 | M58: 0 | N58: 1 | P58: 0 | Q58: 1 | R58: 0
H59: Full customer 14 | I59: 0 | J59: 1 | K59: 0 | L59: 1 | M59: 0 | N59: 1 | P59: 0 | Q59: 1 | R59: 0
H60: Full customer 15 | I60: 24 | J60: 0 | K60: 0 | L60: 24 | M60: 0 | N60: 24 | P60: 1 | Q60: 0 | R60: 0
H61: Full customer 16 | I61: 0 | J61: 0 | K61: 5 | L61: 5 | M61: 0 | N61: 5 | P61: 0 | Q61: 0 | R61: 1
H62: Full customer 17 | I62: 6 | J62: 0 | K62: 0 | L62: 6 | M62: 0 | N62: 6 | P62: 1 | Q62: 0 | R62: 0
H63: Full customer 18 | I63: 13 | J63: 0 | K63: 0 | L63: 13 | M63: 0 | N63: 13 | P63: 1 | Q63: 0 | R63: 0
H64: Full customer 19 | I64: 27 | J64: 0 | K64: 0 | L64: 27 | M64: 0 | N64: 27 | P64: 1 | Q64: 0 | R64: 0
H65: Full customer 20 | I65: 4 | J65: 0 | K65: 0 | L65: 4 | M65: 0 | N65: 4 | P65: 1 | Q65: 0 | R65: 0
H66: Full customer 21 | I66: 1 | J66: 0 | K66: 0 | L66: 1 | M66: 0 | N66: 1 | P66: 1 | Q66: 0 | R66: 0
H67: Full customer 22 | I67: 3 | J67: 0 | K67: 0 | L67: 3 | M67: 0 | N67: 3 | P67: 1 | Q67: 0 | R67: 0
H68: Full customer 23 | I68: 5 | J68: 0 | K68: 0 | L68: 5 | M68: 0 | N68: 5 | P68: 1 | Q68: 0 | R68: 0
H69: Full customer 24 | I69: 4 | J69: 0 | K69: 0 | L69: 4 | M69: 0 | N69: 4 | P69: 1 | Q69: 0 | R69: 0
H70: Full customer 25 | I70: 5 | J70: 0 | K70: 0 | L70: 5 | M70: 0 | N70: 5 | P70: 1 | Q70: 0 | R70: 0
H71: Full customer 26 | I71: 10 | J71: 0 | K71: 0 | L71: 10 | M71: 0 | N71: 10 | P71: 1 | Q71: 0 | R71: 0
H72: Full customer 27 | I72: 13 | J72: 0 | K72: 0 | L72: 13 | M72: 0 | N72: 13 | P72: 1 | Q72: 0 | R72: 0
H73: Full customer 28 | I73: 0 | J73: 0 | K73: 18 | L73: 18 | M73: 0 | N73: 18 | P73: 0 | Q73: 0 | R73: 1
H74: Empty customer 1 | I74: 0 | J74: 0 | K74: 132 | L74: 132 | M74: 0 | N74: 132 | P74: 0 | Q74: 0 | R74: 1
H75: Empty customer 2 | I75: 4 | J75: 0 | K75: 0 | L75: 4 | M75: 0 | N75: 4 | P75: 1 | Q75: 0 | R75: 0
H76: Empty customer 3 | I76: 34 | J76: 0 | K76: 0 | L76: 34 | M76: 0 | N76: 34 | P76: 1 | Q76: 0 | R76: 0
H77: Empty customer 4 | I77: 0 | J77: 0 | K77: 36 | L77: 36 | M77: 0 | N77: 36 | P77: 0 | Q77: 0 | R77: 1
H78: Empty customer 5 | I78: 0 | J78: 0 | K78: 21 | L78: 21 | M78: 0 | N78: 21 | P78: 0 | Q78: 0 | R78: 1
H79: Empty customer 6 | I79: 12 | J79: 0 | K79: 0 | L79: 12 | M79: 0 | N79: 12 | P79: 1 | Q79: 0 | R79: 0
H80: Empty customer 7 | I80: 5 | J80: 0 | K80: 0 | L80: 5 | M80: 0 | N80: 5 | P80: 1 | Q80: 0 | R80: 0
H81: Empty customer 8 | I81: 4 | J81: 0 | K81: 0 | L81: 4 | M81: 0 | N81: 4 | P81: 1 | Q81: 0 | R81: 0
H82: Empty customer 9 | I82: 0 | J82: 0 | K82: 5 | L82: 5 | M82: 0 | N82: 5 | P82: 0 | Q82: 0 | R82: 1
H83: Empty customer 10 | I83: 2 | J83: 0 | K83: 0 | L83: 2 | M83: 0 | N83: 2 | P83: 1 | Q83: 0 | R83: 0
H86: Scenario 3 | I86: Volume of Vessel 1 (container) | J86: Volume of Vessel 2 (container) | K86: Volume of Vessel 3 (container) | L86: Total volume of own sailing (containers) | M86: Oursourcing volume (container) | N86: Total Volume | P86: % of customers demand delivered by each vessel | T86: Routes of each vessel
H87: Customer | P87: Vessel 1 | Q87: Vessel 2 | R87: Vessel 3 | T87: Vessel # | U87: Building blocks | V87: Whether selected
H88: Full customer 1 | I88: 91 | J88: 99 | K88: 130 | L88: =SUM(I88:K88) -> 320 | M88: 0 | N88: =SUM(L88:M88) -> 320 | P88: 0.284375 | Q88: 0.309375 | R88: 0.40625 | T88: Vessel_1 | U88: 4_A1->T1->A2 | V88: 1
H89: Full customer 2 | I89: 64 | J89: 0 | K89: 4 | L89: =SUM(I89:K89) -> 68 | M89: 0 | N89: =SUM(L89:M89) -> 68 | P89: 0.9411764706 | Q89: 0 | R89: 0.05882352941 | T89: Vessel_2 | U89: 2_A1->T1->A2 | V89: 1
H90: Full customer 3 | I90: 0 | J90: 3 | K90: 0 | L90: 3 | M90: 0 | N90: 3 | P90: 0 | Q90: 1 | R90: 0 | T90: Vessel_3 | U90: 2_A1->T1->A2 | V90: 1
H91: Full customer 4 | I91: 0 | J91: 80 | K91: 0 | L91: 80 | M91: 0 | N91: 80 | P91: 0 | Q91: 1 | R91: 0 | T91: Vessel_3 | U91: 11_A1->T1->Z1->A2 | V91: 1
H92: Full customer 5 | I92: 23 | J92: 0 | K92: 1 | L92: 24 | M92: 0 | N92: 24 | P92: 0.9583333333 | Q92: 0 | R92: 0.04166666667
H93: Full customer 6 | I93: 0 | J93: 0 | K93: 19 | L93: 19 | M93: 0 | N93: 19 | P93: 0 | Q93: 0 | R93: 1
H94: Full customer 7 | I94: 0 | J94: 0 | K94: 2 | L94: 2 | M94: 0 | N94: 2 | P94: 0 | Q94: 0 | R94: 1
H95: Full customer 8 | I95: 0 | J95: 0 | K95: 11 | L95: 11 | M95: 0 | N95: 11 | P95: 0 | Q95: 0 | R95: 1
H96: Full customer 9 | I96: 31 | J96: 0 | K96: 0 | L96: 31 | M96: 0 | N96: 31 | P96: 1 | Q96: 0 | R96: 0
H97: Full customer 10 | I97: 0 | J97: 0 | K97: 12 | L97: 12 | M97: 0 | N97: 12 | P97: 0 | Q97: 0 | R97: 1
H98: Full customer 11 | I98: 0 | J98: 0 | K98: 24 | L98: 24 | M98: 0 | N98: 24 | P98: 0 | Q98: 0 | R98: 1
H99: Full customer 12 | I99: 0 | J99: 0 | K99: 2 | L99: 2 | M99: 0 | N99: 2 | P99: 0 | Q99: 0 | R99: 1
H100: Full customer 13 | I100: 0 | J100: 0 | K100: 1 | L100: 1 | M100: 0 | N100: 1 | P100: 0 | Q100: 0 | R100: 1
H101: Full customer 14 | I101: 0 | J101: 1 | K101: 0 | L101: 1 | M101: 0 | N101: 1 | P101: 0 | Q101: 1 | R101: 0
H102: Full customer 15 | I102: 0 | J102: 22 | K102: 0 | L102: 22 | M102: 0 | N102: 22 | P102: 0 | Q102: 1 | R102: 0
H103: Full customer 16 | I103: 0 | J103: 0 | K103: 4 | L103: 4 | M103: 0 | N103: 4 | P103: 0 | Q103: 0 | R103: 1
H104: Full customer 17 | I104: 0 | J104: 0 | K104: 6 | L104: 6 | M104: 0 | N104: 6 | P104: 0 | Q104: 0 | R104: 1
H105: Full customer 18 | I105: 0 | J105: 0 | K105: 11 | L105: 11 | M105: 0 | N105: 11 | P105: 0 | Q105: 0 | R105: 1
H106: Full customer 19 | I106: 0 | J106: 0 | K106: 24 | L106: 24 | M106: 0 | N106: 24 | P106: 0 | Q106: 0 | R106: 1
H107: Full customer 20 | I107: 0 | J107: 0 | K107: 3 | L107: 3 | M107: 0 | N107: 3 | P107: 0 | Q107: 0 | R107: 1
H108: Full customer 21 | I108: 0 | J108: 0 | K108: 1 | L108: 1 | M108: 0 | N108: 1 | P108: 0 | Q108: 0 | R108: 1
H109: Full customer 22 | I109: 0 | J109: 0 | K109: 2 | L109: 2 | M109: 0 | N109: 2 | P109: 0 | Q109: 0 | R109: 1
H110: Full customer 23 | I110: 0 | J110: 0 | K110: 4 | L110: 4 | M110: 0 | N110: 4 | P110: 0 | Q110: 0 | R110: 1
H111: Full customer 24 | I111: 0 | J111: 0 | K111: 3 | L111: 3 | M111: 0 | N111: 3 | P111: 0 | Q111: 0 | R111: 1
H112: Full customer 25 | I112: 0 | J112: 0 | K112: 4 | L112: 4 | M112: 0 | N112: 4 | P112: 0 | Q112: 0 | R112: 1
H113: Full customer 26 | I113: 0 | J113: 0 | K113: 9 | L113: 9 | M113: 0 | N113: 9 | P113: 0 | Q113: 0 | R113: 1
H114: Full customer 27 | I114: 0 | J114: 0 | K114: 11 | L114: 11 | M114: 0 | N114: 11 | P114: 0 | Q114: 0 | R114: 1
H115: Full customer 28 | I115: 0 | J115: 0 | K115: 16 | L115: 16 | M115: 0 | N115: 16 | P115: 0 | Q115: 0 | R115: 1
H116: Empty customer 1 | I116: 0 | J116: 0 | K116: 118 | L116: 118 | M116: 0 | N116: 118 | P116: 0 | Q116: 0 | R116: 1
H117: Empty customer 2 | I117: 0 | J117: 0 | K117: 3 | L117: 3 | M117: 0 | N117: 3 | P117: 0 | Q117: 0 | R117: 1
H118: Empty customer 3 | I118: 30 | J118: 0 | K118: 0 | L118: 30 | M118: 0 | N118: 30 | P118: 1 | Q118: 0 | R118: 0
H119: Empty customer 4 | I119: 0 | J119: 0 | K119: 32 | L119: 32 | M119: 0 | N119: 32 | P119: 0 | Q119: 0 | R119: 1
H120: Empty customer 5 | I120: 0 | J120: 0 | K120: 18 | L120: 18 | M120: 0 | N120: 18 | P120: 0 | Q120: 0 | R120: 1
H121: Empty customer 6 | I121: 0 | J121: 10 | K121: 0 | L121: 10 | M121: 0 | N121: 10 | P121: 0 | Q121: 1 | R121: 0
H122: Empty customer 7 | I122: 4 | J122: 0 | K122: 0 | L122: 4 | M122: 0 | N122: 4 | P122: 1 | Q122: 0 | R122: 0
H123: Empty customer 8 | I123: 0 | J123: 0 | K123: 3 | L123: 3 | M123: 0 | N123: 3 | P123: 0 | Q123: 0 | R123: 1
H124: Empty customer 9 | I124: 0 | J124: 0 | K124: 5 | L124: 5 | M124: 0 | N124: 5 | P124: 0 | Q124: 0 | R124: 1
H125: Empty customer 10 | I125: 0 | J125: 0 | K125: 2 | L125: 2 | M125: 0 | N125: 2 | P125: 0 | Q125: 0 | R125: 1
H128: Scenario 4 | I128: Volume of Vessel 1 (container) | J128: Volume of Vessel 2 (container) | K128: Volume of Vessel 3 (container) | L128: Total volume of own sailing (containers) | M128: Oursourcing volume (container) | N128: Total Volume | P128: % of customers demand delivered by each vessel | T128: Routes of each vessel
H129: Customer | P129: Vessel 1 | Q129: Vessel 2 | R129: Vessel 3 | T129: Vessel # | U129: Building blocks | V129: Whether selected
H130: Full customer 1 | I130: 165 | J130: 81 | K130: 194 | L130: =SUM(I130:K130) -> 440 | M130: 0 | N130: =SUM(L130:M130) -> 440 | P130: 0.375 | Q130: 0.1840909091 | R130: 0.4409090909 | T130: Vessel_1 | U130: 4_A1->T1->A2 | V130: 1
H131: Full customer 2 | I131: 64 | J131: 0 | K131: 30 | L131: =SUM(I131:K131) -> 94 | M131: 0 | N131: =SUM(L131:M131) -> 94 | P131: 0.6808510638 | Q131: 0 | R131: 0.3191489362 | T131: Vessel_1 | U131: 18_A1->Z1->T1->A2 | V131: 1
H132: Full customer 3 | I132: 0 | J132: 0 | K132: 4 | L132: 4 | M132: 0 | N132: 4 | P132: 0 | Q132: 0 | R132: 1 | T132: Vessel_2 | U132: 11_A1->T1->Z1->A2 | V132: 1
H133: Full customer 4 | I133: 1 | J133: 73 | K133: 36 | L133: 110 | M133: 0 | N133: 110 | P133: 0.009090909091 | Q133: 0.6636363636 | R133: 0.3272727273 | T133: Vessel_3 | U133: 2_A1->T1->A2 | V133: 1
H134: Full customer 5 | I134: 25 | J134: 0 | K134: 8 | L134: 33 | M134: 0 | N134: 33 | P134: 0.7575757576 | Q134: 0 | R134: 0.2424242424 | T134: Vessel_3 | U134: 3_A1->T1->A2 | V134: 1
H135: Full customer 6 | I135: 0 | J135: 0 | K135: 26 | L135: 26 | M135: 0 | N135: 26 | P135: 0 | Q135: 0 | R135: 1
H136: Full customer 7 | I136: 0 | J136: 2 | K136: 0 | L136: 2 | M136: 0 | N136: 2 | P136: 0 | Q136: 1 | R136: 0
H137: Full customer 8 | I137: 0 | J137: 0 | K137: 15 | L137: 15 | M137: 0 | N137: 15 | P137: 0 | Q137: 0 | R137: 1
H138: Full customer 9 | I138: 0 | J138: 0 | K138: 43 | L138: 43 | M138: 0 | N138: 43 | P138: 0 | Q138: 0 | R138: 1
H139: Full customer 10 | I139: 17 | J139: 0 | K139: 0 | L139: 17 | M139: 0 | N139: 17 | P139: 1 | Q139: 0 | R139: 0
H140: Full customer 11 | I140: 0 | J140: 33 | K140: 0 | L140: 33 | M140: 0 | N140: 33 | P140: 0 | Q140: 1 | R140: 0
H141: Full customer 12 | I141: 0 | J141: 0 | K141: 2 | L141: 2 | M141: 0 | N141: 2 | P141: 0 | Q141: 0 | R141: 1
H142: Full customer 13 | I142: 0 | J142: 0 | K142: 1 | L142: 1 | M142: 0 | N142: 1 | P142: 0 | Q142: 0 | R142: 1
H143: Full customer 14 | I143: 0 | J143: 0 | K143: 1 | L143: 1 | M143: 0 | N143: 1 | P143: 0 | Q143: 0 | R143: 1
H144: Full customer 15 | I144: 0 | J144: 0 | K144: 30 | L144: 30 | M144: 0 | N144: 30 | P144: 0 | Q144: 0 | R144: 1
H145: Full customer 16 | I145: 6 | J145: 0 | K145: 0 | L145: 6 | M145: 0 | N145: 6 | P145: 1 | Q145: 0 | R145: 0
H146: Full customer 17 | I146: 0 | J146: 8 | K146: 0 | L146: 8 | M146: 0 | N146: 8 | P146: 0 | Q146: 1 | R146: 0
H147: Full customer 18 | I147: 15 | J147: 0 | K147: 0 | L147: 15 | M147: 0 | N147: 15 | P147: 1 | Q147: 0 | R147: 0
H148: Full customer 19 | I148: 33 | J148: 0 | K148: 0 | L148: 33 | M148: 0 | N148: 33 | P148: 1 | Q148: 0 | R148: 0
H149: Full customer 20 | I149: 4 | J149: 0 | K149: 0 | L149: 4 | M149: 0 | N149: 4 | P149: 1 | Q149: 0 | R149: 0
H150: Full customer 21 | I150: 1 | J150: 0 | K150: 0 | L150: 1 | M150: 0 | N150: 1 | P150: 1 | Q150: 0 | R150: 0
H151: Full customer 22 | I151: 3 | J151: 0 | K151: 0 | L151: 3 | M151: 0 | N151: 3 | P151: 1 | Q151: 0 | R151: 0
H152: Full customer 23 | I152: 6 | J152: 0 | K152: 0 | L152: 6 | M152: 0 | N152: 6 | P152: 1 | Q152: 0 | R152: 0
H153: Full customer 24 | I153: 4 | J153: 0 | K153: 0 | L153: 4 | M153: 0 | N153: 4 | P153: 1 | Q153: 0 | R153: 0
H154: Full customer 25 | I154: 6 | J154: 0 | K154: 0 | L154: 6 | M154: 0 | N154: 6 | P154: 1 | Q154: 0 | R154: 0
H155: Full customer 26 | I155: 12 | J155: 0 | K155: 0 | L155: 12 | M155: 0 | N155: 12 | P155: 1 | Q155: 0 | R155: 0
H156: Full customer 27 | I156: 15 | J156: 0 | K156: 0 | L156: 15 | M156: 0 | N156: 15 | P156: 1 | Q156: 0 | R156: 0
H157: Full customer 28 | I157: 0 | J157: 22 | K157: 0 | L157: 22 | M157: 0 | N157: 22 | P157: 0 | Q157: 1 | R157: 0
H158: Empty customer 1 | I158: 3 | J158: 0 | K158: 159 | L158: 162 | M158: 0 | N158: 162 | P158: 0.01851851852 | Q158: 0 | R158: 0.9814814815
H159: Empty customer 2 | I159: 0 | J159: 0 | K159: 4 | L159: 4 | M159: 0 | N159: 4 | P159: 0 | Q159: 0 | R159: 1
H160: Empty customer 3 | I160: 0 | J160: 0 | K160: 42 | L160: 42 | M160: 0 | N160: 42 | P160: 0 | Q160: 0 | R160: 1
H161: Empty customer 4 | I161: 0 | J161: 44 | K161: 0 | L161: 44 | M161: 0 | N161: 44 | P161: 0 | Q161: 1 | R161: 0
H162: Empty customer 5 | I162: 0 | J162: 25 | K162: 0 | L162: 25 | M162: 0 | N162: 25 | P162: 0 | Q162: 1 | R162: 0
H163: Empty customer 6 | I163: 0 | J163: 0 | K163: 14 | L163: 14 | M163: 0 | N163: 14 | P163: 0 | Q163: 0 | R163: 1
H164: Empty customer 7 | I164: 0 | J164: 0 | K164: 6 | L164: 6 | M164: 0 | N164: 6 | P164: 0 | Q164: 0 | R164: 1
H165: Empty customer 8 | I165: 0 | J165: 4 | K165: 0 | L165: 4 | M165: 0 | N165: 4 | P165: 0 | Q165: 1 | R165: 0
H166: Empty customer 9 | I166: 0 | J166: 7 | K166: 0 | L166: 7 | M166: 0 | N166: 7 | P166: 0 | Q166: 1 | R166: 0
H167: Empty customer 10 | I167: 2 | J167: 0 | K167: 0 | L167: 2 | M167: 0 | N167: 2 | P167: 1 | Q167: 0 | R167: 0
H170: Scenario 5 | I170: Volume of Vessel 1 (container) | J170: Volume of Vessel 2 (container) | K170: Volume of Vessel 3 (container) | L170: Total volume of own sailing (containers) | M170: Oursourcing volume (container) | N170: Total Volume | P170: % of customers demand delivered by each vessel | T170: Routes of each vessel
H171: Customer | P171: Vessel 1 | Q171: Vessel 2 | R171: Vessel 3 | T171: Vessel # | U171: Building blocks | V171: Whether selected
H172: Full customer 1 | I172: 195 | J172: 79 | K172: 200 | L172: =SUM(I172:K172) -> 474 | M172: 6 | N172: =SUM(L172:M172) -> 480 | P172: 0.4113924051 | Q172: 0.1666666667 | R172: 0.4219409283 | T172: Vessel_1 | U172: 1_A1->T1->A2 | V172: 1
H173: Full customer 2 | I173: 0 | J173: 0 | K173: 102 | L173: =SUM(I173:K173) -> 102 | M173: 0 | N173: =SUM(L173:M173) -> 102 | P173: 0 | Q173: 0 | R173: 1 | T173: Vessel_1 | U173: 2_A1->T1->A2 | V173: 1
H174: Full customer 3 | I174: 5 | J174: 0 | K174: 0 | L174: 5 | M174: 0 | N174: 5 | P174: 1 | Q174: 0 | R174: 0 | T174: Vessel_2 | U174: 13_A1->T1->Z1->T2->Z2->A2 | V174: 1
H175: Full customer 4 | I175: 27 | J175: 18 | K175: 75 | L175: 120 | M175: 0 | N175: 120 | P175: 0.225 | Q175: 0.15 | R175: 0.625 | T175: Vessel_3 | U175: 1_A1->T1->A2 | V175: 1
H176: Full customer 5 | I176: 36 | J176: 0 | K176: 0 | L176: 36 | M176: 0 | N176: 36 | P176: 1 | Q176: 0 | R176: 0 | T176: Vessel_3 | U176: 2_A1->T1->A2 | V176: 1
H177: Full customer 6 | I177: 0 | J177: 29 | K177: 0 | L177: 29 | M177: 0 | N177: 29 | P177: 0 | Q177: 1 | R177: 0
H178: Full customer 7 | I178: 0 | J178: 0 | K178: 2 | L178: 2 | M178: 0 | N178: 2 | P178: 0 | Q178: 0 | R178: 1
H179: Full customer 8 | I179: 17 | J179: 0 | K179: 0 | L179: 17 | M179: 0 | N179: 17 | P179: 1 | Q179: 0 | R179: 0
H180: Full customer 9 | I180: 47 | J180: 0 | K180: 0 | L180: 47 | M180: 0 | N180: 47 | P180: 1 | Q180: 0 | R180: 0
H181: Full customer 10 | I181: 18 | J181: 0 | K181: 0 | L181: 18 | M181: 0 | N181: 18 | P181: 1 | Q181: 0 | R181: 0
H182: Full customer 11 | I182: 0 | J182: 0 | K182: 36 | L182: 36 | M182: 0 | N182: 36 | P182: 0 | Q182: 0 | R182: 1
H183: Full customer 12 | I183: 2 | J183: 0 | K183: 0 | L183: 2 | M183: 0 | N183: 2 | P183: 1 | Q183: 0 | R183: 0
H184: Full customer 13 | I184: 0 | J184: 0 | K184: 1 | L184: 1 | M184: 0 | N184: 1 | P184: 0 | Q184: 0 | R184: 1
H185: Full customer 14 | I185: 1 | J185: 0 | K185: 0 | L185: 1 | M185: 0 | N185: 1 | P185: 1 | Q185: 0 | R185: 0
H186: Full customer 15 | I186: 32 | J186: 0 | K186: 0 | L186: 32 | M186: 0 | N186: 32 | P186: 1 | Q186: 0 | R186: 0
H187: Full customer 16 | I187: 6 | J187: 0 | K187: 0 | L187: 6 | M187: 0 | N187: 6 | P187: 1 | Q187: 0 | R187: 0
H188: Full customer 17 | I188: 8 | J188: 0 | K188: 0 | L188: 8 | M188: 0 | N188: 8 | P188: 1 | Q188: 0 | R188: 0
H189: Full customer 18 | I189: 0 | J189: 17 | K189: 0 | L189: 17 | M189: 0 | N189: 17 | P189: 0 | Q189: 1 | R189: 0
H190: Full customer 19 | I190: 0 | J190: 36 | K190: 0 | L190: 36 | M190: 0 | N190: 36 | P190: 0 | Q190: 1 | R190: 0
H191: Full customer 20 | I191: 0 | J191: 5 | K191: 0 | L191: 5 | M191: 0 | N191: 5 | P191: 0 | Q191: 1 | R191: 0
H192: Full customer 21 | I192: 0 | J192: 1 | K192: 0 | L192: 1 | M192: 0 | N192: 1 | P192: 0 | Q192: 1 | R192: 0
H193: Full customer 22 | I193: 0 | J193: 4 | K193: 0 | L193: 4 | M193: 0 | N193: 4 | P193: 0 | Q193: 1 | R193: 0
H194: Full customer 23 | I194: 0 | J194: 6 | K194: 0 | L194: 6 | M194: 0 | N194: 6 | P194: 0 | Q194: 1 | R194: 0
H195: Full customer 24 | I195: 4 | J195: 1 | K195: 0 | L195: 5 | M195: 0 | N195: 5 | P195: 0.8 | Q195: 0.2 | R195: 0
H196: Full customer 25 | I196: 0 | J196: 6 | K196: 0 | L196: 6 | M196: 0 | N196: 6 | P196: 0 | Q196: 1 | R196: 0
H197: Full customer 26 | I197: 0 | J197: 13 | K197: 0 | L197: 13 | M197: 0 | N197: 13 | P197: 0 | Q197: 1 | R197: 0
H198: Full customer 27 | I198: 0 | J198: 17 | K198: 0 | L198: 17 | M198: 0 | N198: 17 | P198: 0 | Q198: 1 | R198: 0
H199: Full customer 28 | I199: 0 | J199: 23 | K199: 0 | L199: 23 | M199: 1 | N199: 24 | P199: 0 | Q199: 1 | R199: 0
H200: Empty customer 1 | I200: 138 | J200: 0 | K200: 38 | L200: 176 | M200: 0 | N200: 176 | P200: 0.7840909091 | Q200: 0 | R200: 0.2159090909
H201: Empty customer 2 | I201: 0 | J201: 5 | K201: 0 | L201: 5 | M201: 0 | N201: 5 | P201: 0 | Q201: 1 | R201: 0
H202: Empty customer 3 | I202: 46 | J202: 0 | K202: 0 | L202: 46 | M202: 0 | N202: 46 | P202: 1 | Q202: 0 | R202: 0
H203: Empty customer 4 | I203: 0 | J203: 48 | K203: 0 | L203: 48 | M203: 0 | N203: 48 | P203: 0 | Q203: 1 | R203: 0
H204: Empty customer 5 | I204: 0 | J204: 28 | K204: 0 | L204: 28 | M204: 0 | N204: 28 | P204: 0 | Q204: 1 | R204: 0
H205: Empty customer 6 | I205: 16 | J205: 0 | K205: 0 | L205: 16 | M205: 0 | N205: 16 | P205: 1 | Q205: 0 | R205: 0
H206: Empty customer 7 | I206: 1 | J206: 5 | K206: 0 | L206: 6 | M206: 0 | N206: 6 | P206: 0.1666666667 | Q206: 0.8333333333 | R206: 0
H207: Empty customer 8 | I207: 0 | J207: 5 | K207: 0 | L207: 5 | M207: 0 | N207: 5 | P207: 0 | Q207: 1 | R207: 0
H208: Empty customer 9 | I208: 0 | J208: 7 | K208: 0 | L208: 7 | M208: 0 | N208: 7 | P208: 0 | Q208: 1 | R208: 0
H209: Empty customer 10 | I209: 0 | J209: 2 | K209: 0 | L209: 2 | M209: 0 | N209: 2 | P209: 0 | Q209: 1 | R209: 0

Sheet Output_Scheduling_PortStayTime
B12: Schedule of Vessel 1 | N12: Schedule of Vessel 2 | Z12: Schedule of Vessel 3
B13: Scenario 1 | N13: Scenario 1 | Z13: Scenario 1
B14: Buidling block | C14: O | D14: D | E14: Estimate time departure (ETD) | F14: ETD (DAY) | G14: ETD (HOUR) | H14: Estimated time arrival (ETA) | I14: ETA (DAY) | J14: ETA (HOUR) | K14: Volume Utilization | L14: Weight Utilization | N14: Buidling block | O14: O | P14: D | Q14: Estimate time departure (ETD) | R14: ETD (DAY) | S14: ETD (HOUR) | T14: Estimated time arrival (ETA) | U14: ETA (DAY) | V14: ETA (HOUR) | W14: Volume Utilization | X14: Weight Utilization | Z14: Buidling block | AA14: O | AB14: D | AC14: Estimate time departure (ETD) | AD14: ETD (DAY) | AE14: ETD (HOUR) | AF14: Estimated time arrival (ETA) | AG14: ETA (DAY) | AH14: ETA (HOUR) | AI14: Volume Utilization | AJ14: Weight Utilization
B15: 4_A1->T1->A2 | C15: A1 | D15: T1 | E15: 85 | F15: =IF(E15=0,"",IF(E15<24,"Sun",IF(E15<48,"Mon",IF(E15<72,"Tue",IF(E15<96,"Wed",IF(E15<120,"Thur",IF(E15<144,"Fri","Sat"))))))) -> Wed | G15: =IF(F15="","",(E15-ROUNDDOWN(E15/24,0)*24)) -> 13 | H15: 103 | I15: =IF(H15=0,"",IF(H15<24,"Sun",IF(H15<48,"Mon",IF(H15<72,"Tue",IF(H15<96,"Wed",IF(H15<120,"Thur",IF(H15<144,"Fri","Sat"))))))) -> Thur | J15: =IF(I15="","",(H15-ROUNDDOWN(H15/24,0)*24)) -> 7 | K15: 0.4775 | L15: 0.9934285714 | N15: 3_A1->T1->A2 | O15: A1 | P15: T1 | Q15: 9 | R15: =IF(Q15=0,"",IF(Q15<24,"Sun",IF(Q15<48,"Mon",IF(Q15<72,"Tue",IF(Q15<96,"Wed",IF(Q15<120,"Thur",IF(Q15<144,"Fri","Sat"))))))) -> Sun | S15: =IF(R15="","",(Q15-ROUNDDOWN(Q15/24,0)*24)) -> 9 | T15: 27 | U15: =IF(T15=0,"",IF(T15<24,"Sun",IF(T15<48,"Mon",IF(T15<72,"Tue",IF(T15<96,"Wed",IF(T15<120,"Thur",IF(T15<144,"Fri","Sat"))))))) -> Mon | V15: =IF(U15="","",(T15-ROUNDDOWN(T15/24,0)*24)) -> 3 | W15: 0.453125 | X15: 0.9971428571 | Z15: 1_A1->T1->A2 | AA15: A1 | AB15: T1 | AC15: 13 | AD15: =IF(AC15=0,"",IF(AC15<24,"Sun",IF(AC15<48,"Mon",IF(AC15<72,"Tue",IF(AC15<96,"Wed",IF(AC15<120,"Thur",IF(AC15<144,"Fri","Sat"))))))) -> Sun | AE15: =IF(AD15="","",(AC15-ROUNDDOWN(AC15/24,0)*24)) -> 13 | AF15: 31 | AG15: =IF(AF15=0,"",IF(AF15<24,"Sun",IF(AF15<48,"Mon",IF(AF15<72,"Tue",IF(AF15<96,"Wed",IF(AF15<120,"Thur",IF(AF15<144,"Fri","Sat"))))))) -> Mon | AH15: =IF(AG15="","",(AF15-ROUNDDOWN(AF15/24,0)*24)) -> 7 | AI15: 0.3025 | AJ15: 0.4562857143
B16: 4_A1->T1->A2 | C16: T1 | D16: A2 | E16: 135 | F16: =IF(E16=0,"",IF(E16<24,"Sun",IF(E16<48,"Mon",IF(E16<72,"Tue",IF(E16<96,"Wed",IF(E16<120,"Thur",IF(E16<144,"Fri","Sat"))))))) -> Fri | G16: =IF(F16="","",(E16-ROUNDDOWN(E16/24,0)*24)) -> 15 | H16: 153 | I16: =IF(H16=0,"",IF(H16<24,"Sun",IF(H16<48,"Mon",IF(H16<72,"Tue",IF(H16<96,"Wed",IF(H16<120,"Thur",IF(H16<144,"Fri","Sat"))))))) -> Sat | J16: =IF(I16="","",(H16-ROUNDDOWN(H16/24,0)*24)) -> 9 | K16: 0.528125 | L16: 0.9902857143 | N16: 3_A1->T1->A2 | O16: T1 | P16: A2 | Q16: 42.3125 | R16: =IF(Q16=0,"",IF(Q16<24,"Sun",IF(Q16<48,"Mon",IF(Q16<72,"Tue",IF(Q16<96,"Wed",IF(Q16<120,"Thur",IF(Q16<144,"Fri","Sat"))))))) -> Mon | S16: =IF(R16="","",(Q16-ROUNDDOWN(Q16/24,0)*24)) -> 18.3125 | T16: 60.3125 | U16: =IF(T16=0,"",IF(T16<24,"Sun",IF(T16<48,"Mon",IF(T16<72,"Tue",IF(T16<96,"Wed",IF(T16<120,"Thur",IF(T16<144,"Fri","Sat"))))))) -> Tue | V16: =IF(U16="","",(T16-ROUNDDOWN(T16/24,0)*24)) -> 12.3125 | W16: 0.62625 | X16: 0.9976571429 | Z16: 1_A1->T1->A2 | AA16: T1 | AB16: A2 | AC16: 85 | AD16: =IF(AC16=0,"",IF(AC16<24,"Sun",IF(AC16<48,"Mon",IF(AC16<72,"Tue",IF(AC16<96,"Wed",IF(AC16<120,"Thur",IF(AC16<144,"Fri","Sat"))))))) -> Wed | AE16: =IF(AD16="","",(AC16-ROUNDDOWN(AC16/24,0)*24)) -> 13 | AF16: 103 | AG16: =IF(AF16=0,"",IF(AF16<24,"Sun",IF(AF16<48,"Mon",IF(AF16<72,"Tue",IF(AF16<96,"Wed",IF(AF16<120,"Thur",IF(AF16<144,"Fri","Sat"))))))) -> Thur | AH16: =IF(AG16="","",(AF16-ROUNDDOWN(AF16/24,0)*24)) -> 7 | AI16: 0.515 | AJ16: 0.8828571429
N17: 17_A1->Z1->T1->A2 | O17: A1 | P17: Z1 | Q17: 83.8125 | R17: Wed | S17: 11.8125 | T17: 98.8125 | U17: Thur | V17: 2.8125 | W17: 0.66 | X17: 0.6578 | Z17: 4_A1->T1->A2 | AA17: A1 | AB17: T1 | AC17: 111 | AD17: Thur | AE17: 15 | AF17: 129 | AG17: Fri | AH17: 9 | AI17: 0.0825 | AJ17: 0.2142857143
B18: Scenario 2 | N18: 17_A1->Z1->T1->A2 | O18: T1 | P18: A2 | Q18: 142.375 | R18: Fri | S18: 22.375 | T18: 160.375 | U18: Sat | V18: 16.375 | W18: 0.3175 | X18: 0.4978571429 | Z18: 4_A1->T1->A2 | AA18: T1 | AB18: A2 | AC18: 137.8125 | AD18: Fri | AE18: 17.8125 | AF18: 155.8125 | AG18: Sat | AH18: 11.8125 | AI18: 0.58 | AJ18: 0.9942857143
B19: Buidling block | C19: O | D19: D | E19: Estimate time departure (ETD) | F19: ETD (DAY) | G19: ETD (HOUR) | H19: Estimated time arrival (ETA) | I19: ETA (DAY) | J19: ETA (HOUR) | K19: Volume Utilization | L19: Weight Utilization | N19: 17_A1->Z1->T1->A2 | O19: Z1 | P19: T1 | Q19: 101.8125 | R19: Thur | S19: 5.8125 | T19: 127.8125 | U19: Fri | V19: 7.8125 | W19: 0.805 | X19: 0.8884285714
B20: 1_A1->T1->A2 | C20: A1 | D20: T1 | E20: 108.9375 | F20: =IF(E20=0,"",IF(E20<24,"Sun",IF(E20<48,"Mon",IF(E20<72,"Tue",IF(E20<96,"Wed",IF(E20<120,"Thur",IF(E20<144,"Fri","Sat"))))))) -> Thur | G20: =IF(F20="","",(E20-ROUNDDOWN(E20/24,0)*24)) -> 12.9375 | H20: 126.9375 | I20: =IF(H20=0,"",IF(H20<24,"Sun",IF(H20<48,"Mon",IF(H20<72,"Tue",IF(H20<96,"Wed",IF(H20<120,"Thur",IF(H20<144,"Fri","Sat"))))))) -> Fri | J20: =IF(I20="","",(H20-ROUNDDOWN(H20/24,0)*24)) -> 6.9375 | K20: 0.508125 | L20: 0.9342857143 | Z20: Scenario 2
B21: 1_A1->T1->A2 | C21: T1 | D21: A2 | E21: 140.125 | F21: Fri | G21: 20.125 | H21: 158.125 | I21: Sat | J21: 14.125 | K21: 0.511875 | L21: 0.9922857143 | N21: Scenario 2 | Z21: Buidling block | AA21: O | AB21: D | AC21: Estimate time departure (ETD) | AD21: ETD (DAY) | AE21: ETD (HOUR) | AF21: Estimated time arrival (ETA) | AG21: ETA (DAY) | AH21: ETA (HOUR) | AI21: Volume Utilization | AJ21: Weight Utilization
B22: 16_A1->Z1->T1->A2 | C22: A1 | D22: Z1 | E22: 12.875 | F22: Sun | G22: 12.875 | H22: 27.875 | I22: Mon | J22: 3.875 | K22: 0.225 | L22: 0.4051428571 | N22: Buidling block | O22: O | P22: D | Q22: Estimate time departure (ETD) | R22: ETD (DAY) | S22: ETD (HOUR) | T22: Estimated time arrival (ETA) | U22: ETA (DAY) | V22: ETA (HOUR) | W22: Volume Utilization | X22: Weight Utilization | Z22: 10_A1->T1->Z1->A2 | AA22: A1 | AB22: T1 | AC22: 85.25 | AD22: =IF(AC22=0,"",IF(AC22<24,"Sun",IF(AC22<48,"Mon",IF(AC22<72,"Tue",IF(AC22<96,"Wed",IF(AC22<120,"Thur",IF(AC22<144,"Fri","Sat"))))))) -> Wed | AE22: =IF(AD22="","",(AC22-ROUNDDOWN(AC22/24,0)*24)) -> 13.25 | AF22: 103.25 | AG22: =IF(AF22=0,"",IF(AF22<24,"Sun",IF(AF22<48,"Mon",IF(AF22<72,"Tue",IF(AF22<96,"Wed",IF(AF22<120,"Thur",IF(AF22<144,"Fri","Sat"))))))) -> Thur | AH22: =IF(AG22="","",(AF22-ROUNDDOWN(AF22/24,0)*24)) -> 7.25 | AI22: 0.5125 | AJ22: 0.8858571429
B23: 16_A1->Z1->T1->A2 | C23: T1 | D23: A2 | E23: 74.9375 | F23: Wed | G23: 2.9375 | H23: 92.9375 | I23: Wed | J23: 20.9375 | K23: 0.73375 | L23: 0.994 | N23: 10_A1->T1->Z1->A2 | O23: A1 | P23: T1 | Q23: 13 | R23: =IF(Q23=0,"",IF(Q23<24,"Sun",IF(Q23<48,"Mon",IF(Q23<72,"Tue",IF(Q23<96,"Wed",IF(Q23<120,"Thur",IF(Q23<144,"Fri","Sat"))))))) -> Sun | S23: =IF(R23="","",(Q23-ROUNDDOWN(Q23/24,0)*24)) -> 13 | T23: 31 | U23: =IF(T23=0,"",IF(T23<24,"Sun",IF(T23<48,"Mon",IF(T23<72,"Tue",IF(T23<96,"Wed",IF(T23<120,"Thur",IF(T23<144,"Fri","Sat"))))))) -> Mon | V23: =IF(U23="","",(T23-ROUNDDOWN(T23/24,0)*24)) -> 7 | W23: 0.0725 | X23: 0.24 | Z23: 10_A1->T1->Z1->A2 | AA23: T1 | AB23: Z1 | AC23: 121.4375 | AD23: Fri | AE23: 1.4375 | AF23: 147.4375 | AG23: Sat | AH23: 3.4375 | AI23: 0.445 | AJ23: 0.7254285714
B24: 16_A1->Z1->T1->A2 | C24: Z1 | D24: T1 | E24: 32.3125 | F24: Mon | G24: 8.3125 | H24: 58.3125 | I24: Tue | J24: 10.3125 | K24: 0.53875 | L24: 0.9942857143 | N24: 10_A1->T1->Z1->A2 | O24: T1 | P24: Z1 | Q24: 55 | R24: Tue | S24: 7 | T24: 81 | U24: Wed | V24: 9 | W24: 0.58 | X24: 0.9942857143 | Z24: 10_A1->T1->Z1->A2 | AA24: Z1 | AB24: A2 | AC24: 147.75 | AD24: Sat | AE24: 3.75 | AF24: 162.75 | AG24: Sat | AH24: 18.75 | AI24: 0.42 | AJ24: 0.72
N25: 10_A1->T1->Z1->A2 | O25: Z1 | P25: A2 | Q25: 88 | R25: Wed | S25: 16 | T25: 103 | U25: Thur | V25: 7 | W25: 0.58 | X25: 0.9942857143
B26: Scenario 3 | Z26: Scenario 3
B27: Buidling block | C27: O | D27: D | E27: Estimate time departure (ETD) | F27: ETD (DAY) | G27: ETD (HOUR) | H27: Estimated time arrival (ETA) | I27: ETA (DAY) | J27: ETA (HOUR) | K27: Volume Utilization | L27: Weight Utilization | N27: Scenario 3 | Z27: Buidling block | AA27: O | AB27: D | AC27: Estimate time departure (ETD) | AD27: ETD (DAY) | AE27: ETD (HOUR) | AF27: Estimated time arrival (ETA) | AG27: ETA (DAY) | AH27: ETA (HOUR) | AI27: Volume Utilization | AJ27: Weight Utilization
B28: 4_A1->T1->A2 | C28: A1 | D28: T1 | E28: 61 | F28: =IF(E28=0,"",IF(E28<24,"Sun",IF(E28<48,"Mon",IF(E28<72,"Tue",IF(E28<96,"Wed",IF(E28<120,"Thur",IF(E28<144,"Fri","Sat"))))))) -> Tue | G28: =IF(F28="","",(E28-ROUNDDOWN(E28/24,0)*24)) -> 13 | H28: 79 | I28: =IF(H28=0,"",IF(H28<24,"Sun",IF(H28<48,"Mon",IF(H28<72,"Tue",IF(H28<96,"Wed",IF(H28<120,"Thur",IF(H28<144,"Fri","Sat"))))))) -> Wed | J28: =IF(I28="","",(H28-ROUNDDOWN(H28/24,0)*24)) -> 7 | K28: 0.43 | L28: 0.9937142857 | N28: Buidling block | O28: O | P28: D | Q28: Estimate time departure (ETD) | R28: ETD (DAY) | S28: ETD (HOUR) | T28: Estimated time arrival (ETA) | U28: ETA (DAY) | V28: ETA (HOUR) | W28: Volume Utilization | X28: Weight Utilization | Z28: 2_A1->T1->A2 | AA28: A1 | AB28: T1 | AC28: 96.3125 | AD28: =IF(AC28=0,"",IF(AC28<24,"Sun",IF(AC28<48,"Mon",IF(AC28<72,"Tue",IF(AC28<96,"Wed",IF(AC28<120,"Thur",IF(AC28<144,"Fri","Sat"))))))) -> Thur | AE28: =IF(AD28="","",(AC28-ROUNDDOWN(AC28/24,0)*24)) -> 0.3125 | AF28: 114.3125 | AG28: =IF(AF28=0,"",IF(AF28<24,"Sun",IF(AF28<48,"Mon",IF(AF28<72,"Tue",IF(AF28<96,"Wed",IF(AF28<120,"Thur",IF(AF28<144,"Fri","Sat"))))))) -> Thur | AH28: =IF(AG28="","",(AF28-ROUNDDOWN(AF28/24,0)*24)) -> 18.3125 | AI28: 0.795 | AJ28: 0.9928571429
B29: 4_A1->T1->A2 | C29: T1 | D29: A2 | E29: 109 | F29: Thur | G29: 13 | H29: 127 | I29: Fri | J29: 7 | K29: 0.6275 | L29: 0.9402857143 | N29: 2_A1->T1->A2 | O29: A1 | P29: T1 | Q29: 61 | R29: =IF(Q29=0,"",IF(Q29<24,"Sun",IF(Q29<48,"Mon",IF(Q29<72,"Tue",IF(Q29<96,"Wed",IF(Q29<120,"Thur",IF(Q29<144,"Fri","Sat"))))))) -> Tue | S29: =IF(R29="","",(Q29-ROUNDDOWN(Q29/24,0)*24)) -> 13 | T29: 79 | U29: =IF(T29=0,"",IF(T29<24,"Sun",IF(T29<48,"Mon",IF(T29<72,"Tue",IF(T29<96,"Wed",IF(T29<120,"Thur",IF(T29<144,"Fri","Sat"))))))) -> Wed | V29: =IF(U29="","",(T29-ROUNDDOWN(T29/24,0)*24)) -> 7 | W29: 0.3125 | X29: 0.8828571429 | Z29: 2_A1->T1->A2 | AA29: T1 | AB29: A2 | AC29: 135 | AD29: Fri | AE29: 15 | AF29: 153 | AG29: Sat | AH29: 9 | AI29: 0.58 | AJ29: 0.9942857143
N30: 2_A1->T1->A2 | O30: T1 | P30: A2 | Q30: 109 | R30: Thur | S30: 13 | T30: 127 | U30: Fri | V30: 7 | W30: 0.535 | X30: 0.8814285714 | Z30: 11_A1->T1->Z1->A2 | AA30: A1 | AB30: T1 | AC30: 19.125 | AD30: Sun | AE30: 19.125 | AF30: 37.125 | AG30: Mon | AH30: 13.125 | AI30: 0.31 | AJ30: 0.5542857143
B31: Scenario 4 | Z31: 11_A1->T1->Z1->A2 | AA31: T1 | AB31: Z1 | AC31: 43 | AD31: Mon | AE31: 19 | AF31: 69 | AG31: Tue | AH31: 21 | AI31: 0.13375 | AJ31: 0.1644285714
B32: Buidling block | C32: O | D32: D | E32: Estimate time departure (ETD) | F32: ETD (DAY) | G32: ETD (HOUR) | H32: Estimated time arrival (ETA) | I32: ETA (DAY) | J32: ETA (HOUR) | K32: Volume Utilization | L32: Weight Utilization | N32: Scenario 4 | Z32: 11_A1->T1->Z1->A2 | AA32: Z1 | AB32: A2 | AC32: 76 | AD32: Wed | AE32: 4 | AF32: 91 | AG32: Wed | AH32: 19 | AI32: 0.62375 | AJ32: 0.9711428571
B33: 4_A1->T1->A2 | C33: A1 | D33: T1 | E33: 109 | F33: =IF(E33=0,"",IF(E33<24,"Sun",IF(E33<48,"Mon",IF(E33<72,"Tue",IF(E33<96,"Wed",IF(E33<120,"Thur",IF(E33<144,"Fri","Sat"))))))) -> Thur | G33: =IF(F33="","",(E33-ROUNDDOWN(E33/24,0)*24)) -> 13 | H33: 127 | I33: =IF(H33=0,"",IF(H33<24,"Sun",IF(H33<48,"Mon",IF(H33<72,"Tue",IF(H33<96,"Wed",IF(H33<120,"Thur",IF(H33<144,"Fri","Sat"))))))) -> Fri | J33: =IF(I33="","",(H33-ROUNDDOWN(H33/24,0)*24)) -> 7 | K33: 0.24625 | L33: 0.6908571429 | N33: Buidling block | O33: O | P33: D | Q33: Estimate time departure (ETD) | R33: ETD (DAY) | S33: ETD (HOUR) | T33: Estimated time arrival (ETA) | U33: ETA (DAY) | V33: ETA (HOUR) | W33: Volume Utilization | X33: Weight Utilization
B34: 4_A1->T1->A2 | C34: T1 | D34: A2 | E34: 138 | F34: Fri | G34: 18 | H34: 156 | I34: Sat | J34: 12 | K34: 0.465 | L34: 0.93 | N34: 11_A1->T1->Z1->A2 | O34: A1 | P34: T1 | Q34: 86.625 | R34: =IF(Q34=0,"",IF(Q34<24,"Sun",IF(Q34<48,"Mon",IF(Q34<72,"Tue",IF(Q34<96,"Wed",IF(Q34<120,"Thur",IF(Q34<144,"Fri","Sat"))))))) -> Wed | S34: =IF(R34="","",(Q34-ROUNDDOWN(Q34/24,0)*24)) -> 14.625 | T34: 104.625 | U34: =IF(T34=0,"",IF(T34<24,"Sun",IF(T34<48,"Mon",IF(T34<72,"Tue",IF(T34<96,"Wed",IF(T34<120,"Thur",IF(T34<144,"Fri","Sat"))))))) -> Thur | V34: =IF(U34="","",(T34-ROUNDDOWN(T34/24,0)*24)) -> 8.625 | W34: 0.7 | X34: 0.9938571429 | Z34: Scenario 4
B35: 18_A1->Z1->T1->A2 | C35: A1 | D35: Z1 | E35: 14 | F35: Sun | G35: 14 | H35: 29 | I35: Mon | J35: 5 | K35: 0.175 | L35: 0.3622857143 | N35: 11_A1->T1->Z1->A2 | O35: T1 | P35: Z1 | Q35: 121.25 | R35: Fri | S35: 1.25 | T35: 147.25 | U35: Sat | V35: 3.25 | W35: 0.45 | X35: 0.7047428571 | Z35: Buidling block | AA35: O | AB35: D | AC35: Estimate time departure (ETD) | AD35: ETD (DAY) | AE35: ETD (HOUR) | AF35: Estimated time arrival (ETA) | AG35: ETA (DAY) | AH35: ETA (HOUR) | AI35: Volume Utilization | AJ35: Weight Utilization
B36: 18_A1->Z1->T1->A2 | C36: T1 | D36: A2 | E36: 81.3125 | F36: Wed | G36: 9.3125 | H36: 99.3125 | I36: Thur | J36: 3.3125 | K36: 0.36 | L36: 0.72 | N36: 11_A1->T1->Z1->A2 | O36: Z1 | P36: A2 | Q36: 147.9375 | R36: Sat | S36: 3.9375 | T36: 162.9375 | U36: Sat | V36: 18.9375 | W36: 0.405 | X36: 0.6942857143 | Z36: 2_A1->T1->A2 | AA36: A1 | AB36: T1 | AC36: 13 | AD36: =IF(AC36=0,"",IF(AC36<24,"Sun",IF(AC36<48,"Mon",IF(AC36<72,"Tue",IF(AC36<96,"Wed",IF(AC36<120,"Thur",IF(AC36<144,"Fri","Sat"))))))) -> Sun | AE36: =IF(AD36="","",(AC36-ROUNDDOWN(AC36/24,0)*24)) -> 13 | AF36: 31 | AG36: =IF(AF36=0,"",IF(AF36<24,"Sun",IF(AF36<48,"Mon",IF(AF36<72,"Tue",IF(AF36<96,"Wed",IF(AF36<120,"Thur",IF(AF36<144,"Fri","Sat"))))))) -> Mon | AH36: =IF(AG36="","",(AF36-ROUNDDOWN(AF36/24,0)*24)) -> 7 | AI36: 0.675 | AJ36: 0.9951428571
B37: 18_A1->Z1->T1->A2 | C37: Z1 | D37: T1 | E37: 33.75 | F37: Mon | G37: 9.75 | H37: 59.75 | I37: Tue | J37: 11.75 | K37: 0.4925 | L37: 0.9942857143 | Z37: 2_A1->T1->A2 | AA37: T1 | AB37: A2 | AC37: 54 | AD37: Tue | AE37: 6 | AF37: 72 | AG37: Wed | AH37: 0 | AI37: 0.635 | AJ37: 0.9936571429
N38: Scenario 5 | Z38: 3_A1->T1->A2 | AA38: A1 | AB38: T1 | AC38: 85 | AD38: Wed | AE38: 13 | AF38: 103 | AG38: Thur | AH38: 7 | AI38: 0.145 | AJ38: 0.4714285714
B39: Scenario 5 | N39: Buidling block | O39: O | P39: D | Q39: Estimate time departure (ETD) | R39: ETD (DAY) | S39: ETD (HOUR) | T39: Estimated time arrival (ETA) | U39: ETA (DAY) | V39: ETA (HOUR) | W39: Volume Utilization | X39: Weight Utilization | Z39: 3_A1->T1->A2 | AA39: T1 | AB39: A2 | AC39: 113.5625 | AD39: Thur | AE39: 17.5625 | AF39: 131.5625 | AG39: Fri | AH39: 11.5625 | AI39: 0.57 | AJ39: 0.9771428571
B40: Buidling block | C40: O | D40: D | E40: Estimate time departure (ETD) | F40: ETD (DAY) | G40: ETD (HOUR) | H40: Estimated time arrival (ETA) | I40: ETA (DAY) | J40: ETA (HOUR) | K40: Volume Utilization | L40: Weight Utilization | N40: 13_A1->T1->Z1->T2->Z2->A2 | O40: A1 | P40: T1 | Q40: 13 | R40: =IF(Q40=0,"",IF(Q40<24,"Sun",IF(Q40<48,"Mon",IF(Q40<72,"Tue",IF(Q40<96,"Wed",IF(Q40<120,"Thur",IF(Q40<144,"Fri","Sat"))))))) -> Sun | S40: =IF(R40="","",(Q40-ROUNDDOWN(Q40/24,0)*24)) -> 13 | T40: 31 | U40: =IF(T40=0,"",IF(T40<24,"Sun",IF(T40<48,"Mon",IF(T40<72,"Tue",IF(T40<96,"Wed",IF(T40<120,"Thur",IF(T40<144,"Fri","Sat"))))))) -> Mon | V40: =IF(U40="","",(T40-ROUNDDOWN(T40/24,0)*24)) -> 7 | W40: 0.655 | X40: 0.994
B41: 1_A1->T1->A2 | C41: A1 | D41: T1 | E41: 13 | F41: =IF(E41=0,"",IF(E41<24,"Sun",IF(E41<48,"Mon",IF(E41<72,"Tue",IF(E41<96,"Wed",IF(E41<120,"Thur",IF(E41<144,"Fri","Sat"))))))) -> Sun | G41: =IF(F41="","",(E41-ROUNDDOWN(E41/24,0)*24)) -> 13 | H41: 31 | I41: =IF(H41=0,"",IF(H41<24,"Sun",IF(H41<48,"Mon",IF(H41<72,"Tue",IF(H41<96,"Wed",IF(H41<120,"Thur",IF(H41<144,"Fri","Sat"))))))) -> Mon | J41: =IF(I41="","",(H41-ROUNDDOWN(H41/24,0)*24)) -> 7 | K41: 0.53 | L41: 0.9645714286 | N41: 13_A1->T1->Z1->T2->Z2->A2 | O41: T1 | P41: Z1 | Q41: 40.5 | R41: Mon | S41: 16.5 | T41: 66.5 | U41: Tue | V41: 18.5 | W41: 0 | X41: 0 | Z41: Scenario 5
B42: 1_A1->T1->A2 | C42: T1 | D42: A2 | E42: 44.5 | F42: Mon | G42: 20.5 | H42: 62.5 | I42: Tue | J42: 14.5 | K42: 0.5 | L42: 1 | N42: 13_A1->T1->Z1->T2->Z2->A2 | O42: T2 | P42: Z2 | Q42: 118 | R42: Thur | S42: 22 | T42: 144 | U42: Sat | V42: 0 | W42: 0.62 | X42: 0.9982285714 | Z42: Buidling block | AA42: O | AB42: D | AC42: Estimate time departure (ETD) | AD42: ETD (DAY) | AE42: ETD (HOUR) | AF42: Estimated time arrival (ETA) | AG42: ETA (DAY) | AH42: ETA (HOUR) | AI42: Volume Utilization | AJ42: Weight Utilization
B43: 2_A1->T1->A2 | C43: A1 | D43: T1 | E43: 90.0625 | F43: Wed | G43: 18.0625 | H43: 108.0625 | I43: Thur | J43: 12.0625 | K43: 1 | L43: 0.9708571429 | N43: 13_A1->T1->Z1->T2->Z2->A2 | O43: Z1 | P43: T2 | Q43: 76.5 | R43: Wed | S43: 4.5 | T43: 102.5 | U43: Thur | V43: 6.5 | W43: 0.5725 | X43: 0.9942857143 | Z43: 1_A1->T1->A2 | AA43: A1 | AB43: T1 | AC43: 70.625 | AD43: =IF(AC43=0,"",IF(AC43<24,"Sun",IF(AC43<48,"Mon",IF(AC43<72,"Tue",IF(AC43<96,"Wed",IF(AC43<120,"Thur",IF(AC43<144,"Fri","Sat"))))))) -> Tue | AE43: =IF(AD43="","",(AC43-ROUNDDOWN(AC43/24,0)*24)) -> 22.625 | AF43: 88.625 | AG43: =IF(AF43=0,"",IF(AF43<24,"Sun",IF(AF43<48,"Mon",IF(AF43<72,"Tue",IF(AF43<96,"Wed",IF(AF43<120,"Thur",IF(AF43<144,"Fri","Sat"))))))) -> Wed | AH43: =IF(AG43="","",(AF43-ROUNDDOWN(AF43/24,0)*24)) -> 16.625 | AI43: 0.3325 | AJ43: 0.8314285714
B44: 2_A1->T1->A2 | C44: T1 | D44: A2 | E44: 135 | F44: Fri | G44: 15 | H44: 153 | I44: Sat | J44: 9 | K44: 0.800625 | L44: 0.9997142857 | N44: 13_A1->T1->Z1->T2->Z2->A2 | O44: Z2 | P44: A2 | Q44: 144 | R44: Sat | S44: 0 | T44: 159 | U44: Sat | V44: 15 | W44: 0.62 | X44: 0.9982285714 | Z44: 1_A1->T1->A2 | AA44: T1 | AB44: A2 | AC44: 109 | AD44: Thur | AE44: 13 | AF44: 127 | AG44: Fri | AH44: 7 | AI44: 0.58 | AJ44: 0.9942857143
Z45: 2_A1->T1->A2 | AA45: A1 | AB45: T1 | AC45: 13 | AD45: Sun | AE45: 13 | AF45: 31 | AG45: Mon | AH45: 7 | AI45: 0.05 | AJ45: 0.1457142857
Z46: 2_A1->T1->A2 | AA46: T1 | AB46: A2 | AC46: 39.3125 | AD46: Mon | AE46: 15.3125 | AF46: 57.3125 | AG46: Tue | AH46: 9.3125 | AI46: 0.58 | AJ46: 0.9942857143

Sheet Order_WeeklyRoutingScheduling
F9: Leftover demand of Week n-1 | M9: Total leftover | N9: Week n | U9: Total leftover | W9: TEU Factor | X9: Avg weight (ton) | Y9: Handling Cost (E/container) | Z9: Outsourcing Cost (E/Container) | AA9: Order delay penalty (E/h) | AB9: Price own sailing (E/container) | AC9: Price of outsourcing (E/container) | AD9: Lead time
C11: CUSTOMERS | D11: Origin | E11: Destination | F11: Sun | G11: Mon | H11: Tue | I11: Wed | J11: Thur | K11: Fri | L11: Sat | N11: Sun | O11: Mon | P11: Tue | Q11: Wed | R11: Thur | S11: Fri | T11: Sat | AD11: Days OR Working days | AE11: No.
B12: Full containers | C12: Full customer 1 | D12: T | E12: A | M12: =SUM(F12:L12) -> 0 | O12: 120 | P12: 120 | Q12: 120 | R12: 120 | S12: 30 | U12: =SUM(N12:T12) -> 510 | W12: 2 | X12: 35 | Y12: 50 | Z12: 450 | AA12: 10 | AB12: 300 | AC12: 300 | AD12: Days | AE12: 5
C13: Full customer 2 | D13: A | E13: T | K13: 1 | L13: 5 | M13: 6 | O13: 50 | P13: 24 | Q13: 2 | R13: 1 | S13: 5 | T13: 3 | U13: =SUM(N13:T13) -> 85 | W13: 1 | X13: 30 | Y13: 60 | Z13: 450 | AA13: 10 | AB13: 150 | AC13: 150 | AD13: Working days | AE13: 3
C14: Full customer 3 | D14: A | E14: T | M14: 0 | Q14: 4 | U14: =SUM(N14:T14) -> 4 | W14: 2 | X14: 30 | Y14: 60 | Z14: 450 | AA14: 10 | AB14: 150 | AC14: 150 | AD14: Working days | AE14: 3
C15: Full customer 4 | D15: Z | E15: T | K15: 6 | L15: 4 | M15: 10 | P15: 60 | R15: 40 | U15: 100 | W15: 1 | X15: 30 | Y15: 60 | Z15: 450 | AA15: 10 | AB15: 150 | AC15: 150 | AD15: Working days | AE15: 3
C16: Full customer 5 | D16: A | E16: T | M16: 0 | R16: 30 | U16: 30 | W16: 2 | X16: 30 | Y16: 60 | Z16: 450 | AA16: 10 | AB16: 150 | AC16: 150 | AD16: Working days | AE16: 3
C17: Full customer 6 | D17: A | E17: Z | M17: 0 | O17: 24 | U17: 24 | W17: 1 | X17: 35 | Y17: 60 | Z17: 450 | AA17: 10 | AB17: 150 | AC17: 150 | AD17: Working days | AE17: 3
C18: Full customer 7 | D18: A | E18: T | M18: 0 | P18: 1 | S18: 1 | U18: 2 | W18: 2 | X18: 30 | Y18: 60 | Z18: 450 | AA18: 10 | AB18: 150 | AC18: 150 | AD18: Working days | AE18: 3
C19: Full customer 8 | D19: A | E19: T | M19: 0 | Q19: 13 | S19: 1 | U19: 14 | W19: 1 | X19: 30 | Y19: 60 | Z19: 450 | AA19: 10 | AB19: 150 | AC19: 150 | AD19: Working days | AE19: 3
C20: Full customer 9 | D20: A | E20: T | M20: 0 | Q20: 33 | S20: 6 | U20: 39 | W20: 2 | X20: 28 | Y20: 60 | Z20: 450 | AA20: 10 | AB20: 150 | AC20: 150 | AD20: Working days | AE20: 3
C21: Full customer 10 | D21: A | E21: T | M21: 0 | P21: 15 | U21: 15 | W21: 1 | X21: 30 | Y21: 60 | Z21: 450 | AA21: 10 | AB21: 150 | AC21: 150 | AD21: Working days | AE21: 3
C22: Full customer 11 | D22: A | E22: T | M22: 0 | Q22: 30 | U22: 30 | W22: 2 | X22: 30 | Y22: 60 | Z22: 450 | AA22: 10 | AB22: 150 | AC22: 150 | AD22: Working days | AE22: 3
C23: Full customer 12 | D23: Z | E23: T | M23: 0 | R23: 2 | U23: 2 | W23: 1 | X23: 20 | Y23: 60 | Z23: 450 | AA23: 10 | AB23: 150 | AC23: 150 | AD23: Working days | AE23: 3
C24: Full customer 13 | D24: A | E24: T | M24: 0 | S24: 1 | U24: 1 | W24: 2 | X24: 30 | Y24: 60 | Z24: 450 | AA24: 10 | AB24: 150 | AC24: 150 | AD24: Working days | AE24: 3
C25: Full customer 14 | D25: A | E25: T | M25: 0 | R25: 1 | U25: 1 | W25: 1 | X25: 30 | Y25: 60 | Z25: 450 | AA25: 10 | AB25: 150 | AC25: 150 | AD25: Working days | AE25: 3
C26: Full customer 15 | D26: A | E26: Z | M26: 0 | O26: 27 | U26: 27 | W26: 2 | X26: 30 | Y26: 60 | Z26: 450 | AA26: 10 | AB26: 150 | AC26: 150 | AD26: Working days | AE26: 3
C27: Full customer 16 | D27: A | E27: T | M27: 0 | Q27: 5 | U27: 5 | W27: 1 | X27: 25 | Y27: 60 | Z27: 450 | AA27: 10 | AB27: 150 | AC27: 150 | AD27: Working days | AE27: 3
C28: Full customer 17 | D28: A | E28: Z | M28: 0 | R28: 7 | U28: 7 | W28: 2 | X28: 30 | Y28: 60 | Z28: 450 | AA28: 10 | AB28: 150 | AC28: 150 | AD28: Working days | AE28: 3
C29: Full customer 18 | D29: Z | E29: T | M29: 0 | P29: 2 | S29: 12 | U29: 14 | W29: 1 | X29: 30 | Y29: 80 | Z29: 450 | AA29: 10 | AB29: 180 | AC29: 180 | AD29: Working days | AE29: 3
C30: Full customer 19 | D30: Z | E30: T | M30: 0 | Q30: 30 | U30: 30 | W30: 2 | X30: 30 | Y30: 80 | Z30: 450 | AA30: 10 | AB30: 180 | AC30: 180 | AD30: Working days | AE30: 3
C31: Full customer 20 | D31: Z | E31: T | M31: 0 | R31: 4 | U31: 4 | W31: 1 | X31: 30 | Y31: 80 | Z31: 450 | AA31: 10 | AB31: 180 | AC31: 180 | AD31: Working days | AE31: 3
C32: Full customer 21 | D32: Z | E32: T | M32: 0 | T32: 1 | U32: 1 | W32: 2 | X32: 30 | Y32: 80 | Z32: 450 | AA32: 10 | AB32: 180 | AC32: 180 | AD32: Working days | AE32: 3
C33: Full customer 22 | D33: Z | E33: T | M33: 0 | O33: 3 | U33: 3 | W33: 1 | X33: 30 | Y33: 80 | Z33: 450 | AA33: 10 | AB33: 180 | AC33: 180 | AD33: Working days | AE33: 3
C34: Full customer 23 | D34: Z | E34: T | M34: 0 | P34: 5 | U34: 5 | W34: 2 | X34: 30 | Y34: 80 | Z34: 450 | AA34: 10 | AB34: 180 | AC34: 180 | AD34: Working days | AE34: 3
C35: Full customer 24 | D35: A | E35: T | M35: 0 | O35: 4 | U35: 4 | W35: 2.25 | X35: 30 | Y35: 60 | Z35: 450 | AA35: 10 | AB35: 300 | AC35: 300 | AD35: Days | AE35: 1
C36: Full customer 25 | D36: A | E36: T | K36: 2 | L36: 1 | M36: 3 | Q36: 2 | R36: 1 | T36: 2 | U36: 5 | W36: 2.25 | X36: 30 | Y36: 60 | Z36: 450 | AA36: 10 | AB36: 300 | AC36: 300 | AD36: Working days | AE36: 3
C37: Full customer 26 | D37: Z | E37: T | M37: 0 | P37: 5 | Q37: 6 | U37: 11 | W37: 2.25 | X37: 30 | Y37: 80 | Z37: 450 | AA37: 10 | AB37: 300 | AC37: 300 | AD37: Working days | AE37: 3
C38: Full customer 27 | D38: Z | E38: T | M38: 0 | R38: 14 | U38: 14 | W38: 2 | X38: 30 | Y38: 35 | Z38: 450 | AA38: 10 | AB38: 160 | AC38: 160 | AD38: Working days | AE38: 3
C39: Full customer 28 | D39: Z | E39: A | M39: 0 | S39: 20 | U39: 20 | W39: 1 | X39: 30 | Y39: 51 | Z39: 450 | AA39: 10 | AB39: 120 | AC39: 120 | AD39: Working days | AE39: 3
B40: Empty containers | C40: Empty customer 1 | D40: A | E40: T | K40: 40 | M40: 40 | N40: 0 | O40: 37 | P40: 36 | Q40: 4 | R40: 39 | S40: 31 | T40: 0 | U40: 147 | W40: 2 | X40: 6 | Y40: 50 | Z40: 450 | AA40: 10 | AB40: 300 | AC40: 300 | AD40: Days | AE40: 5
C41: Empty customer 2 | D41: T | E41: A | L41: 2 | M41: 2 | N41: 0 | O41: 0 | P41: 0 | Q41: 1 | R41: 0 | S41: 1 | T41: 2 | U41: 4 | W41: 1 | X41: 4 | Y41: 60 | Z41: 450 | AA41: 10 | AB41: 150 | AC41: 150 | AD41: Working days | AE41: 5
C42: Empty customer 3 | D42: T | E42: A | M42: 0 | N42: 0 | O42: 0 | P42: 38 | Q42: 0 | R42: 0 | S42: 0 | T42: 0 | U42: 38 | W42: 2 | X42: 3 | Y42: 60 | Z42: 450 | AA42: 10 | AB42: 150 | AC42: 150 | AD42: Working days | AE42: 5
C43: Empty customer 4 | D43: T | E43: Z | M43: 0 | N43: 0 | O43: 0 | P43: 0 | Q43: 40 | R43: 0 | S43: 0 | T43: 0 | U43: 40 | W43: 1 | X43: 4 | Y43: 80 | Z43: 450 | AA43: 10 | AB43: 150 | AC43: 150 | AD43: Working days | AE43: 5
C44: Empty customer 5 | D44: T | E44: Z | M44: 0 | N44: 0 | O44: 0 | P44: 0 | Q44: 0 | R44: 23 | S44: 0 | T44: 0 | U44: 23 | W44: 2 | X44: 4 | Y44: 80 | Z44: 450 | AA44: 10 | AB44: 150 | AC44: 150 | AD44: Working days | AE44: 5
C45: Empty customer 6 | D45: T | E45: A | M45: 0 | N45: 0 | O45: 0 | P45: 0 | Q45: 13 | R45: 0 | S45: 0 | T45: 0 | U45: 13 | W45: 2.25 | X45: 2 | Y45: 60 | Z45: 450 | AA45: 10 | AB45: 300 | AC45: 300 | AD45: Days | AE45: 4
C46: Empty customer 7 | D46: T | E46: A | L46: 1 | M46: 1 | N46: 0 | O46: 0 | P46: 0 | Q46: 1 | R46: 1 | S46: 2 | T46: 1 | U46: 5 | W46: 2.25 | X46: 4 | Y46: 60 | Z46: 450 | AA46: 10 | AB46: 300 | AC46: 300 | AD46: Working days | AE46: 5
C47: Empty customer 8 | D47: T | E47: Z | M47: 0 | N47: 0 | O47: 0 | P47: 0 | Q47: 1 | R47: 3 | S47: 0 | T47: 0 | U47: 4 | W47: 2.25 | X47: 4.5 | Y47: 80 | Z47: 450 | AA47: 10 | AB47: 280 | AC47: 280 | AD47: Working days | AE47: 5
C48: Empty customer 9 | D48: T | E48: Z | M48: 0 | N48: 0 | O48: 0 | P48: 4 | Q48: 0 | R48: 2 | S48: 0 | T48: 0 | U48: 6 | W48: 2 | X48: 4 | Y48: 35 | Z48: 450 | AA48: 10 | AB48: 160 | AC48: 160 | AD48: Working days | AE48: 5
C49: Empty customer 10 | D49: A | E49: Z | M49: 0 | N49: 0 | O49: 1 | P49: 0 | Q49: 1 | R49: 0 | S49: 0 | T49: 0 | U49: 2 | W49: 1 | X49: 4 | Y49: 51 | Z49: 450 | AA49: 10 | AB49: 120 | AC49: 120 | AD49: Working days | AE49: 5

Sheet Input_WeeklyRoutingScheduling
B10: Inputs for Routing
B12: Total vessel operation time (h/week) | C12: 160 | E12: Available vessel | O12: Building blocks for routing | P12: Cost (fuel cost + port fee) (€) | Q12: Sailing time (h)
B13: Average terminal handling speed (container/h) | C13: 16 | E13: Vessel_1 | F13: 1 | O13: 1_A1->T1->A2 | P13: 10000 | Q13: 36
E14: Vessel_2 | F14: 1 | O14: 2_A1->T1->A2 | P14: 10000 | Q14: 36
B15: Vessel Rent (€/week) | C15: 40000 | E15: Vessel_3 | F15: 1 | O15: 3_A1->T1->A2 | P15: 10000 | Q15: 36
B16: Discount rate on vessel rent from 2nd vessel | C16: 0.05 | O16: 4_A1->T1->A2 | P16: 10000 | Q16: 36
O17: 5_A1->Z1->A2 | P17: 9000 | Q17: 30
O18: 6_A1->Z1->A2 | P18: 9000 | Q18: 30
B19: Vessel volume capacity (TEUs) | C19: A1 | D19: A2 | E19: T1 | F19: T2 | G19: T3 | H19: T4 | I19: Z1 | J19: Z2 | K19: Z3 | L19: Z4 | M19: Z5 | O19: 7_A1->Z1->A2 | P19: 9000 | Q19: 30
B20: A1 | C20: 0 | D20: 0 | E20: 400 | F20: 400 | G20: 400 | H20: 400 | I20: 400 | J20: 400 | K20: 400 | L20: 400 | M20: 400 | O20: 8_A1->Z1->A2 | P20: 9000 | Q20: 30
B21: A2 | C21: 0 | D21: 0 | E21: 400 | F21: 400 | G21: 400 | H21: 400 | I21: 400 | J21: 400 | K21: 400 | L21: 400 | M21: 400 | O21: 9_A1->T1->Z1->A2 | P21: 11000 | Q21: 59
B22: T1 | C22: 400 | D22: 400 | E22: 0 | F22: 0 | G22: 0 | H22: 0 | I22: 400 | J22: 400 | K22: 400 | L22: 400 | M22: 400 | O22: 10_A1->T1->Z1->A2 | P22: 11000 | Q22: 59
B23: T2 | C23: 400 | D23: 400 | E23: 0 | F23: 0 | G23: 0 | H23: 0 | I23: 400 | J23: 400 | K23: 400 | L23: 400 | M23: 400 | O23: 11_A1->T1->Z1->A2 | P23: 11000 | Q23: 59
B24: T3 | C24: 400 | D24: 400 | E24: 0 | F24: 0 | G24: 0 | H24: 0 | I24: 400 | J24: 400 | K24: 400 | L24: 400 | M24: 400 | O24: 12_A1->T1->Z1->T2->Z2->A2 | P24: 16000 | Q24: 111
B25: T4 | C25: 400 | D25: 400 | E25: 0 | F25: 0 | G25: 0 | H25: 0 | I25: 400 | J25: 400 | K25: 400 | L25: 400 | M25: 400 | O25: 13_A1->T1->Z1->T2->Z2->A2 | P25: 16000 | Q25: 111
B26: Z1 | C26: 400 | D26: 400 | E26: 400 | F26: 400 | G26: 400 | H26: 400 | I26: 0 | J26: 0 | K26: 0 | L26: 0 | M26: 0 | O26: 14_A1->T1->Z1->T2->Z2->T3->Z3->A2 | P26: 23000 | Q26: 163
B27: Z2 | C27: 400 | D27: 400 | E27: 400 | F27: 400 | G27: 400 | H27: 400 | I27: 0 | J27: 0 | K27: 0 | L27: 0 | M27: 0 | O27: 15_A1->T1->Z1->T2->Z2->T3->Z3->T4->Z4->A2 | P27: 28000 | Q27: 215
B28: Z3 | C28: 400 | D28: 400 | E28: 400 | F28: 400 | G28: 400 | H28: 400 | I28: 0 | J28: 0 | K28: 0 | L28: 0 | M28: 0 | O28: 16_A1->Z1->T1->A2 | P28: 11000 | Q28: 59
B29: Z4 | C29: 400 | D29: 400 | E29: 400 | F29: 400 | G29: 400 | H29: 400 | I29: 0 | J29: 0 | K29: 0 | L29: 0 | M29: 0 | O29: 17_A1->Z1->T1->A2 | P29: 11000 | Q29: 59
B30: Z5 | C30: 400 | D30: 400 | E30: 400 | F30: 400 | G30: 400 | H30: 400 | I30: 0 | J30: 0 | K30: 0 | L30: 0 | M30: 0 | O30: 18_A1->Z1->T1->A2 | P30: 11000 | Q30: 59
O31: 19_A1->Z1->T1->Z2->T2->A2 | P31: 16000 | Q31: 111
B32: Weight capacity due to the draft (ton) | C32: A1 | D32: A2 | E32: T1 | F32: T2 | G32: T3 | H32: T4 | I32: Z1 | J32: Z2 | K32: Z3 | L32: Z4 | M32: Z5 | O32: 20_A1->Z1->T1->Z2->T2->A2 | P32: 16000 | Q32: 111
B33: A1 | C33: 0 | D33: 0 | E33: 3500 | F33: 3500 | G33: 3500 | H33: 3500 | I33: 3500 | J33: 3500 | K33: 3500 | L33: 3500 | M33: 3500 | O33: 21_A1->Z1->T1->Z2->T2->Z3->T3->A2 | P33: 24000 | Q33: 163
B34: A2 | C34: 0 | D34: 0 | E34: 3500 | F34: 3500 | G34: 3500 | H34: 3500 | I34: 3500 | J34: 3500 | K34: 3500 | L34: 3500 | M34: 3500 | O34: 22_A1->Z1->T1->Z2->T2->Z3->T3->Z4->T4->A2 | P34: 28000 | Q34: 215
B35: T1 | C35: 3500 | D35: 3500 | E35: 0 | F35: 0 | G35: 0 | H35: 0 | I35: 3500 | J35: 3500 | K35: 3500 | L35: 3500 | M35: 3500 | O35: 23_A1->T1->Z1->T2->A2 | P35: 15000 | Q35: 88
B36: T2 | C36: 3500 | D36: 3500 | E36: 0 | F36: 0 | G36: 0 | H36: 0 | I36: 3500 | J36: 3500 | K36: 3500 | L36: 3500 | M36: 3500 | O36: 24_A1->T1->Z1->T2->A2 | P36: 15000 | Q36: 88
B37: T3 | C37: 3500 | D37: 3500 | E37: 0 | F37: 0 | G37: 0 | H37: 0 | I37: 3500 | J37: 3500 | K37: 3500 | L37: 3500 | M37: 3500 | O37: 25_A1->T1->Z1->T2->Z2->T3->A2 | P37: 21000 | Q37: 140
B38: T4 | C38: 3500 | D38: 3500 | E38: 0 | F38: 0 | G38: 0 | H38: 0 | I38: 3500 | J38: 3500 | K38: 3500 | L38: 3500 | M38: 3500 | O38: 26_A1->T1->Z1->T2->Z2->T3->Z3->T4->A2 | P38: 28000 | Q38: 192
B39: Z1 | C39: 3500 | D39: 3500 | E39: 3500 | F39: 3500 | G39: 3500 | H39: 3500 | I39: 0 | J39: 0 | K39: 0 | L39: 0 | M39: 0 | O39: 27_A1->Z1->T1->Z2->A2 | P39: 13000 | Q39: 82
B40: Z2 | C40: 3500 | D40: 3500 | E40: 3500 | F40: 3500 | G40: 3500 | H40: 3500 | I40: 0 | J40: 0 | K40: 0 | L40: 0 | M40: 0 | O40: 28_A1->Z1->T1->Z2->A2 | P40: 13000 | Q40: 82
B41: Z3 | C41: 3500 | D41: 3500 | E41: 3500 | F41: 3500 | G41: 3500 | H41: 3500 | I41: 0 | J41: 0 | K41: 0 | L41: 0 | M41: 0 | O41: 29_A1->Z1->T1->Z2->A2 | P41: 13000 | Q41: 82
B42: Z4 | C42: 3500 | D42: 3500 | E42: 3500 | F42: 3500 | G42: 3500 | H42: 3500 | I42: 0 | J42: 0 | K42: 0 | L42: 0 | M42: 0 | O42: 30_A1->Z1->T1->Z2->T2->Z3->A2 | P42: 18000 | Q42: 134
B43: Z5 | C43: 3500 | D43: 3500 | E43: 3500 | F43: 3500 | G43: 3500 | H43: 3500 | I43: 0 | J43: 0 | K43: 0 | L43: 0 | M43: 0 | O43: 31_A1->Z1->T1->Z2->T2->Z3->A2 | P43: 18000 | Q43: 134
O44: 32_A1->Z1->T1->Z2->T2->Z3->T3->Z4->A2 | P44: 25000 | Q44: 186
O45: 33_A1->Z1->T1->Z2->T2->Z3->T3->Z4->T4->Z5->A2 | P45: 32000 | Q45: 238
B47: Terminals | C47: Unit extra labor cost during weekends (Euro/h) | D47: Average loading time at each terminal (h) | E47: Average unloading time at each terminal (h) | F47: Service early departure penalty (Euro/h) | G47: Service late departure penalty (Euro/h) | H47: Service early arrival penalty (Euro/h) | I47: Service late arrival penalty (Euro/h)
B48: A1 | C48: 30 | D48: 4 | E48: 4 | F48: 150 | G48: 150 | H48: 150 | I48: 150
B49: A2 | C49: 30 | D49: 4 | E49: 4 | F49: 150 | G49: 150 | H49: 150 | I49: 150
B50: T1 | C50: 20 | D50: 4 | E50: 4 | F50: 200 | G50: 200 | H50: 200 | I50: 200
B51: T2 | C51: 20 | D51: 4 | E51: 4 | F51: 200 | G51: 200 | H51: 200 | I51: 200
B52: T3 | C52: 20 | D52: 4 | E52: 4 | F52: 200 | G52: 200 | H52: 200 | I52: 200
B53: T4 | C53: 20 | D53: 4 | E53: 4 | F53: 200 | G53: 200 | H53: 200 | I53: 200
B54: Z1 | C54: 15 | D54: 4 | E54: 4 | F54: 100 | G54: 100 | H54: 100 | I54: 100
B55: Z2 | C55: 15 | D55: 4 | E55: 4 | F55: 100 | G55: 100 | H55: 100 | I55: 100
B56: Z3 | C56: 15 | D56: 4 | E56: 4 | F56: 100 | G56: 100 | H56: 100 | I56: 100
B57: Z4 | C57: 15 | D57: 4 | E57: 4 | F57: 100 | G57: 100 | H57: 100 | I57: 100
B58: Z5 | C58: 15 | D58: 4 | E58: 4 | F58: 100 | G58: 100 | H58: 100 | I58: 100
B62: Input for Scheduling
B63: Vessel 1
B64: Total vessel operation time (h) | C64: 168
B65: Terminal handling speed (container/h) | C65: 16
B67: Sailing Time (h) | C67: A1 | D67: A2 | E67: T1 | F67: T2 | G67: T3 | H67: T4 | I67: Z1 | J67: Z2 | K67: Z3 | L67: Z4 | M67: Z5
B68: A1 | C68: 0 | D68: 0 | E68: 18 | F68: 18 | G68: 18 | H68: 18 | I68: 15 | J68: 15 | K68: 15 | L68: 15 | M68: 15
B69: A2 | C69: 0 | D69: 0 | E69: 18 | F69: 18 | G69: 18 | H69: 18 | I69: 15 | J69: 15 | K69: 15 | L69: 15 | M69: 15
B70: T1 | C70: 18 | D70: 18 | E70: 0 | F70: 0 | G70: 0 | H70: 0 | I70: 26 | J70: 26 | K70: 26 | L70: 26 | M70: 26
B71: T2 | C71: 18 | D71: 18 | E71: 0 | F71: 0 | G71: 0 | H71: 0 | I71: 26 | J71: 26 | K71: 26 | L71: 26 | M71: 26
B72: T3 | C72: 18 | D72: 18 | E72: 0 | F72: 0 | G72: 0 | H72: 0 | I72: 26 | J72: 26 | K72: 26 | L72: 26 | M72: 26
B73: T4 | C73: 18 | D73: 18 | E73: 0 | F73: 0 | G73: 0 | H73: 0 | I73: 26 | J73: 26 | K73: 26 | L73: 26 | M73: 26
B74: Z1 | C74: 15 | D74: 15 | E74: 26 | F74: 26 | G74: 26 | H74: 26 | I74: 0 | J74: 0 | K74: 0 | L74: 0 | M74: 0
B75: Z2 | C75: 15 | D75: 15 | E75: 26 | F75: 26 | G75: 26 | H75: 26 | I75: 0 | J75: 0 | K75: 0 | L75: 0 | M75: 0
B76: Z3 | C76: 15 | D76: 15 | E76: 26 | F76: 26 | G76: 26 | H76: 26 | I76: 0 | J76: 0 | K76: 0 | L76: 0 | M76: 0
B77: Z4 | C77: 15 | D77: 15 | E77: 26 | F77: 26 | G77: 26 | H77: 26 | I77: 0 | J77: 0 | K77: 0 | L77: 0 | M77: 0
B78: Z5 | C78: 15 | D78: 15 | E78: 26 | F78: 26 | G78: 26 | H78: 26 | I78: 0 | J78: 0 | K78: 0 | L78: 0 | M78: 0
B80: Port stay time slot | F80: Preferred port stay at each terminal
F81: Begin port stay | Q81: End port stay
C82: Begin slot time | D82: End slot time | F82: A1 | G82: A2 | H82: T1 | I82: T2 | J82: T3 | K82: T4 | L82: Z1 | M82: Z2 | N82: Z3 | O82: Z4 | P82: Z5 | Q82: A1 | R82: A2 | S82: T1 | T82: T2 | U82: T3 | V82: T4 | W82: Z1 | X82: Z2 | Y82: Z3 | Z82: Z4 | AA82: Z5
B83: Slot 1 | C83: 0 | D83: 24 | F83: 9 | G83: 9 | H83: 8 | I83: 8 | J83: 8 | K83: 8 | L83: 9 | M83: 9 | N83: 9 | O83: 9 | P83: 9 | Q83: 14 | R83: 14 | S83: 13 | T83: 13 | U83: 13 | V83: 13 | W83: 14 | X83: 14 | Y83: 14 | Z83: 14 | AA83: 14
B84: Slot 2 | C84: 24 | D84: 48 | F84: 31 | G84: 31 | H84: 31 | I84: 30 | J84: 30 | K84: 30 | L84: 31 | M84: 31 | N84: 31 | O84: 31 | P84: 31 | Q84: 43 | R84: 43 | S84: 42 | T84: 42 | U84: 42 | V84: 42 | W84: 43 | X84: 43 | Y84: 43 | Z84: 43 | AA84: 43
B85: Slot 3 | C85: 48 | D85: 72 | F85: 55 | G85: 55 | H85: 55 | I85: 54 | J85: 54 | K85: 54 | L85: 55 | M85: 55 | N85: 55 | O85: 55 | P85: 55 | Q85: 67 | R85: 67 | S85: 66 | T85: 66 | U85: 66 | V85: 66 | W85: 67 | X85: 67 | Y85: 67 | Z85: 67 | AA85: 67
B86: Slot 4 | C86: 72 | D86: 96 | F86: 79 | G86: 79 | H86: 79 | I86: 78 | J86: 78 | K86: 78 | L86: 79 | M86: 79 | N86: 79 | O86: 79 | P86: 79 | Q86: 91 | R86: 91 | S86: 90 | T86: 90 | U86: 90 | V86: 90 | W86: 91 | X86: 91 | Y86: 91 | Z86: 91 | AA86: 91
B87: Slot 5 | C87: 96 | D87: 120 | F87: 103 | G87: 103 | H87: 103 | I87: 102 | J87: 102 | K87: 102 | L87: 103 | M87: 103 | N87: 103 | O87: 103 | P87: 103 | Q87: 115 | R87: 115 | S87: 114 | T87: 114 | U87: 114 | V87: 114 | W87: 115 | X87: 115 | Y87: 115 | Z87: 115 | AA87: 115
B88: Slot 6 | C88: 120 | D88: 144 | F88: 127 | G88: 127 | H88: 127 | I88: 126 | J88: 126 | K88: 126 | L88: 127 | M88: 127 | N88: 127 | O88: 127 | P88: 127 | Q88: 139 | R88: 139 | S88: 138 | T88: 138 | U88: 138 | V88: 138 | W88: 139 | X88: 139 | Y88: 139 | Z88: 139 | AA88: 139
B89: Slot 7 | C89: 144 | D89: 168 | F89: 153 | G89: 153 | H89: 153 | I89: 152 | J89: 152 | K89: 152 | L89: 153 | M89: 153 | N89: 153 | O89: 153 | P89: 153 | Q89: 158 | R89: 158 | S89: 157 | T89: 157 | U89: 157 | V89: 157 | W89: 158 | X89: 158 | Y89: 158 | Z89: 158 | AA89: 158
B91: Volume capacity (TEUs) | C91: A1 | D91: A2 | E91: T1 | F91: T2 | G91: T3 | H91: T4 | I91: Z1 | J91: Z2 | K91: Z3 | L91: Z4 | M91: Z5
B92: A1 | C92: 0 | D92: 0 | E92: 400 | F92: 400 | G92: 400 | H92: 400 | I92: 400 | J92: 400 | K92: 400 | L92: 400 | M92: 400
B93: A2 | C93: 0 | D93: 0 | E93: 400 | F93: 400 | G93: 400 | H93: 400 | I93: 400 | J93: 400 | K93: 400 | L93: 400 | M93: 400
B94: T1 | C94: 400 | D94: 400 | E94: 0 | F94: 0 | G94: 0 | H94: 0 | I94: 400 | J94: 400 | K94: 400 | L94: 400 | M94: 400
B95: T2 | C95: 400 | D95: 400 | E95: 0 | F95: 0 | G95: 0 | H95: 0 | I95: 400 | J95: 400 | K95: 400 | L95: 400 | M95: 400
B96: T3 | C96: 400 | D96: 400 | E96: 0 | F96: 0 | G96: 0 | H96: 0 | I96: 400 | J96: 400 | K96: 400 | L96: 400 | M96: 400
B97: T4 | C97: 400 | D97: 400 | E97: 0 | F97: 0 | G97: 0 | H97: 0 | I97: 400 | J97: 400 | K97: 400 | L97: 400 | M97: 400
B98: Z1 | C98: 400 | D98: 400 | E98: 400 | F98: 400 | G98: 400 | H98: 400 | I98: 0 | J98: 0 | K98: 0 | L98: 0 | M98: 0
B99: Z2 | C99: 400 | D99: 400 | E99: 400 | F99: 400 | G99: 400 | H99: 400 | I99: 0 | J99: 0 | K99: 0 | L99: 0 | M99: 0
B100: Z3 | C100: 400 | D100: 400 | E100: 400 | F100: 400 | G100: 400 | H100: 400 | I100: 0 | J100: 0 | K100: 0 | L100: 0 | M100: 0
B101: Z4 | C101: 400 | D101: 400 | E101: 400 | F101: 400 | G101: 400 | H101: 400 | I101: 0 | J101: 0 | K101: 0 | L101: 0 | M101: 0
B102: Z5 | C102: 400 | D102: 400 | E102: 400 | F102: 400 | G102: 400 | H102: 400 | I102: 0 | J102: 0 | K102: 0 | L102: 0 | M102: 0
B104: Weight capacity (ton) | C104: A1 | D104: A2 | E104: T1 | F104: T2 | G104: T3 | H104: T4 | I104: Z1 | J104: Z2 | K104: Z3 | L104: Z4 | M104: Z5
B105: A1 | C105: 0 | D105: 0 | E105: 3500 | F105: 3500 | G105: 3500 | H105: 3500 | I105: 3500 | J105: 3500 | K105: 3500 | L105: 3500 | M105: 3500
B106: A2 | C106: 0 | D106: 0 | E106: 3500 | F106: 3500 | G106: 3500 | H106: 3500 | I106: 3500 | J106: 3500 | K106: 3500 | L106: 3500 | M106: 3500
B107: T1 | C107: 3500 | D107: 3500 | E107: 0 | F107: 0 | G107: 0 | H107: 0 | I107: 3500 | J107: 3500 | K107: 3500 | L107: 3500 | M107: 3500
B108: T2 | C108: 3500 | D108: 3500 | E108: 0 | F108: 0 | G108: 0 | H108: 0 | I108: 3500 | J108: 3500 | K108: 3500 | L108: 3500 | M108: 3500
B109: T3 | C109: 3500 | D109: 3500 | E109: 0 | F109: 0 | G109: 0 | H109: 0 | I109: 3500 | J109: 3500 | K109: 3500 | L109: 3500 | M109: 3500
B110: T4 | C110: 3500 | D110: 3500 | E110: 0 | F110: 0 | G110: 0 | H110: 0 | I110: 3500 | J110: 3500 | K110: 3500 | L110: 3500 | M110: 3500
B111: Z1 | C111: 3500 | D111: 3500 | E111: 3500 | F111: 3500 | G111: 3500 | H111: 3500 | I111: 0 | J111: 0 | K111: 0 | L111: 0 | M111: 0
B112: Z2 | C112: 3500 | D112: 3500 | E112: 3500 | F112: 3500 | G112: 3500 | H112: 3500 | I112: 0 | J112: 0 | K112: 0 | L112: 0 | M112: 0
B113: Z3 | C113: 3500 | D113: 3500 | E113: 3500 | F113: 3500 | G113: 3500 | H113: 3500 | I113: 0 | J113: 0 | K113: 0 | L113: 0 | M113: 0
B114: Z4 | C114: 3500 | D114: 3500 | E114: 3500 | F114: 3500 | G114: 3500 | H114: 3500 | I114: 0 | J114: 0 | K114: 0 | L114: 0 | M114: 0
B115: Z5 | C115: 3500 | D115: 3500 | E115: 3500 | F115: 3500 | G115: 3500 | H115: 3500 | I115: 0 | J115: 0 | K115: 0 | L115: 0 | M115: 0
B118: Vessel 2
B119: Total vessel operation time (h) | C119: 168
B120: Terminal handling speed (container/h) | C120: 16
B122: Sailing Time (h) | C122: A1 | D122: A2 | E122: T1 | F122: T2 | G122: T3 | H122: T4 | I122: Z1 | J122: Z2 | K122: Z3 | L122: Z4 | M122: Z5
B123: A1 | C123: 0 | D123: 0 | E123: 18 | F123: 18 | G123: 18 | H123: 18 | I123: 15 | J123: 15 | K123: 15 | L123: 15 | M123: 15
B124: A2 | C124: 0 | D124: 0 | E124: 18 | F124: 18 | G124: 18 | H124: 18 | I124: 15 | J124: 15 | K124: 15 | L124: 15 | M124: 15
B125: T1 | C125: 18 | D125: 18 | E125: 0 | F125: 0 | G125: 0 | H125: 0 | I125: 26 | J125: 26 | K125: 26 | L125: 26 | M125: 26
B126: T2 | C126: 18 | D126: 18 | E126: 0 | F126: 0 | G126: 0 | H126: 0 | I126: 26 | J126: 26 | K126: 26 | L126: 26 | M126: 26
B127: T3 | C127: 18 | D127: 18 | E127: 0 | F127: 0 | G127: 0 | H127: 0 | I127: 26 | J127: 26 | K127: 26 | L127: 26 | M127: 26
B128: T4 | C128: 18 | D128: 18 | E128: 0 | F128: 0 | G128: 0 | H128: 0 | I128: 26 | J128: 26 | K128: 26 | L128: 26 | M128: 26
B129: Z1 | C129: 15 | D129: 15 | E129: 26 | F129: 26 | G129: 26 | H129: 26 | I129: 0 | J129: 0 | K129: 0 | L129: 0 | M129: 0
B130: Z2 | C130: 15 | D130: 15 | E130: 26 | F130: 26 | G130: 26 | H130: 26 | I130: 0 | J130: 0 | K130: 0 | L130: 0 | M130: 0
B131: Z3 | C131: 15 | D131: 15 | E131: 26 | F131: 26 | G131: 26 | H131: 26 | I131: 0 | J131: 0 | K131: 0 | L131: 0 | M131: 0
B132: Z4 | C132: 15 | D132: 15 | E132: 26 | F132: 26 | G132: 26 | H132: 26 | I132: 0 | J132: 0 | K132: 0 | L132: 0 | M132: 0
B133: Z5 | C133: 15 | D133: 15 | E133: 26 | F133: 26 | G133: 26 | H133: 26 | I133: 0 | J133: 0 | K133: 0 | L133: 0 | M133: 0
B135: Port stay time slot | F135: Preferred port stay at each terminal
F136: Begin port stay | Q136: End port stay
C137: Begin slot time | D137: End slot time | F137: A1 | G137: A2 | H137: T1 | I137: T2 | J137: T3 | K137: T4 | L137: Z1 | M137: Z2 | N137: Z3 | O137: Z4 | P137: Z5 | Q137: A1 | R137: A2 | S137: T1 | T137: T2 | U137: T3 | V137: T4 | W137: Z1 | X137: Z2 | Y137: Z3 | Z137: Z4 | AA137: Z5
B138: Slot 1 | C138: 0 | D138: 24 | F138: 9 | G138: 9 | H138: 8 | I138: 8 | J138: 8 | K138: 8 | L138: 9 | M138: 9 | N138: 9 | O138: 9 | P138: 9 | Q138: 14 | R138: 14 | S138: 13 | T138: 13 | U138: 13 | V138: 13 | W138: 14 | X138: 14 | Y138: 14 | Z138: 14 | AA138: 14
B139: Slot 2 | C139: 24 | D139: 48 | F139: 31 | G139: 31 | H139: 31 | I139: 30 | J139: 30 | K139: 30 | L139: 31 | M139: 31 | N139: 31 | O139: 31 | P139: 31 | Q139: 43 | R139: 43 | S139: 42 | T139: 42 | U139: 42 | V139: 42 | W139: 43 | X139: 43 | Y139: 43 | Z139: 43 | AA139: 43
B140: Slot 3 | C140: 48 | D140: 72 | F140: 55 | G140: 55 | H140: 55 | I140: 54 | J140: 54 | K140: 54 | L140: 55 | M140: 55 | N140: 55 | O140: 55 | P140: 55 | Q140: 67 | R140: 67 | S140: 66 | T140: 66 | U140: 66 | V140: 66 | W140: 67 | X140: 67 | Y140: 67 | Z140: 67 | AA140: 67
B141: Slot 4 | C141: 72 | D141: 96 | F141: 79 | G141: 79 | H141: 79 | I141: 78 | J141: 78 | K141: 78 | L141: 79 | M141: 79 | N141: 79 | O141: 79 | P141: 79 | Q141: 91 | R141: 91 | S141: 90 | T141: 90 | U141: 90 | V141: 90 | W141: 91 | X141: 91 | Y141: 91 | Z141: 91 | AA141: 91
B142: Slot 5 | C142: 96 | D142: 120 | F142: 103 | G142: 103 | H142: 103 | I142: 102 | J142: 102 | K142: 102 | L142: 103 | M142: 103 | N142: 103 | O142: 103 | P142: 103 | Q142: 115 | R142: 115 | S142: 114 | T142: 114 | U142: 114 | V142: 114 | W142: 115 | X142: 115 | Y142: 115 | Z142: 115 | AA142: 115
B143: Slot 6 | C143: 120 | D143: 144 | F143: 127 | G143: 127 | H143: 127 | I143: 126 | J143: 126 | K143: 126 | L143: 127 | M143: 127 | N143: 127 | O143: 127 | P143: 127 | Q143: 139 | R143: 139 | S143: 138 | T143: 138 | U143: 138 | V143: 138 | W143: 139 | X143: 139 | Y143: 139 | Z143: 139 | AA143: 139
B144: Slot 7 | C144: 144 | D144: 168 | F144: 153 | G144: 153 | H144: 153 | I144: 152 | J144: 152 | K144: 152 | L144: 153 | M144: 153 | N144: 153 | O144: 153 | P144: 153 | Q144: 158 | R144: 158 | S144: 157 | T144: 157 | U144: 157 | V144: 157 | W144: 158 | X144: 158 | Y144: 158 | Z144: 158 | AA144: 158
B146: Volume capacity (TEUs) | C146: A1 | D146: A2 | E146: T1 | F146: T2 | G146: T3 | H146: T4 | I146: Z1 | J146: Z2 | K146: Z3 | L146: Z4 | M146: Z5
B147: A1 | C147: 0 | D147: 0 | E147: 400 | F147: 400 | G147: 400 | H147: 400 | I147: 400 | J147: 400 | K147: 400 | L147: 400 | M147: 400
B148: A2 | C148: 0 | D148: 0 | E148: 400 | F148: 400 | G148: 400 | H148: 400 | I148: 400 | J148: 400 | K148: 400 | L148: 400 | M148: 400
B149: T1 | C149: 400 | D149: 400 | E149: 0 | F149: 0 | G149: 0 | H149: 0 | I149: 400 | J149: 400 | K149: 400 | L149: 400 | M149: 400
B150: T2 | C150: 400 | D150: 400 | E150: 0 | F150: 0 | G150: 0 | H150: 0 | I150: 400 | J150: 400 | K150: 400 | L150: 400 | M150: 400
B151: T3 | C151: 400 | D151: 400 | E151: 0 | F151: 0 | G151: 0 | H151: 0 | I151: 400 | J151: 400 | K151: 400 | L151: 400 | M151: 400
B152: T4 | C152: 400 | D152: 400 | E152: 0 | F152: 0 | G152: 0 | H152: 0 | I152: 400 | J152: 400 | K152: 400 | L152: 400 | M152: 400
B153: Z1 | C153: 400 | D153: 400 | E153: 400 | F153: 400 | G153: 400 | H153: 400 | I153: 0 | J153: 0 | K153: 0 | L153: 0 | M153: 0
B154: Z2 | C154: 400 | D154: 400 | E154: 400 | F154: 400 | G154: 400 | H154: 400 | I154: 0 | J154: 0 | K154: 0 | L154: 0 | M154: 0
B155: Z3 | C155: 400 | D155: 400 | E155: 400 | F155: 400 | G155: 400 | H155: 400 | I155: 0 | J155: 0 | K155: 0 | L155: 0 | M155: 0
B156: Z4 | C156: 400 | D156: 400 | E156: 400 | F156: 400 | G156: 400 | H156: 400 | I156: 0 | J156: 0 | K156: 0 | L156: 0 | M156: 0
B157: Z5 | C157: 400 | D157: 400 | E157: 400 | F157: 400 | G157: 400 | H157: 400 | I157: 0 | J157: 0 | K157: 0 | L157: 0 | M157: 0
B159: Weight capacity (ton) | C159: A1 | D159: A2 | E159: T1 | F159: T2 | G159: T3 | H159: T4 | I159: Z1 | J159: Z2 | K159: Z3 | L159: Z4 | M159: Z5
B160: A1 | C160: 0 | D160: 0 | E160: 3500 | F160: 3500 | G160: 3500 | H160: 3500 | I160: 3500 | J160: 3500 | K160: 3500 | L160: 3500 | M160: 3500
B161: A2 | C161: 0 | D161: 0 | E161: 3500 | F161: 3500 | G161: 3500 | H161: 3500 | I161: 3500 | J161: 3500 | K161: 3500 | L161: 3500 | M161: 3500
B162: T1 | C162: 3500 | D162: 3500 | E162: 0 | F162: 0 | G162: 0 | H162: 0 | I162: 3500 | J162: 3500 | K162: 3500 | L162: 3500 | M162: 3500
B163: T2 | C163: 3500 | D163: 3500 | E163: 0 | F163: 0 | G163: 0 | H163: 0 | I163: 3500 | J163: 3500 | K163: 3500 | L163: 3500 | M163: 3500
B164: T3 | C164: 3500 | D164: 3500 | E164: 0 | F164: 0 | G164: 0 | H164: 0 | I164: 3500 | J164: 3500 | K164: 3500 | L164: 3500 | M164: 3500
B165: T4 | C165: 3500 | D165: 3500 | E165: 0 | F165: 0 | G165: 0 | H165: 0 | I165: 3500 | J165: 3500 | K165: 3500 | L165: 3500 | M165: 3500
B166: Z1 | C166: 3500 | D166: 3500 | E166: 3500 | F166: 3500 | G166: 3500 | H166: 3500 | I166: 0 | J166: 0 | K166: 0 | L166: 0 | M166: 0
B167: Z2 | C167: 3500 | D167: 3500 | E167: 3500 | F167: 3500 | G167: 3500 | H167: 3500 | I167: 0 | J167: 0 | K167: 0 | L167: 0 | M167: 0
B168: Z3 | C168: 3500 | D168: 3500 | E168: 3500 | F168: 3500 | G168: 3500 | H168: 3500 | I168: 0 | J168: 0 | K168: 0 | L168: 0 | M168: 0
B169: Z4 | C169: 3500 | D169: 3500 | E169: 3500 | F169: 3500 | G169: 3500 | H169: 3500 | I169: 0 | J169: 0 | K169: 0 | L169: 0 | M169: 0
B170: Z5 | C170: 3500 | D170: 3500 | E170: 3500 | F170: 3500 | G170: 3500 | H170: 3500 | I170: 0 | J170: 0 | K170: 0 | L170: 0 | M170: 0
B173: Vessel 3
B174: Total vessel operation time (h) | C174: 168
B175: Terminal handling speed (container/h) | C175: 16
B177: Sailing Time (h) | C177: A1 | D177: A2 | E177: T1 | F177: T2 | G177: T3 | H177: T4 | I177: Z1 | J177: Z2 | K177: Z3 | L177: Z4 | M177: Z5
B178: A1 | C178: 0 | D178: 0 | E178: 18 | F178: 18 | G178: 18 | H178: 18 | I178: 15 | J178: 15 | K178: 15 | L178: 15 | M178: 15
B179: A2 | C179: 0 | D179: 0 | E179: 18 | F179: 18 | G179: 18 | H179: 18 | I179: 15 | J179: 15 | K179: 15 | L179: 15 | M179: 15
B180: T1 | C180: 18 | D180: 18 | E180: 0 | F180: 0 | G180: 0 | H180: 0 | I180: 26 | J180: 26 | K180: 26 | L180: 26 | M180: 26
B181: T2 | C181: 18 | D181: 18 | E181: 0 | F181: 0 | G181: 0 | H181: 0 | I181: 26 | J181: 26 | K181: 26 | L181: 26 | M181: 26
B182: T3 | C182: 18 | D182: 18 | E182: 0 | F182: 0 | G182: 0 | H182: 0 | I182: 26 | J182: 26 | K182: 26 | L182: 26 | M182: 26
B183: T4 | C183: 18 | D183: 18 | E183: 0 | F183: 0 | G183: 0 | H183: 0 | I183: 26 | J183: 26 | K183: 26 | L183: 26 | M183: 26
B184: Z1 | C184: 15 | D184: 15 | E184: 26 | F184: 26 | G184: 26 | H184: 26 | I184: 0 | J184: 0 | K184: 0 | L184: 0 | M184: 0
B185: Z2 | C185: 15 | D185: 15 | E185: 26 | F185: 26 | G185: 26 | H185: 26 | I185: 0 | J185: 0 | K185: 0 | L185: 0 | M185: 0
B186: Z3 | C186: 15 | D186: 15 | E186: 26 | F186: 26 | G186: 26 | H186: 26 | I186: 0 | J186: 0 | K186: 0 | L186: 0 | M186: 0
B187: Z4 | C187: 15 | D187: 15 | E187: 26 | F187: 26 | G187: 26 | H187: 26 | I187: 0 | J187: 0 | K187: 0 | L187: 0 | M187: 0
B188: Z5 | C188: 15 | D188: 15 | E188: 26 | F188: 26 | G188: 26 | H188: 26 | I188: 0 | J188: 0 | K188: 0 | L188: 0 | M188: 0
B190: Port stay time slot | F190: Preferred port stay at each terminal
F191: Begin port stay | Q191: End port stay
C192: Begin slot time | D192: End slot time | F192: A1 | G192: A2 | H192: T1 | I192: T2 | J192: T3 | K192: T4 | L192: Z1 | M192: Z2 | N192: Z3 | O192: Z4 | P192: Z5 | Q192: A1 | R192: A2 | S192: T1 | T192: T2 | U192: T3 | V192: T4 | W192: Z1 | X192: Z2 | Y192: Z3 | Z192: Z4 | AA192: Z5
B193: Slot 1 | C193: 0 | D193: 24 | F193: 9 | G193: 9 | H193: 8 | I193: 8 | J193: 8 | K193: 8 | L193: 9 | M193: 9 | N193: 9 | O193: 9 | P193: 9 | Q193: 14 | R193: 14 | S193: 13 | T193: 13 | U193: 13 | V193: 13 | W193: 14 | X193: 14 | Y193: 14 | Z193: 14 | AA193: 14
B194: Slot 2 | C194: 24 | D194: 48 | F194: 31 | G194: 31 | H194: 31 | I194: 30 | J194: 30 | K194: 30 | L194: 31 | M194: 31 | N194: 31 | O194: 31 | P194: 31 | Q194: 43 | R194: 43 | S194: 42 | T194: 42 | U194: 42 | V194: 42 | W194: 43 | X194: 43 | Y194: 43 | Z194: 43 | AA194: 43
B195: Slot 3 | C195: 48 | D195: 72 | F195: 55 | G195: 55 | H195: 55 | I195: 54 | J195: 54 | K195: 54 | L195: 55 | M195: 55 | N195: 55 | O195: 55 | P195: 55 | Q195: 67 | R195: 67 | S195: 66 | T195: 66 | U195: 66 | V195: 66 | W195: 67 | X195: 67 | Y195: 67 | Z195: 67 | AA195: 67
B196: Slot 4 | C196: 72 | D196: 96 | F196: 79 | G196: 79 | H196: 79 | I196: 78 | J196: 78 | K196: 78 | L196: 79 | M196: 79 | N196: 79 | O196: 79 | P196: 79 | Q196: 91 | R196: 91 | S196: 90 | T196: 90 | U196: 90 | V196: 90 | W196: 91 | X196: 91 | Y196: 91 | Z196: 91 | AA196: 91
B197: Slot 5 | C197: 96 | D197: 120 | F197: 103 | G197: 103 | H197: 103 | I197: 102 | J197: 102 | K197: 102 | L197: 103 | M197: 103 | N197: 103 | O197: 103 | P197: 103 | Q197: 115 | R197: 115 | S197: 114 | T197: 114 | U197: 114 | V197: 114 | W197: 115 | X197: 115 | Y197: 115 | Z197: 115 | AA197: 115
B198: Slot 6 | C198: 120 | D198: 144 | F198: 127 | G198: 127 | H198: 127 | I198: 126 | J198: 126 | K198: 126 | L198: 127 | M198: 127 | N198: 127 | O198: 127 | P198: 127 | Q198: 139 | R198: 139 | S198: 138 | T198: 138 | U198: 138 | V198: 138 | W198: 139 | X198: 139 | Y198: 139 | Z198: 139 | AA198: 139
B199: Slot 7 | C199: 144 | D199: 168 | F199: 153 | G199: 153 | H199: 153 | I199: 152 | J199: 152 | K199: 152 | L199: 153 | M199: 153 | N199: 153 | O199: 153 | P199: 153 | Q199: 158 | R199: 158 | S199: 157 | T199: 157 | U199: 157 | V199: 157 | W199: 158 | X199: 158 | Y199: 158 | Z199: 158 | AA199: 158
B201: Volume capacity (TEUs) | C201: A1 | D201: A2 | E201: T1 | F201: T2 | G201: T3 | H201: T4 | I201: Z1 | J201: Z2 | K201: Z3 | L201: Z4 | M201: Z5
B202: A1 | C202: 0 | D202: 0 | E202: 400 | F202: 400 | G202: 400 | H202: 400 | I202: 400 | J202: 400 | K202: 400 | L202: 400 | M202: 400
B203: A2 | C203: 0 | D203: 0 | E203: 400 | F203: 400 | G203: 400 | H203: 400 | I203: 400 | J203: 400 | K203: 400 | L203: 400 | M203: 400
B204: T1 | C204: 400 | D204: 400 | E204: 0 | F204: 0 | G204: 0 | H204: 0 | I204: 400 | J204: 400 | K204: 400 | L204: 400 | M204: 400
B205: T2 | C205: 400 | D205: 400 | E205: 0 | F205: 0 | G205: 0 | H205: 0 | I205: 400 | J205: 400 | K205: 400 | L205: 400 | M205: 400
B206: T3 | C206: 400 | D206: 400 | E206: 0 | F206: 0 | G206: 0 | H206: 0 | I206: 400 | J206: 400 | K206: 400 | L206: 400 | M206: 400
B207: T4 | C207: 400 | D207: 400 | E207: 0 | F207: 0 | G207: 0 | H207: 0 | I207: 400 | J207: 400 | K207: 400 | L207: 400 | M207: 400
B208: Z1 | C208: 400 | D208: 400 | E208: 400 | F208: 400 | G208: 400 | H208: 400 | I208: 0 | J208: 0 | K208: 0 | L208: 0 | M208: 0
B209: Z2 | C209: 400 | D209: 400 | E209: 400 | F209: 400 | G209: 400 | H209: 400 | I209: 0 | J209: 0 | K209: 0 | L209: 0 | M209: 0
B210: Z3 | C210: 400 | D210: 400 | E210: 400 | F210: 400 | G210: 400 | H210: 400 | I210: 0 | J210: 0 | K210: 0 | L210: 0 | M210: 0
B211: Z4 | C211: 400 | D211: 400 | E211: 400 | F211: 400 | G211: 400 | H211: 400 | I211: 0 | J211: 0 | K211: 0 | L211: 0 | M211: 0
B212: Z5 | C212: 400 | D212: 400 | E212: 400 | F212: 400 | G212: 400 | H212: 400 | I212: 0 | J212: 0 | K212: 0 | L212: 0 | M212: 0
B214: Weight capacity (ton) | C214: A1 | D214: A2 | E214: T1 | F214: T2 | G214: T3 | H214: T4 | I214: Z1 | J214: Z2 | K214: Z3 | L214: Z4 | M214: Z5
B215: A1 | C215: 0 | D215: 0 | E215: 3500 | F215: 3500 | G215: 3500 | H215: 3500 | I215: 3500 | J215: 3500 | K215: 3500 | L215: 3500 | M215: 3500
B216: A2 | C216: 0 | D216: 0 | E216: 3500 | F216: 3500 | G216: 3500 | H216: 3500 | I216: 3500 | J216: 3500 | K216: 3500 | L216: 3500 | M216: 3500
B217: T1 | C217: 3500 | D217: 3500 | E217: 0 | F217: 0 | G217: 0 | H217: 0 | I217: 3500 | J217: 3500 | K217: 3500 | L217: 3500 | M217: 3500
B218: T2 | C218: 3500 | D218: 3500 | E218: 0 | F218: 0 | G218: 0 | H218: 0 | I218: 3500 | J218: 3500 | K218: 3500 | L218: 3500 | M218: 3500
B219: T3 | C219: 3500 | D219: 3500 | E219: 0 | F219: 0 | G219: 0 | H219: 0 | I219: 3500 | J219: 3500 | K219: 3500 | L219: 3500 | M219: 3500
B220: T4 | C220: 3500 | D220: 3500 | E220: 0 | F220: 0 | G220: 0 | H220: 0 | I220: 3500 | J220: 3500 | K220: 3500 | L220: 3500 | M220: 3500
B221: Z1 | C221: 3500 | D221: 3500 | E221: 3500 | F221: 3500 | G221: 3500 | H221: 3500 | I221: 0 | J221: 0 | K221: 0 | L221: 0 | M221: 0
B222: Z2 | C222: 3500 | D222: 3500 | E222: 3500 | F222: 3500 | G222: 3500 | H222: 3500 | I222: 0 | J222: 0 | K222: 0 | L222: 0 | M222: 0
B223: Z3 | C223: 3500 | D223: 3500 | E223: 3500 | F223: 3500 | G223: 3500 | H223: 3500 | I223: 0 | J223: 0 | K223: 0 | L223: 0 | M223: 0
B224: Z4 | C224: 3500 | D224: 3500 | E224: 3500 | F224: 3500 | G224: 3500 | H224: 3500 | I224: 0 | J224: 0 | K224: 0 | L224: 0 | M224: 0
B225: Z5 | C225: 3500 | D225: 3500 | E225: 3500 | F225: 3500 | G225: 3500 | H225: 3500 | I225: 0 | J225: 0 | K225: 0 | L225: 0 | M225: 0

Sheet Output_WeeklyRoutingScheduling
B11: Schedule of Vessel 1 | M11: Schedule of Vessel 2 | X11: Schedule of Vessel 3
B12: Buiding block | C12: O | D12: D | E12: Estimate time departure (ETD) | F12: ETD (DAY) | G12: ETD (HOUR) | H12: Estimated time arrival (ETA) | I12: ETA (DAY) | J12: ETA (HOUR) | M12: Buiding block | N12: O | O12: D | P12: Estimate time departure (ETD) | Q12: ETD (DAY) | R12: ETD (HOUR) | S12: Estimated time arrival (ETA) | T12: ETA (DAY) | U12: ETA (HOUR) | X12: Building block | Y12: O | Z12: D | AA12: Estimate time departure (ETD) | AB12: ETD (DAY) | AC12: ETD (HOUR) | AD12: Estimated time arrival (ETA) | AE12: ETA (DAY) | AF12: ETA (HOUR)
B13: 1_A1->T1->A2 | C13: A1 | D13: T1 | E13: 109.81 | F13: =IF(E13=0,"",IF(E13<24,"Sun",IF(E13<48,"Mon",IF(E13<72,"Tue",IF(E13<96,"Wed",IF(E13<120,"Thur",IF(E13<144,"Fri","Sat"))))))) -> Thur | G13: =IF(F13="","",(E13-ROUNDDOWN(E13/24,0)*24)) -> 13.81 | H13: 127.81 | I13: =IF(H13=0,"",IF(H13<24,"Sun",IF(H13<48,"Mon",IF(H13<72,"Tue",IF(H13<96,"Wed",IF(H13<120,"Thur",IF(H13<144,"Fri","Sat"))))))) -> Fri | J13: =IF(I13="","",(H13-ROUNDDOWN(H13/24,0)*24)) -> 7.81 | M13: 3_A1->T1->A2 | N13: A1 | O13: T1 | P13: 109.06 | Q13: =IF(P13=0,"",IF(P13<24,"Sun",IF(P13<48,"Mon",IF(P13<72,"Tue",IF(P13<96,"Wed",IF(P13<120,"Thur",IF(P13<144,"Fri","Sat"))))))) -> Thur | R13: =IF(Q13="","",(P13-ROUNDDOWN(P13/24,0)*24)) -> 13.06 | S13: 127.06 | T13: =IF(S13=0,"",IF(S13<24,"Sun",IF(S13<48,"Mon",IF(S13<72,"Tue",IF(S13<96,"Wed",IF(S13<120,"Thur",IF(S13<144,"Fri","Sat"))))))) -> Fri | U13: =IF(T13="","",(S13-ROUNDDOWN(S13/24,0)*24)) -> 7.06 | X13: 3_A1->T1->A2 | Y13: A1 | Z13: T1 | AA13: 106.63 | AB13: =IF(AA13=0,"",IF(AA13<24,"Sun",IF(AA13<48,"Mon",IF(AA13<72,"Tue",IF(AA13<96,"Wed",IF(AA13<120,"Thur",IF(AA13<144,"Fri","Sat"))))))) -> Thur | AC13: =IF(AB13="","",(AA13-ROUNDDOWN(AA13/24,0)*24)) -> 10.63 | AD13: 124.63 | AE13: =IF(AD13=0,"",IF(AD13<24,"Sun",IF(AD13<48,"Mon",IF(AD13<72,"Tue",IF(AD13<96,"Wed",IF(AD13<120,"Thur",IF(AD13<144,"Fri","Sat"))))))) -> Fri | AF13: =IF(AE13="","",(AD13-ROUNDDOWN(AD13/24,0)*24)) -> 4.63
B14: 1_A1->T1->A2 | C14: T1 | D14: A2 | E14: 138 | F14: =IF(E14=0,"",IF(E14<24,"Sun",IF(E14<48,"Mon",IF(E14<72,"Tue",IF(E14<96,"Wed",IF(E14<120,"Thur",IF(E14<144,"Fri","Sat"))))))) -> Fri | G14: =IF(F14="","",(E14-ROUNDDOWN(E14/24,0)*24)) -> 18 | H14: 156 | I14: =IF(H14=0,"",IF(H14<24,"Sun",IF(H14<48,"Mon",IF(H14<72,"Tue",IF(H14<96,"Wed",IF(H14<120,"Thur",IF(H14<144,"Fri","Sat"))))))) -> Sat | J14: =IF(I14="","",(H14-ROUNDDOWN(H14/24,0)*24)) -> 12 | M14: 3_A1->T1->A2 | N14: T1 | O14: A2 | P14: 142.06 | Q14: =IF(P14=0,"",IF(P14<24,"Sun",IF(P14<48,"Mon",IF(P14<72,"Tue",IF(P14<96,"Wed",IF(P14<120,"Thur",IF(P14<144,"Fri","Sat"))))))) -> Fri | R14: =IF(Q14="","",(P14-ROUNDDOWN(P14/24,0)*24)) -> 22.06 | S14: 160.06 | T14: =IF(S14=0,"",IF(S14<24,"Sun",IF(S14<48,"Mon",IF(S14<72,"Tue",IF(S14<96,"Wed",IF(S14<120,"Thur",IF(S14<144,"Fri","Sat"))))))) -> Sat | U14: =IF(T14="","",(S14-ROUNDDOWN(S14/24,0)*24)) -> 16.06 | X14: 3_A1->T1->A2 | Y14: T1 | Z14: A2 | AA14: 141.69 | AB14: =IF(AA14=0,"",IF(AA14<24,"Sun",IF(AA14<48,"Mon",IF(AA14<72,"Tue",IF(AA14<96,"Wed",IF(AA14<120,"Thur",IF(AA14<144,"Fri","Sat"))))))) -> Fri | AC14: =IF(AB14="","",(AA14-ROUNDDOWN(AA14/24,0)*24)) -> 21.69 | AD14: 159.69 | AE14: =IF(AD14=0,"",IF(AD14<24,"Sun",IF(AD14<48,"Mon",IF(AD14<72,"Tue",IF(AD14<96,"Wed",IF(AD14<120,"Thur",IF(AD14<144,"Fri","Sat"))))))) -> Sat | AF14: =IF(AE14="","",(AD14-ROUNDDOWN(AD14/24,0)*24)) -> 15.69
B15: 4_A1->T1->A2 | C15: A1 | D15: T1 | E15: 37 | F15: Mon | G15: 13 | H15: 55 | I15: Tue | J15: 7 | M15: 16_A1->Z1->T1->A2 | N15: A1 | O15: Z1 | P15: 31 | Q15: Mon | R15: 7 | S15: 46 | T15: Mon | U15: 22 | X15: 4_A1->T1->A2 | Y15: A1 | Z15: T1 | AA15: 37 | AB15: Mon | AC15: 13 | AD15: 55 | AE15: Tue | AF15: 7
B16: 4_A1->T1->A2 | C16: T1 | D16: A2 | E16: 82.38 | F16: Wed | G16: 10.38 | H16: 100.38 | I16: Thur | J16: 4.38 | M16: 16_A1->Z1->T1->A2 | N16: T1 | O16: A2 | P16: 82.25 | Q16: Wed | R16: 10.25 | S16: 100.25 | T16: Thur | U16: 4.25 | X16: 4_A1->T1->A2 | Y16: T1 | Z16: A2 | AA16: 68.25 | AB16: Tue | AC16: 20.25 | AD16: 86.25 | AE16: Wed | AF16: 14.25
M17: 16_A1->Z1->T1->A2 | N17: Z1 | O17: T1 | P17: 53 | Q17: Tue | R17: 5 | S17: 79 | T17: Wed | U17: 7
B18: Container Assignment of Vessel 1 | X18: Container Assignment of Vessel 1
B19: Customer | C19: Building block | D19: O | E19: D | F19: Container volume | G19: Departure time | H19: Departure day | I19: Arrival time | J19: Arrival day | M19: Container Assignment of Vessel 1 | X19: Customer | Y19: Building block | Z19: O | AA19: D | AB19: Container volume | AC19: Departure time | AD19: Departure day | AE19: Arrival time | AF19: Arrival day
B20: Full customer 1_n_Mon._(full) | C20: 4_A1->T1->A2 | D20: T1 | E20: A2 | F20: 47 | G20: 82.38 | H20: Wed | I20: 100.38 | J20: Thur | M20: Customer | N20: Buiding block | O20: O | P20: D | Q20: Container volume | R20: Departure time | S20: Departure day | T20: Arrival time | U20: Arrival day | X20: Full customer 1_n_Mon._(full) | Y20: 4_A1->T1->A2 | Z20: T1 | AA20: A2 | AB20: 47 | AC20: 68.25 | AD20: Tue | AE20: 86.25 | AF20: Wed
B21: Full customer 1_n_Tue._(full) | C21: 1_A1->T1->A2 | D21: T1 | E21: A2 | F21: 41 | G21: 138 | H21: Fri | I21: 156 | J21: Sat | M21: Full customer 1_n_Mon._(full) | N21: 16_A1->Z1->T1->A2 | O21: T1 | P21: A2 | Q21: 26 | R21: 82.25 | S21: Wed | T21: 100.25 | U21: Thur | X21: Full customer 1_n_Tue._(full) | Y21: 4_A1->T1->A2 | Z21: T1 | AA21: A2 | AB21: 47 | AC21: 68.25 | AD21: Tue | AE21: 86.25 | AF21: Wed
B22: Full customer 1_n_Tue._(full) | C22: 4_A1->T1->A2 | D22: T1 | E22: A2 | F22: 6 | G22: 82.38 | H22: Wed | I22: 100.38 | J22: Thur | M22: Full customer 1_n_Tue._(full) | N22: 3_A1->T1->A2 | O22: T1 | P22: A2 | Q22: 26 | R22: 142.06 | S22: Fri | T22: 160.06 | U22: Sat | X22: Full customer 1_n_Wed._(full) | Y22: 3_A1->T1->A2 | Z22: T1 | AA22: A2 | AB22: 47 | AC22: 141.69 | AD22: Fri | AE22: 159.69 | AF22: Sat
B23: Full customer 1_n_Wed._(full) | C23: 4_A1->T1->A2 | D23: T1 | E23: A2 | F23: 47 | G23: 82.38 | H23: Wed | I23: 100.38 | J23: Thur | M23: Full customer 1_n_Wed._(full) | N23: 3_A1->T1->A2 | O23: T1 | P23: A2 | Q23: 26 | R23: 142.06 | S23: Fri | T23: 160.06 | U23: Sat | X23: Full customer 1_n_Thur._(full) | Y23: 3_A1->T1->A2 | Z23: T1 | AA23: A2 | AB23: 47 | AC23: 141.69 | AD23: Fri | AE23: 159.69 | AF23: Sat
B24: Full customer 1_n_Thur._(full) | C24: 1_A1->T1->A2 | D24: T1 | E24: A2 | F24: 46 | G24: 138 | H24: Fri | I24: 156 | J24: Sat | M24: Full customer 1_n_Thur._(full) | N24: 3_A1->T1->A2 | O24: T1 | P24: A2 | Q24: 26 | R24: 142.06 | S24: Fri | T24: 160.06 | U24: Sat | X24: Full customer 1_n_Fri._(full) | Y24: 3_A1->T1->A2 | Z24: T1 | AA24: A2 | AB24: 5 | AC24: 141.69 | AD24: Fri | AE24: 159.69 | AF24: Sat
B25: Full customer 1_n_Fri._(full) | C25: 1_A1->T1->A2 | D25: T1 | E25: A2 | F25: 12 | G25: 138 | H25: Fri | I25: 156 | J25: Sat | M25: Full customer 1_n_Fri._(full) | N25: 3_A1->T1->A2 | O25: T1 | P25: A2 | Q25: 7 | R25: 142.06 | S25: Fri | T25: 160.06 | U25: Sat | X25: Full customer 5_n_Thur._(full) | Y25: 3_A1->T1->A2 | Z25: A1 | AA25: T1 | AB25: 30 | AC25: 106.63 | AD25: Thur | AE25: 124.63 | AF25: Fri
B26: Full customer 2_n-1_Fri._(full) | C26: 4_A1->T1->A2 | D26: A1 | E26: T1 | F26: 1 | G26: 37 | H26: Mon | I26: 55 | J26: Tue | M26: Full customer 3_n_Wed._(full) | N26: 3_A1->T1->A2 | O26: A1 | P26: T1 | Q26: 4 | R26: 109.06 | S26: Thur | T26: 127.06 | U26: Fri | X26: Full customer 6_n_Mon._(full) | Y26: 4_A1->T1->A2 | Z26: A1 | AA26: T1 | AB26: 24 | AC26: 37 | AD26: Mon | AE26: 55 | AF26: Tue
B27: Full customer 2_n-1_Sat._(full) | C27: 4_A1->T1->A2 | D27: A1 | E27: T1 | F27: 5 | G27: 37 | H27: Mon | I27: 55 | J27: Tue | M27: Full customer 4_n-1_Fri._(full) | N27: 16_A1->Z1->T1->A2 | O27: A1 | P27: T1 | Q27: 6 | R27: 31 | S27: Mon | T27: 79 | U27: Wed | X27: Full customer 8_n_Wed._(full) | Y27: 3_A1->T1->A2 | Z27: A1 | AA27: T1 | AB27: 13 | AC27: 106.63 | AD27: Thur | AE27: 124.63 | AF27: Fri
B28: Full customer 2_n_Mon._(full) | C28: 4_A1->T1->A2 | D28: A1 | E28: T1 | F28: 50 | G28: 37 | H28: Mon | I28: 55 | J28: Tue | M28: Full customer 4_n-1_Sat._(full) | N28: 16_A1->Z1->T1->A2 | O28: A1 | P28: T1 | Q28: 4 | R28: 31 | S28: Mon | T28: 79 | U28: Wed | X28: Full customer 9_n_Wed._(full) | Y28: 3_A1->T1->A2 | Z28: A1 | AA28: T1 | AB28: 33 | AC28: 106.63 | AD28: Thur | AE28: 124.63 | AF28: Fri
B29: Full customer 2_n_Tue._(full) | C29: 1_A1->T1->A2 | D29: A1 | E29: T1 | F29: 24 | G29: 109.81 | H29: Thur | I29: 127.81 | J29: Fri | M29: Full customer 4_n_Tue._(full) | N29: 3_A1->T1->A2 | O29: A1 | P29: T1 | Q29: 60 | R29: 109.06 | S29: Thur | T29: 127.06 | U29: Fri | X29: Full customer 11_n_Wed._(full) | Y29: 3_A1->T1->A2 | Z29: A1 | AA29: T1 | AB29: 19 | AC29: 106.63 | AD29: Thur | AE29: 124.63 | AF29: Fri
B30: Full customer 2_n_Wed._(full) | C30: 1_A1->T1->A2 | D30: A1 | E30: T1 | F30: 2 | G30: 109.81 | H30: Thur | I30: 127.81 | J30: Fri | M30: Full customer 4_n_Thur._(full) | N30: 3_A1->T1->A2 | O30: A1 | P30: T1 | Q30: 40 | R30: 109.06 | S30: Thur | T30: 127.06 | U30: Fri | X30: Full customer 15_n_Mon._(full) | Y30: 4_A1->T1->A2 | Z30: A1 | AA30: T1 | AB30: 27 | AC30: 37 | AD30: Mon | AE30: 55 | AF30: Tue
B31: Full customer 2_n_Thur._(full) | C31: 1_A1->T1->A2 | D31: A1 | E31: T1 | F31: 1 | G31: 109.81 | H31: Thur | I31: 127.81 | J31: Fri | M31: Full customer 11_n_Wed._(full) | N31: 3_A1->T1->A2 | O31: A1 | P31: T1 | Q31: 10 | R31: 109.06 | S31: Thur | T31: 127.06 | U31: Fri | X31: Full customer 16_n_Wed._(full) | Y31: 3_A1->T1->A2 | Z31: A1 | AA31: T1 | AB31: 1 | AC31: 106.63 | AD31: Thur | AE31: 124.63 | AF31: Fri
B32: Full customer 7_n_Tue._(full) | C32: 1_A1->T1->A2 | D32: A1 | E32: T1 | F32: 1 | G32: 109.81 | H32: Thur | I32: 127.81 | J32: Fri | M32: Full customer 18_n_Tue._(full) | N32: 16_A1->Z1->T1->A2 | O32: Z1 | P32: T1 | Q32: 2 | R32: 53 | S32: Tue | T32: 79 | U32: Wed | X32: Full customer 17_n_Thur._(full) | Y32: 3_A1->T1->A2 | Z32: A1 | AA32: T1 | AB32: 7 | AC32: 106.63 | AD32: Thur | AE32: 124.63 | AF32: Fri
B33: Full customer 11_n_Wed._(full) | C33: 1_A1->T1->A2 | D33: A1 | E33: T1 | F33: 1 | G33: 109.81 | H33: Thur | I33: 127.81 | J33: Fri | M33: Full customer 22_n_Mon._(full) | N33: 16_A1->Z1->T1->A2 | O33: Z1 | P33: T1 | Q33: 3 | R33: 53 | S33: Tue | T33: 79 | U33: Wed | X33: Full customer 25_n-1_Fri._(full) | Y33: 4_A1->T1->A2 | Z33: A1 | AA33: T1 | AB33: 2 | AC33: 37 | AD33: Mon | AE33: 55 | AF33: Tue
B34: Full customer 12_n_Thur._(full) | C34: 1_A1->T1->A2 | D34: A1 | E34: T1 | F34: 2 | G34: 109.81 | H34: Thur | I34: 127.81 | J34: Fri | M34: Full customer 23_n_Tue._(full) | N34: 16_A1->Z1->T1->A2 | O34: Z1 | P34: T1 | Q34: 5 | R34: 53 | S34: Tue | T34: 79 | U34: Wed | X34: Full customer 25_n-1_Sat._(full) | Y34: 4_A1->T1->A2 | Z34: A1 | AA34: T1 | AB34: 1 | AC34: 37 | AD34: Mon | AE34: 55 | AF34: Tue
B35: Full customer 14_n_Thur._(full) | C35: 1_A1->T1->A2 | D35: A1 | E35: T1 | F35: 1 | G35: 109.81 | H35: Thur | I35: 127.81 | J35: Fri | M35: Full customer 26_n_Tue._(full) | N35: 16_A1->Z1->T1->A2 | O35: Z1 | P35: T1 | Q35: 5 | R35: 53 | S35: Tue | T35: 79 | U35: Wed | X35: Full customer 25_n_Wed._(full) | Y35: 3_A1->T1->A2 | Z35: A1 | AA35: T1 | AB35: 2 | AC35: 106.63 | AD35: Thur | AE35: 124.63 | AF35: Fri
B36: Full customer 16_n_Wed._(full) | C36: 1_A1->T1->A2 | D36: A1 | E36: T1 | F36: 4 | G36: 109.81 | H36: Thur | I36: 127.81 | J36: Fri | M36: Empty customer 2_n-1_Sat._(empty) | N36: 3_A1->T1->A2 | O36: T1 | P36: A2 | Q36: 1 | R36: 142.06 | S36: Fri | T36: 160.06 | U36: Sat | X36: Full customer 25_n_Thur._(full) | Y36: 3_A1->T1->A2 | Z36: A1 | AA36: T1 | AB36: 1 | AC36: 106.63 | AD36: Thur | AE36: 124.63 | AF36: Fri
B37: Full customer 24_n_Mon._(full) | C37: 4_A1->T1->A2 | D37: A1 | E37: T1 | F37: 4 | G37: 37 | H37: Mon | I37: 55 | J37: Tue | M37: Empty customer 2_n-1_Sat._(empty) | N37: 16_A1->Z1->T1->A2 | O37: T1 | P37: A2 | Q37: 1 | R37: 82.25 | S37: Wed | T37: 100.25 | U37: Thur | X37: Empty customer 1_n-1_Fri._(empty) | Y37: 4_A1->T1->A2 | Z37: A1 | AA37: T1 | AB37: 33 | AC37: 37 | AD37: Mon | AE37: 55 | AF37: Tue
B38: Empty customer 1_n-1_Fri._(empty) | C38: 4_A1->T1->A2 | D38: A1 | E38: T1 | F38: 7 | G38: 37 | H38: Mon | I38: 55 | J38: Tue | M38: Empty customer 2_n_Wed._(empty) | N38: 3_A1->T1->A2 | O38: T1 | P38: A2 | Q38: 1 | R38: 142.06 | S38: Fri | T38: 160.06 | U38: Sat | X38: Empty customer 1_n_Mon._(empty) | Y38: 4_A1->T1->A2 | Z38: A1 | AA38: T1 | AB38: 30 | AC38: 37 | AD38: Mon | AE38: 55 | AF38: Tue
B39: Empty customer 1_n_Mon._(empty) | C39: 4_A1->T1->A2 | D39: A1 | E39: T1 | F39: 7 | G39: 37 | H39: Mon | I39: 55 | J39: Tue | M39: Empty customer 2_n_Fri._(empty) | N39: 3_A1->T1->A2 | O39: T1 | P39: A2 | Q39: 1 | R39: 142.06 | S39: Fri | T39: 160.06 | U39: Sat | X39: Empty customer 1_n_Tue._(empty) | Y39: 3_A1->T1->A2 | Z39: A1 | AA39: T1 | AB39: 29 | AC39: 106.63 | AD39: Thur | AE39: 124.63 | AF39: Fri
B40: Empty customer 1_n_Tue._(empty) | C40: 1_A1->T1->A2 | D40: A1 | E40: T1 | F40: 7 | G40: 109.81 | H40: Thur | I40: 127.81 | J40: Fri | M40: Empty customer 3_n_Tue._(empty) | N40: 3_A1->T1->A2 | O40: T1 | P40: A2 | Q40: 38 | R40: 142.06 | S40: Fri | T40: 160.06 | U40: Sat | X40: Empty customer 1_n_Wed._(empty) | Y40: 3_A1->T1->A2 | Z40: A1 | AA40: T1 | AB40: 3 | AC40: 106.63 | AD40: Thur | AE40: 124.63 | AF40: Fri
B41: Empty customer 1_n_Wed._(empty) | C41: 1_A1->T1->A2 | D41: A1 | E41: T1 | F41: 1 | G41: 109.81 | H41: Thur | I41: 127.81 | J41: Fri | M41: Empty customer 10_n_Mon._(empty) | N41: 16_A1->Z1->T1->A2 | O41: A1 | P41: Z1 | Q41: 1 | R41: 31 | S41: Mon | T41: 46 | U41: Mon | X41: Empty customer 1_n_Thur._(empty) | Y41: 3_A1->T1->A2 | Z41: A1 | AA41: T1 | AB41: 32 | AC41: 106.63 | AD41: Thur | AE41: 124.63 | AF41: Fri
B42: Empty customer 1_n_Thur._(empty) | C42: 1_A1->T1->A2 | D42: A1 | E42: T1 | F42: 7 | G42: 109.81 | H42: Thur | I42: 127.81 | J42: Fri | X42: Empty customer 7_n-1_Sat._(empty) | Y42: 4_A1->T1->A2 | Z42: T1 | AA42: A2 | AB42: 1 | AC42: 68.25 | AD42: Tue | AE42: 86.25 | AF42: Wed
B43: Empty customer 6_n_Wed._(empty) | C43: 1_A1->T1->A2 | D43: T1 | E43: A2 | F43: 13 | G43: 138 | H43: Fri | I43: 156 | J43: Sat | M43: Customer | N43: Building block 1 | O43: Successive building block | P43: Container volume | Q43: O | R43: D | S43: Departure time | T43: Departure day | U43: Arrival time | V43: Arrival day | X43: Empty customer 7_n_Wed._(empty) | Y43: 3_A1->T1->A2 | Z43: T1 | AA43: A2 | AB43: 1 | AC43: 141.69 | AD43: Fri | AE43: 159.69 | AF43: Sat
X44: Empty customer 7_n_Thur._(empty) | Y44: 3_A1->T1->A2 | Z44: T1 | AA44: A2 | AB44: 1 | AC44: 141.69 | AD44: Fri | AE44: 159.69 | AF44: Sat
X45: Empty customer 7_n_Fri._(empty) | Y45: 3_A1->T1->A2 | Z45: T1 | AA45: A2 | AB45: 2 | AC45: 141.69 | AD45: Fri | AE45: 159.69 | AF45: Sat
B46: Customer | C46: Building block 1 | D46: Successive building block | E46: Container volume | F46: O | G46: D | H46: Departure time | I46: Departure day | J46: Arrival time | K46: Arrival day | M46: Customer | N46: Volume of outsoucing
M47: Full customer 18_n_Fri._(full) | N47: 12 | X47: Customer | Y47: Building block 1 | Z47: Successive building block | AA47: Container volume | AB47: O | AC47: D | AD47: Departure time | AE47: Departure day | AF47: Arrival time | AG47: Arrival day
M48: Full customer 19_n_Wed._(full) | N48: 30
M49: Full customer 20_n_Thur._(full) | N49: 4
B50: Customer | C50: Volume of outsoucing | M50: Full customer 21_n_Sat._(full) | N50: 1 | X50: Customer | Y50: Volume of outsoucing
B51: Full customer 1_n_Thur._(full) | C51: 1 | M51: Full customer 26_n_Wed._(full) | N51: 6 | X51: Full customer 1_n_Fri._(full) | Y51: 6
B52: Full customer 2_n_Fri._(full) | C52: 5 | M52: Full customer 27_n_Thur._(full) | N52: 14 | X52: Full customer 8_n_Fri._(full) | Y52: 1
B53: Full customer 2_n_Sat._(full) | C53: 3 | M53: Full customer 28_n_Fri._(full) | N53: 20 | X53: Full customer 9_n_Fri._(full) | Y53: 6
B54: Full customer 7_n_Fri._(full) | C54: 1 | M54: Empty customer 2_n_Sat._(empty) | N54: 2 | X54: Full customer 10_n_Tue._(full) | Y54: 15
B55: Empty customer 1_n_Fri._(empty) | C55: 6 | M55: Empty customer 4_n_Wed._(empty) | N55: 40 | X55: Full customer 13_n_Fri._(full) | Y55: 1
M56: Empty customer 5_n_Thur._(empty) | N56: 23 | X56: Full customer 25_n_Sat._(full) | Y56: 2
M57: Empty customer 8_n_Wed._(empty) | N57: 1 | X57: Empty customer 1_n_Fri._(empty) | Y57: 25
M58: Empty customer 8_n_Thur._(empty) | N58: 3 | X58: Empty customer 7_n_Sat._(empty) | Y58: 1
M59: Empty customer 9_n_Tue._(empty) | N59: 4
M60: Empty customer 9_n_Thur._(empty) | N60: 2
M61: Empty customer 10_n_Wed._(empty) | N61: 1
